"SERVICE_CODE","ORGANISATION_UNIT","EXPENDITURE_CATEGORY","EXPENDITURE_DESCRIPTION","EXPENDITURE_CODE","NARRATIVE","DATE","TRANSATION_CODE","NET_AMOUNT","SUPPLIER_CODE","SUPPLIER_NAME","FROM_DATE","TO_DATE","FINANCIAL_PERIOD_YEAR"
"CEO","LEGAL SERVICES","EMPLOYEES","TRAINING EXPENSES","1305","P110933-SERVICE-CVI-LC Online Course 05/03/21 for Beryl Foste",28/2/2021 00:00:00,"245039",215,"LL0312","LLG LEGAL TRAINING",1/2/2021 00:00:00,28/2/2021 00:00:00,"P11-2021"
"P&V","YOUTH AND SCHOOLS","EMPLOYEES","TRAINING EXPENSES","1305","P110833-SERVICE-Engaging Tennagers & Young Adults in the",24/2/2021 00:00:00,"244819",40,"BO0320","BOTANIC GARDENS EDUCATION NETWORK",1/2/2021 00:00:00,28/2/2021 00:00:00,"P11-2021"
"P&V","YOUTH AND SCHOOLS","EMPLOYEES","TRAINING EXPENSES","1305","P110834-SERVICE-Engaging Teenagers and Young Adults in the",24/2/2021 00:00:00,"244821",25,"BO0320","BOTANIC GARDENS EDUCATION NETWORK",1/2/2021 00:00:00,28/2/2021 00:00:00,"P11-2021"
"P&V","RIVER LEE COUNTRY PARK","EMPLOYEES","TRAINING EXPENSES","1305","P109069-SERVICE-Tree Survey and Inspection Training (Lantra A",15/2/2021 00:00:00,"244566",495,"WR0023","WRITTLE COLLEGE",1/2/2021 00:00:00,28/2/2021 00:00:00,"P11-2021"
"R&B","NON DISTRIBUTED COSTS","EMPLOYEES","SUPERANNUATION ADDED YEARS","1310","LONDON PENSIONS FUND AUTHORITY",28/2/2021 00:00:00,"245065",5286.21,"LO0031","LONDON PENSIONS FUND AUTHORITY",1/2/2021 00:00:00,28/2/2021 00:00:00,"P11-2021"
"P&V","PROJECT & FUNDING DELIVERY","EMPLOYEES","CRB CHECKS","1330","DBS CHECK",8/2/2021 00:00:00,"244258",23,"DD0119","DUE DILIGENCE CHECKING LIMITED",1/2/2021 00:00:00,28/2/2021 00:00:00,"P11-2021"
"P&V","PROJECT & FUNDING DELIVERY","EMPLOYEES","CRB CHECKS","1330","ADMIN FEE",8/2/2021 00:00:00,"244258",18,"DD0119","DUE DILIGENCE CHECKING LIMITED",1/2/2021 00:00:00,28/2/2021 00:00:00,"P11-2021"
,"LEE VALLEY CARAVAN PARK","EMPLOYEES","CRB CHECKS","1330","ADMIN FEE",8/2/2021 00:00:00,"244258",18,"DD0119","DUE DILIGENCE CHECKING LIMITED",1/2/2021 00:00:00,28/2/2021 00:00:00,"P11-2021"
,"LEE VALLEY CARAVAN PARK","EMPLOYEES","CRB CHECKS","1330","DBS CHECK",8/2/2021 00:00:00,"244258",23,"DD0119","DUE DILIGENCE CHECKING LIMITED",1/2/2021 00:00:00,28/2/2021 00:00:00,"P11-2021"
"P&V","YOUTH AND SCHOOLS","EMPLOYEES","CRB CHECKS","1330","ADMIN FEE",8/2/2021 00:00:00,"244258",18,"DD0119","DUE DILIGENCE CHECKING LIMITED",1/2/2021 00:00:00,28/2/2021 00:00:00,"P11-2021"
"P&V","YOUTH AND SCHOOLS","EMPLOYEES","CRB CHECKS","1330","DBS CHEK",8/2/2021 00:00:00,"244258",40,"DD0119","DUE DILIGENCE CHECKING LIMITED",1/2/2021 00:00:00,28/2/2021 00:00:00,"P11-2021"
,"LEE VALLEY VELOPARK","EMPLOYEES","CRB CHECKS","1330","ADMIN FEE",8/2/2021 00:00:00,"244258",36,"DD0119","DUE DILIGENCE CHECKING LIMITED",1/2/2021 00:00:00,28/2/2021 00:00:00,"P11-2021"
,"LEE VALLEY VELOPARK","EMPLOYEES","CRB CHECKS","1330","DBS CHECKS",8/2/2021 00:00:00,"244258",46,"DD0119","DUE DILIGENCE CHECKING LIMITED",1/2/2021 00:00:00,28/2/2021 00:00:00,"P11-2021"
,"LV HOCKEY AND TENNIS CENTRE","EMPLOYEES","CRB CHECKS","1330","ADMIN FEE",8/2/2021 00:00:00,"244258",18,"DD0119","DUE DILIGENCE CHECKING LIMITED",1/2/2021 00:00:00,28/2/2021 00:00:00,"P11-2021"
,"LV HOCKEY AND TENNIS CENTRE","EMPLOYEES","CRB CHECKS","1330","DBS CHECK",8/2/2021 00:00:00,"244258",40,"DD0119","DUE DILIGENCE CHECKING LIMITED",1/2/2021 00:00:00,28/2/2021 00:00:00,"P11-2021"
,"LEE VALLEY RIDING CENTRE","EMPLOYEES","CRB CHECKS","1330","DBS CHECKS",8/2/2021 00:00:00,"244258",80,"DD0119","DUE DILIGENCE CHECKING LIMITED",1/2/2021 00:00:00,28/2/2021 00:00:00,"P11-2021"
,"LEE VALLEY RIDING CENTRE","EMPLOYEES","CRB CHECKS","1330","ADMIN FEE",8/2/2021 00:00:00,"244258",36,"DD0119","DUE DILIGENCE CHECKING LIMITED",1/2/2021 00:00:00,28/2/2021 00:00:00,"P11-2021"
,"LEE VALLEY WHITE WATER CENTRE","EMPLOYEES","CRB CHECKS","1330","DBS CHECKS",8/2/2021 00:00:00,"244258",80,"DD0119","DUE DILIGENCE CHECKING LIMITED",1/2/2021 00:00:00,28/2/2021 00:00:00,"P11-2021"
,"LEE VALLEY WHITE WATER CENTRE","EMPLOYEES","CRB CHECKS","1330","ADMIN FEE",8/2/2021 00:00:00,"244258",36,"DD0119","DUE DILIGENCE CHECKING LIMITED",1/2/2021 00:00:00,28/2/2021 00:00:00,"P11-2021"
"R&B","CORPORATE TRAINING","EMPLOYEES","APPRENTICE LEVY","1390","PAYE",28/2/2021 00:00:00,"244665",2117,"HM0368","HMRC",1/2/2021 00:00:00,28/2/2021 00:00:00,"P11-2021"
"CEO","LVLC SERVICE CHARGE","PREMISES RELATED EXPENDITURE","SCHEDULED GROUND MAINTENANCE","2111","GLENDALE GROUNDS MANAGEMENT LI",17/2/2021 00:00:00,"244165",50.68,"GL0214","GLENDALE GROUNDS MANAGEMENT LIMITED",1/2/2021 00:00:00,28/2/2021 00:00:00,"P11-2021"
"CEO","LVLC SERVICE CHARGE","PREMISES RELATED EXPENDITURE","SCHEDULED GROUND MAINTENANCE","2111","GLENDALE GROUNDS MANAGEMENT LI",17/2/2021 00:00:00,"244165",1149.9,"GL0214","GLENDALE GROUNDS MANAGEMENT LIMITED",1/2/2021 00:00:00,28/2/2021 00:00:00,"P11-2021"
"P&V","SOUTH AREA RANGERS","PREMISES RELATED EXPENDITURE","UNSCHEDULED GROUND MAINTENANCE","2112","P110444-SERVICE-Ice Centre Gate Locking / Unlocking",28/2/2021 00:00:00,"244167",336.36,"GL0214","GLENDALE GROUNDS MANAGEMENT LIMITED",1/2/2021 00:00:00,28/2/2021 00:00:00,"P11-2021"
,"LEE VALLEY CAMPSITE","PREMISES RELATED EXPENDITURE","CONTRACT CLEANING","2120","P110389-SERVICE-Skips",23/2/2021 00:00:00,"243884",-304.76,"CL0037","VEOLIA ES (UK) LTD",1/2/2021 00:00:00,28/2/2021 00:00:00,"P11-2021"
,"LEE VALLEY CAMPSITE","PREMISES RELATED EXPENDITURE","CONTRACT CLEANING","2120","P110712-SERVICE-Monthly cleaning",15/2/2021 00:00:00,"244418",767,"LI0305","LIMPIAR CLEANING",1/2/2021 00:00:00,28/2/2021 00:00:00,"P11-2021"
,"LEE VALLEY CAMPSITE","PREMISES RELATED EXPENDITURE","CONTRACT CLEANING","2120","P110764-SERVICE-cleaning supplies",24/2/2021 00:00:00,"244687",207.78,"HY0043","HYGIENE SYSTEMS LTD",1/2/2021 00:00:00,28/2/2021 00:00:00,"P11-2021"
,"LEE VALLEY CARAVAN PARK","PREMISES RELATED EXPENDITURE","CONTRACT CLEANING","2120","P110780-SERVICE-Initial Hygeine",15/2/2021 00:00:00,"244364",90.39,"IN0012","INITIAL WASHROOM HYGIENE",1/2/2021 00:00:00,28/2/2021 00:00:00,"P11-2021"
"P&V","NORTH AREA RANGERS","PREMISES RELATED EXPENDITURE","CONTRACT CLEANING","2120","GLENDALE GROUNDS MANAGEMENT LI",17/2/2021 00:00:00,"244165",254.55,"GL0214","GLENDALE GROUNDS MANAGEMENT LIMITED",1/2/2021 00:00:00,28/2/2021 00:00:00,"P11-2021"
"P&V","GUNPOWDER PARK","PREMISES RELATED EXPENDITURE","CONTRACT CLEANING","2120","GLENDALE GROUNDS MANAGEMENT LI",17/2/2021 00:00:00,"244165",254.55,"GL0214","GLENDALE GROUNDS MANAGEMENT LIMITED",1/2/2021 00:00:00,28/2/2021 00:00:00,"P11-2021"
"P&V","RIVER LEE COUNTRY PARK","PREMISES RELATED EXPENDITURE","CONTRACT CLEANING","2120","GLENDALE GROUNDS MANAGEMENT LI",17/2/2021 00:00:00,"244165",509.09,"GL0214","GLENDALE GROUNDS MANAGEMENT LIMITED",1/2/2021 00:00:00,28/2/2021 00:00:00,"P11-2021"
,"LEE VALLEY ICE CENTRE","PREMISES RELATED EXPENDITURE","CONTRACT CLEANING","2120","P110850-SERVICE-Cleaners",22/2/2021 00:00:00,"239928",1375.1,"MA0015","MAYFAIR CLEANING COMPANY LIMITED",1/2/2021 00:00:00,28/2/2021 00:00:00,"P11-2021"
,"LEE VALLEY ICE CENTRE","PREMISES RELATED EXPENDITURE","CONTRACT CLEANING","2120","P110851-SERVICE-Cleaners",22/2/2021 00:00:00,"241093",1375.1,"MA0015","MAYFAIR CLEANING COMPANY LIMITED",1/2/2021 00:00:00,28/2/2021 00:00:00,"P11-2021"
,"LEE VALLEY ICE CENTRE","PREMISES RELATED EXPENDITURE","CONTRACT CLEANING","2120","P110852-SERVICE-Cleaners",22/2/2021 00:00:00,"242224",1375.1,"MA0015","MAYFAIR CLEANING COMPANY LIMITED",1/2/2021 00:00:00,28/2/2021 00:00:00,"P11-2021"
,"LEE VALLEY ICE CENTRE","PREMISES RELATED EXPENDITURE","CONTRACT CLEANING","2120","P110853-SERVICE-Cleaners",22/2/2021 00:00:00,"243233",1375.1,"MA0015","MAYFAIR CLEANING COMPANY LIMITED",1/2/2021 00:00:00,28/2/2021 00:00:00,"P11-2021"
,"LEE VALLEY ICE CENTRE","PREMISES RELATED EXPENDITURE","CONTRACT CLEANING","2120","P110854-SERVICE-Cleaners",22/2/2021 00:00:00,"244146",1375.1,"MA0015","MAYFAIR CLEANING COMPANY LIMITED",1/2/2021 00:00:00,28/2/2021 00:00:00,"P11-2021"
,"LEE VALLEY RIDING CENTRE","PREMISES RELATED EXPENDITURE","CLEANING CONTRACT","2121","P110760-SERVICE-reduced cleaning January 2021",10/2/2021 00:00:00,"244148",540.24,"MA0015","MAYFAIR CLEANING COMPANY LIMITED",1/2/2021 00:00:00,28/2/2021 00:00:00,"P11-2021"
,"LEE VALLEY RIDING CENTRE","PREMISES RELATED EXPENDITURE","CLEANING CONTRACT","2121","P110969-SERVICE-reduced cleaning fee for February 2021",28/2/2021 00:00:00,"245069",540.24,"MA0015","MAYFAIR CLEANING COMPANY LIMITED",1/2/2021 00:00:00,28/2/2021 00:00:00,"P11-2021"
,"LEE VALLEY MARINA STANSTEAD","PREMISES RELATED EXPENDITURE","GM MAIN CONTRACT SCHEDULED","2141","GLENDALE GROUNDS MANAGEMENT LI",17/2/2021 00:00:00,"244165",176.99,"GL0214","GLENDALE GROUNDS MANAGEMENT LIMITED",1/2/2021 00:00:00,28/2/2021 00:00:00,"P11-2021"
,"LEE VALLEY WATERWORKS CENTRE","PREMISES RELATED EXPENDITURE","GM MAIN CONTRACT SCHEDULED","2141","GLENDALE GROUNDS MANAGEMENT LI",17/2/2021 00:00:00,"244165",201.72,"GL0214","GLENDALE GROUNDS MANAGEMENT LIMITED",1/2/2021 00:00:00,28/2/2021 00:00:00,"P11-2021"
,"LEE VALLEY WATERWORKS CENTRE","PREMISES RELATED EXPENDITURE","GM MAIN CONTRACT SCHEDULED","2141","GLENDALE GROUNDS MANAGEMENT LI",17/2/2021 00:00:00,"244165",87.49,"GL0214","GLENDALE GROUNDS MANAGEMENT LIMITED",1/2/2021 00:00:00,28/2/2021 00:00:00,"P11-2021"
,"LEE VALLEY FARM HAYES HILL","PREMISES RELATED EXPENDITURE","GM MAIN CONTRACT SCHEDULED","2141","GLENDALE GROUNDS MANAGEMENT LI",17/2/2021 00:00:00,"244165",421.41,"GL0214","GLENDALE GROUNDS MANAGEMENT LIMITED",1/2/2021 00:00:00,28/2/2021 00:00:00,"P11-2021"
"P&V","EAST INDIA DOCK AND BOW CREEK","PREMISES RELATED EXPENDITURE","GM MAIN CONTRACT SCHEDULED","2141","GLENDALE GROUNDS MANAGEMENT LI",17/2/2021 00:00:00,"244165",358.21,"GL0214","GLENDALE GROUNDS MANAGEMENT LIMITED",1/2/2021 00:00:00,28/2/2021 00:00:00,"P11-2021"
"P&V","EAST INDIA DOCK AND BOW CREEK","PREMISES RELATED EXPENDITURE","GM MAIN CONTRACT SCHEDULED","2141","GLENDALE GROUNDS MANAGEMENT LI",17/2/2021 00:00:00,"244165",437.46,"GL0214","GLENDALE GROUNDS MANAGEMENT LIMITED",1/2/2021 00:00:00,28/2/2021 00:00:00,"P11-2021"
"P&V","NORTH AREA RANGERS","PREMISES RELATED EXPENDITURE","GM MAIN CONTRACT SCHEDULED","2141","GLENDALE GROUNDS MANAGEMENT LI",17/2/2021 00:00:00,"244165",2563.42,"GL0214","GLENDALE GROUNDS MANAGEMENT LIMITED",1/2/2021 00:00:00,28/2/2021 00:00:00,"P11-2021"
"P&V","SOUTH AREA RANGERS","PREMISES RELATED EXPENDITURE","GM MAIN CONTRACT SCHEDULED","2141","GLENDALE GROUNDS MANAGEMENT LI",17/2/2021 00:00:00,"244165",174.98,"GL0214","GLENDALE GROUNDS MANAGEMENT LIMITED",1/2/2021 00:00:00,28/2/2021 00:00:00,"P11-2021"
"P&V","SOUTH AREA RANGERS","PREMISES RELATED EXPENDITURE","GM MAIN CONTRACT SCHEDULED","2141","GLENDALE GROUNDS MANAGEMENT LI",17/2/2021 00:00:00,"244165",5008.16,"GL0214","GLENDALE GROUNDS MANAGEMENT LIMITED",1/2/2021 00:00:00,28/2/2021 00:00:00,"P11-2021"
"P&V","ABBEY GARDENS","PREMISES RELATED EXPENDITURE","GM MAIN CONTRACT SCHEDULED","2141","GLENDALE GROUNDS MANAGEMENT LI",17/2/2021 00:00:00,"244165",1331.73,"GL0214","GLENDALE GROUNDS MANAGEMENT LIMITED",1/2/2021 00:00:00,28/2/2021 00:00:00,"P11-2021"
"P&V","GUNPOWDER PARK","PREMISES RELATED EXPENDITURE","GM MAIN CONTRACT SCHEDULED","2141","GLENDALE GROUNDS MANAGEMENT LI",17/2/2021 00:00:00,"244165",1514.42,"GL0214","GLENDALE GROUNDS MANAGEMENT LIMITED",1/2/2021 00:00:00,28/2/2021 00:00:00,"P11-2021"
"P&V","RIVER LEE COUNTRY PARK","PREMISES RELATED EXPENDITURE","GM MAIN CONTRACT SCHEDULED","2141","GLENDALE GROUNDS MANAGEMENT LI",17/2/2021 00:00:00,"244165",1049.89,"GL0214","GLENDALE GROUNDS MANAGEMENT LIMITED",1/2/2021 00:00:00,28/2/2021 00:00:00,"P11-2021"
"P&V","RIVER LEE COUNTRY PARK","PREMISES RELATED EXPENDITURE","GM MAIN CONTRACT SCHEDULED","2141","GLENDALE GROUNDS MANAGEMENT LI",17/2/2021 00:00:00,"244165",9017.99,"GL0214","GLENDALE GROUNDS MANAGEMENT LIMITED",1/2/2021 00:00:00,28/2/2021 00:00:00,"P11-2021"
,"LEE VALLEY VELOPARK","PREMISES RELATED EXPENDITURE","GM MAIN CONTRACT SCHEDULED","2141","GLENDALE GROUNDS MANAGEMENT LI",17/2/2021 00:00:00,"244165",846.1,"GL0214","GLENDALE GROUNDS MANAGEMENT LIMITED",1/2/2021 00:00:00,28/2/2021 00:00:00,"P11-2021"
,"LV HOCKEY AND TENNIS CENTRE","PREMISES RELATED EXPENDITURE","GM MAIN CONTRACT SCHEDULED","2141","GLENDALE GROUNDS MANAGEMENT LI",17/2/2021 00:00:00,"244165",1033.94,"GL0214","GLENDALE GROUNDS MANAGEMENT LIMITED",1/2/2021 00:00:00,28/2/2021 00:00:00,"P11-2021"
"P&V","THREE MILLS","PREMISES RELATED EXPENDITURE","GM MAIN CONTRACT SCHEDULED","2141","GLENDALE GROUNDS MANAGEMENT LI",17/2/2021 00:00:00,"244165",600.87,"GL0214","GLENDALE GROUNDS MANAGEMENT LIMITED",1/2/2021 00:00:00,28/2/2021 00:00:00,"P11-2021"
,"LEE VALLEY RIDING CENTRE","PREMISES RELATED EXPENDITURE","GM MAIN CONTRACT SCHEDULED","2141","GLENDALE GROUNDS MANAGEMENT LI",17/2/2021 00:00:00,"244165",197.22,"GL0214","GLENDALE GROUNDS MANAGEMENT LIMITED",1/2/2021 00:00:00,28/2/2021 00:00:00,"P11-2021"
,"LEE VALLEY ICE CENTRE","PREMISES RELATED EXPENDITURE","GM MAIN CONTRACT SCHEDULED","2141","GLENDALE GROUNDS MANAGEMENT LI",17/2/2021 00:00:00,"244165",144.35,"GL0214","GLENDALE GROUNDS MANAGEMENT LIMITED",1/2/2021 00:00:00,28/2/2021 00:00:00,"P11-2021"
"P&V","FORMER LV LIDO SITE","PREMISES RELATED EXPENDITURE","GM MAIN CONTRACT SCHEDULED","2141","GLENDALE GROUNDS MANAGEMENT LI",17/2/2021 00:00:00,"244165",477.39,"GL0214","GLENDALE GROUNDS MANAGEMENT LIMITED",1/2/2021 00:00:00,28/2/2021 00:00:00,"P11-2021"
,"LEE VALLEY ATHLETICS CENTRE","PREMISES RELATED EXPENDITURE","GM MAIN CONTRACT SCHEDULED","2141","GLENDALE GROUNDS MANAGEMENT LI",17/2/2021 00:00:00,"244165",233.84,"GL0214","GLENDALE GROUNDS MANAGEMENT LIMITED",1/2/2021 00:00:00,28/2/2021 00:00:00,"P11-2021"
,"LEE VALLEY WHITE WATER CENTRE","PREMISES RELATED EXPENDITURE","GM MAIN CONTRACT SCHEDULED","2141","GLENDALE GROUNDS MANAGEMENT LI",17/2/2021 00:00:00,"244165",829.25,"GL0214","GLENDALE GROUNDS MANAGEMENT LIMITED",1/2/2021 00:00:00,28/2/2021 00:00:00,"P11-2021"
"P&V","SOUTH AREA RANGERS","PREMISES RELATED EXPENDITURE","GM MAIN CONTRACT UNSCHEDULED","2142","P110732-SERVICE-Cleaning WaterWorks Centre - January 2021",8/2/2021 00:00:00,"244166",526.05,"GL0214","GLENDALE GROUNDS MANAGEMENT LIMITED",1/2/2021 00:00:00,28/2/2021 00:00:00,"P11-2021"
,"LEE VALLEY WATERWORKS CENTRE","PREMISES RELATED EXPENDITURE","GM HORTICULTURE SCHEDULED","2143","GLENDALE GROUNDS MANAGEMENT LI",17/2/2021 00:00:00,"244165",77.81,"GL0214","GLENDALE GROUNDS MANAGEMENT LIMITED",1/2/2021 00:00:00,28/2/2021 00:00:00,"P11-2021"
"P&V","NORTH AREA RANGERS","PREMISES RELATED EXPENDITURE","GM HORTICULTURE SCHEDULED","2143","GLENDALE GROUNDS MANAGEMENT LI",17/2/2021 00:00:00,"244165",109.33,"GL0214","GLENDALE GROUNDS MANAGEMENT LIMITED",1/2/2021 00:00:00,28/2/2021 00:00:00,"P11-2021"
"P&V","SOUTH AREA RANGERS","PREMISES RELATED EXPENDITURE","GM HORTICULTURE SCHEDULED","2143","GLENDALE GROUNDS MANAGEMENT LI",17/2/2021 00:00:00,"244165",63.25,"GL0214","GLENDALE GROUNDS MANAGEMENT LIMITED",1/2/2021 00:00:00,28/2/2021 00:00:00,"P11-2021"
"P&V","ABBEY GARDENS","PREMISES RELATED EXPENDITURE","GM HORTICULTURE SCHEDULED","2143","GLENDALE GROUNDS MANAGEMENT LI",17/2/2021 00:00:00,"244165",909.9,"GL0214","GLENDALE GROUNDS MANAGEMENT LIMITED",1/2/2021 00:00:00,28/2/2021 00:00:00,"P11-2021"
"P&V","GUNPOWDER PARK","PREMISES RELATED EXPENDITURE","GM HORTICULTURE SCHEDULED","2143","GLENDALE GROUNDS MANAGEMENT LI",17/2/2021 00:00:00,"244165",119.1,"GL0214","GLENDALE GROUNDS MANAGEMENT LIMITED",1/2/2021 00:00:00,28/2/2021 00:00:00,"P11-2021"
"P&V","RIVER LEE COUNTRY PARK","PREMISES RELATED EXPENDITURE","GM HORTICULTURE SCHEDULED","2143","GLENDALE GROUNDS MANAGEMENT LI",17/2/2021 00:00:00,"244165",61.08,"GL0214","GLENDALE GROUNDS MANAGEMENT LIMITED",1/2/2021 00:00:00,28/2/2021 00:00:00,"P11-2021"
,"LEE VALLEY VELOPARK","PREMISES RELATED EXPENDITURE","GM HORTICULTURE SCHEDULED","2143","GLENDALE GROUNDS MANAGEMENT LI",17/2/2021 00:00:00,"244165",12.45,"GL0214","GLENDALE GROUNDS MANAGEMENT LIMITED",1/2/2021 00:00:00,28/2/2021 00:00:00,"P11-2021"
,"LV HOCKEY AND TENNIS CENTRE","PREMISES RELATED EXPENDITURE","GM HORTICULTURE SCHEDULED","2143","GLENDALE GROUNDS MANAGEMENT LI",17/2/2021 00:00:00,"244165",528.43,"GL0214","GLENDALE GROUNDS MANAGEMENT LIMITED",1/2/2021 00:00:00,28/2/2021 00:00:00,"P11-2021"
"P&V","THREE MILLS","PREMISES RELATED EXPENDITURE","GM HORTICULTURE SCHEDULED","2143","GLENDALE GROUNDS MANAGEMENT LI",17/2/2021 00:00:00,"244165",20,"GL0214","GLENDALE GROUNDS MANAGEMENT LIMITED",1/2/2021 00:00:00,28/2/2021 00:00:00,"P11-2021"
,"LEE VALLEY RIDING CENTRE","PREMISES RELATED EXPENDITURE","GM HORTICULTURE SCHEDULED","2143","GLENDALE GROUNDS MANAGEMENT LI",17/2/2021 00:00:00,"244165",6.19,"GL0214","GLENDALE GROUNDS MANAGEMENT LIMITED",1/2/2021 00:00:00,28/2/2021 00:00:00,"P11-2021"
,"LEE VALLEY RIDING CENTRE","PREMISES RELATED EXPENDITURE","GM HORTICULTURE SCHEDULED","2143","P110692-SERVICE-Tree removal and debris stacking",28/2/2021 00:00:00,"244880",3375,"MP0440","M PARKIN TREE SPECIALISTS LTD",1/2/2021 00:00:00,28/2/2021 00:00:00,"P11-2021"
,"LEE VALLEY WHITE WATER CENTRE","PREMISES RELATED EXPENDITURE","GM HORTICULTURE SCHEDULED","2143","GLENDALE GROUNDS MANAGEMENT LI",17/2/2021 00:00:00,"244165",2.87,"GL0214","GLENDALE GROUNDS MANAGEMENT LIMITED",1/2/2021 00:00:00,28/2/2021 00:00:00,"P11-2021"
"P&V","MYDDELTON HOUSE GARDENS","PREMISES RELATED EXPENDITURE","GM HORTICULTURE UNSCHEDULED","2144","P110433-SERVICE-Commercial Polytunnel - quantity 1",8/2/2021 00:00:00,"243770",2546.67,"PR0463","PREMIER POLYTUNNELS LTD",1/2/2021 00:00:00,28/2/2021 00:00:00,"P11-2021"
"P&V","MYDDELTON HOUSE GARDENS","PREMISES RELATED EXPENDITURE","GM ARBORICULTURE UNSCHEDULED","2146","P110627-SERVICE-Stihl Msa 220",15/2/2021 00:00:00,"244388",267.5,"BR0143","GEORGE BROWNS LTD",1/2/2021 00:00:00,28/2/2021 00:00:00,"P11-2021"
"P&V","MYDDELTON HOUSE GARDENS","PREMISES RELATED EXPENDITURE","GM ARBORICULTURE UNSCHEDULED","2146","P110627-SERVICE-Stihl Fsa 90r",15/2/2021 00:00:00,"244388",232.5,"BR0143","GEORGE BROWNS LTD",1/2/2021 00:00:00,28/2/2021 00:00:00,"P11-2021"
"P&V","NORTH AREA RANGERS","PREMISES RELATED EXPENDITURE","GM ARBORICULTURE UNSCHEDULED","2146","P110021-SERVICE-Tree Works Little Ryegate Farm, Stanstead Inn",8/2/2021 00:00:00,"244012",595,"MU0030","P J MUSK TREES",1/2/2021 00:00:00,28/2/2021 00:00:00,"P11-2021"
"P&V","NORTH AREA RANGERS","PREMISES RELATED EXPENDITURE","GM ARBORICULTURE UNSCHEDULED","2146","P110593-SERVICE-Tree Works in Nazeing Area",28/2/2021 00:00:00,"244893",3675,"CO0667","COLLISON TREE CARE LIMITED",1/2/2021 00:00:00,28/2/2021 00:00:00,"P11-2021"
"P&V","EAST INDIA DOCK AND BOW CREEK","PREMISES RELATED EXPENDITURE","GM NON MAIN CONT UNSCHEDULED","2147","P108785-SERVICE-Remove and Replace Interp at Bow Creek",8/2/2021 00:00:00,"244177",500,"JO0019","R G JOYCE",1/2/2021 00:00:00,28/2/2021 00:00:00,"P11-2021"
"P&V","SOUTH AREA RANGERS","PREMISES RELATED EXPENDITURE","GM NON MAIN CONT UNSCHEDULED","2147","P108886-SERVICE-5x Instal New Interp Boards at Middlesex Filt",8/2/2021 00:00:00,"241956",600,"JO0019","R G JOYCE",1/2/2021 00:00:00,28/2/2021 00:00:00,"P11-2021"
"P&V","SOUTH AREA RANGERS","PREMISES RELATED EXPENDITURE","GM NON MAIN CONT UNSCHEDULED","2147","P108886-SERVICE-4x Remove Old Interp Boards at Middlesex Filt",8/2/2021 00:00:00,"241956",280,"JO0019","R G JOYCE",1/2/2021 00:00:00,28/2/2021 00:00:00,"P11-2021"
"P&V","RIVER LEE COUNTRY PARK","PREMISES RELATED EXPENDITURE","GM NON MAIN CONT UNSCHEDULED","2147","P110731-SERVICE-Tree Works at Fishers Green Island",15/2/2021 00:00:00,"244573",120,"MU0030","P J MUSK TREES",1/2/2021 00:00:00,28/2/2021 00:00:00,"P11-2021"
"P&V","RIVER LEE COUNTRY PARK","PREMISES RELATED EXPENDITURE","GM NON MAIN CONT UNSCHEDULED","2147","P110678-SERVICE-Tree Works at Turnford Brook",15/2/2021 00:00:00,"244618",275,"VE0004","PRINCIPAL TREES LTD",1/2/2021 00:00:00,28/2/2021 00:00:00,"P11-2021"
"P&V","THREE MILLS","PREMISES RELATED EXPENDITURE","GM NON MAIN CONT UNSCHEDULED","2147","P110435-SERVICE-Tree Works at Three Mills Riverside Green",10/2/2021 00:00:00,"244351",450,"PA0222","PARKIN & PARKER TREE SPECIALISTS",1/2/2021 00:00:00,28/2/2021 00:00:00,"P11-2021"
"P&V","THREE MILLS","PREMISES RELATED EXPENDITURE","GM NON MAIN CONT UNSCHEDULED","2147","P110435-SERVICE-Tree Works at Three Mills Riverside Green",10/2/2021 00:00:00,"244351",550,"PA0222","PARKIN & PARKER TREE SPECIALISTS",1/2/2021 00:00:00,28/2/2021 00:00:00,"P11-2021"
"P&V","RIVER LEE COUNTRY PARK","PREMISES RELATED EXPENDITURE","GM CONSERVATION GRAZING","2148","P110670-SERVICE-Supply of Grazing animals for conservation gr",28/2/2021 00:00:00,"245047",4500,"ES0268","ESSEX COUNTY COUNCIL",1/2/2021 00:00:00,28/2/2021 00:00:00,"P11-2021"
"P&V","EAST INDIA DOCK AND BOW CREEK","PREMISES RELATED EXPENDITURE","HABITAT MANAGEMENT WORKS","2149","P108789-SERVICE-Vegetation Clearance off Wall at East India D",8/2/2021 00:00:00,"244176",380,"JO0019","R G JOYCE",1/2/2021 00:00:00,28/2/2021 00:00:00,"P11-2021"
"P&V","EAST INDIA DOCK AND BOW CREEK","PREMISES RELATED EXPENDITURE","HABITAT MANAGEMENT WORKS","2149","P108789-SERVICE-Vegetation Clearance off Wall at Bow Creek",8/2/2021 00:00:00,"244176",450,"JO0019","R G JOYCE",1/2/2021 00:00:00,28/2/2021 00:00:00,"P11-2021"
"P&V","NORTH AREA RANGERS","PREMISES RELATED EXPENDITURE","HABITAT MANAGEMENT WORKS","2149","P110467-SERVICE-Tree Works at Hooks Marsh",15/2/2021 00:00:00,"244422",595,"MU0030","P J MUSK TREES",1/2/2021 00:00:00,28/2/2021 00:00:00,"P11-2021"
"P&V","NORTH AREA RANGERS","PREMISES RELATED EXPENDITURE","HABITAT MANAGEMENT WORKS","2149","P110466-SERVICE-Tree Works at Brittania Lake",17/2/2021 00:00:00,"244616",575,"VE0004","PRINCIPAL TREES LTD",1/2/2021 00:00:00,28/2/2021 00:00:00,"P11-2021"
"P&V","NORTH AREA RANGERS","PREMISES RELATED EXPENDITURE","HABITAT MANAGEMENT WORKS","2149","P110464-SERVICE-Tree Works at Trinity Lane",17/2/2021 00:00:00,"244617",575,"VE0004","PRINCIPAL TREES LTD",1/2/2021 00:00:00,28/2/2021 00:00:00,"P11-2021"
"P&V","NORTH AREA RANGERS","PREMISES RELATED EXPENDITURE","HABITAT MANAGEMENT WORKS","2149","P110464-SERVICE-Tree Works at Trinity Lane",17/2/2021 00:00:00,"244617",275,"VE0004","PRINCIPAL TREES LTD",1/2/2021 00:00:00,28/2/2021 00:00:00,"P11-2021"
"P&V","NORTH AREA RANGERS","PREMISES RELATED EXPENDITURE","HABITAT MANAGEMENT WORKS","2149","P110463-SERVICE-Tree Works at Sawmill Site",28/2/2021 00:00:00,"244619",950,"VE0004","PRINCIPAL TREES LTD",1/2/2021 00:00:00,28/2/2021 00:00:00,"P11-2021"
"P&V","NORTH AREA RANGERS","PREMISES RELATED EXPENDITURE","HABITAT MANAGEMENT WORKS","2149","P110616-SERVICE-Tree works - Seventy Acres",28/2/2021 00:00:00,"244920",5550,"CO0667","COLLISON TREE CARE LIMITED",1/2/2021 00:00:00,28/2/2021 00:00:00,"P11-2021"
"P&V","NORTH AREA RANGERS","PREMISES RELATED EXPENDITURE","HABITAT MANAGEMENT WORKS","2149","P110616-SERVICE-Tree works - Green Lanes",28/2/2021 00:00:00,"244920",450,"CO0667","COLLISON TREE CARE LIMITED",1/2/2021 00:00:00,28/2/2021 00:00:00,"P11-2021"
"P&V","SOUTH AREA RANGERS","PREMISES RELATED EXPENDITURE","HABITAT MANAGEMENT WORKS","2149","P110520-SERVICE-Tree Works at Tottenham Marshes",15/2/2021 00:00:00,"244352",200,"PA0222","PARKIN & PARKER TREE SPECIALISTS",1/2/2021 00:00:00,28/2/2021 00:00:00,"P11-2021"
"P&V","SOUTH AREA RANGERS","PREMISES RELATED EXPENDITURE","HABITAT MANAGEMENT WORKS","2149","P110520-SERVICE-Tree Works at Tottenham Marshes",15/2/2021 00:00:00,"244352",550,"PA0222","PARKIN & PARKER TREE SPECIALISTS",1/2/2021 00:00:00,28/2/2021 00:00:00,"P11-2021"
"P&V","SOUTH AREA RANGERS","PREMISES RELATED EXPENDITURE","HABITAT MANAGEMENT WORKS","2149","P110520-SERVICE-Tree Works at Tottenham Marshes",15/2/2021 00:00:00,"244352",225,"PA0222","PARKIN & PARKER TREE SPECIALISTS",1/2/2021 00:00:00,28/2/2021 00:00:00,"P11-2021"
"P&V","SOUTH AREA RANGERS","PREMISES RELATED EXPENDITURE","HABITAT MANAGEMENT WORKS","2149","P110520-SERVICE-Tree Works at Tottenham Marshes",15/2/2021 00:00:00,"244352",225,"PA0222","PARKIN & PARKER TREE SPECIALISTS",1/2/2021 00:00:00,28/2/2021 00:00:00,"P11-2021"
"P&V","SOUTH AREA RANGERS","PREMISES RELATED EXPENDITURE","HABITAT MANAGEMENT WORKS","2149","P110520-SERVICE-Additional Tree Works at Tottenham Marshes",15/2/2021 00:00:00,"244352",175,"PA0222","PARKIN & PARKER TREE SPECIALISTS",1/2/2021 00:00:00,28/2/2021 00:00:00,"P11-2021"
"P&V","GUNPOWDER PARK","PREMISES RELATED EXPENDITURE","HABITAT MANAGEMENT WORKS","2149","P109740-SERVICE-Black Ditch Works at Gunpowder Park",8/2/2021 00:00:00,"244193",4450,"FA0099","FARM & COUNTRY SUPPLIES LTD",1/2/2021 00:00:00,28/2/2021 00:00:00,"P11-2021"
,"LEE VALLEY MARINA SPRINGFIELD","PREMISES RELATED EXPENDITURE","GENERAL WASTE","2211","P110703-SERVICE-General waste & recycling collection Jan 21",9/2/2021 00:00:00,"244247",1003.43,"CL0037","VEOLIA ES (UK) LTD",1/2/2021 00:00:00,28/2/2021 00:00:00,"P11-2021"
,"LEE VALLEY MARINA STANSTEAD","PREMISES RELATED EXPENDITURE","GENERAL WASTE","2211","P107647-SERVICE-Weekly waste removal Stanstead Abbotts 20/21",8/2/2021 00:00:00,"244243",197.16,"CL0037","VEOLIA ES (UK) LTD",1/2/2021 00:00:00,28/2/2021 00:00:00,"P11-2021"
,"LEE VALLEY MARINA STANSTEAD","PREMISES RELATED EXPENDITURE","GENERAL WASTE","2211","P107647-SERVICE-Weekly waste removal Stanstead Abbotts 20/21",8/2/2021 00:00:00,"244246",597.75,"CL0037","VEOLIA ES (UK) LTD",1/2/2021 00:00:00,28/2/2021 00:00:00,"P11-2021"
"P&V","LEE VALLEY FARM HOLYFIELDHALL","PREMISES RELATED EXPENDITURE","GENERAL WASTE","2211","P110938-SERVICE-Waste for Incineration",28/2/2021 00:00:00,"244716",371.68,"BY0049","BYWATERS (LEYTON) LTD",1/2/2021 00:00:00,28/2/2021 00:00:00,"P11-2021"
,"LEE VALLEY FARM HAYES HILL","PREMISES RELATED EXPENDITURE","GENERAL WASTE","2211","P110715-SERVICE-Waste collections x5",10/2/2021 00:00:00,"244400",667.8,"BY0049","BYWATERS (LEYTON) LTD",1/2/2021 00:00:00,28/2/2021 00:00:00,"P11-2021"
,"LEE VALLEY FARM HAYES HILL","PREMISES RELATED EXPENDITURE","GENERAL WASTE","2211","P110715-SERVICE-Container hire",10/2/2021 00:00:00,"244400",27.9,"BY0049","BYWATERS (LEYTON) LTD",1/2/2021 00:00:00,28/2/2021 00:00:00,"P11-2021"
,"LEE VALLEY FARM HAYES HILL","PREMISES RELATED EXPENDITURE","GENERAL WASTE","2211","P110756-SERVICE-12 yrd skip hire",22/2/2021 00:00:00,"244622",270,"GB0239","GBN SERVICES LTD",1/2/2021 00:00:00,28/2/2021 00:00:00,"P11-2021"
,"LEE VALLEY CAMPSITE","PREMISES RELATED EXPENDITURE","GENERAL WASTE","2211","P110711-SERVICE-Skip empty",9/2/2021 00:00:00,"244249",816.12,"CL0037","VEOLIA ES (UK) LTD",1/2/2021 00:00:00,28/2/2021 00:00:00,"P11-2021"
,"LEE VALLEY CARAVAN PARK","PREMISES RELATED EXPENDITURE","GENERAL WASTE","2211","P110782-SERVICE-Skips Emptied Veolia",15/2/2021 00:00:00,"244245",1543.08,"CL0037","VEOLIA ES (UK) LTD",1/2/2021 00:00:00,28/2/2021 00:00:00,"P11-2021"
"P&V","SOUTH AREA RANGERS","PREMISES RELATED EXPENDITURE","GENERAL WASTE","2211","P110621-SERVICE-Skip at WaterWorks Centre",8/2/2021 00:00:00,"243988",280,"GB0239","GBN SERVICES LTD",1/2/2021 00:00:00,28/2/2021 00:00:00,"P11-2021"
"P&V","SOUTH AREA RANGERS","PREMISES RELATED EXPENDITURE","GENERAL WASTE","2211","P110621-SERVICE-Skip at WaterWorks Centre",28/2/2021 00:00:00,"244875",270,"GB0239","GBN SERVICES LTD",1/2/2021 00:00:00,28/2/2021 00:00:00,"P11-2021"
"P&V","RIVER LEE COUNTRY PARK","PREMISES RELATED EXPENDITURE","GENERAL WASTE","2211","P110592-SERVICE-12yd General Rubbish Skip",17/2/2021 00:00:00,"244621",270,"GB0239","GBN SERVICES LTD",1/2/2021 00:00:00,28/2/2021 00:00:00,"P11-2021"
"P&V","RIVER LEE COUNTRY PARK","PREMISES RELATED EXPENDITURE","GENERAL WASTE","2211","P110817-SERVICE-10x 746625 - Black Refuse Bags",28/2/2021 00:00:00,"244870",217.1,"GR0020","GREENHAM TRADING LIMITED",1/2/2021 00:00:00,28/2/2021 00:00:00,"P11-2021"
"P&V","RIVER LEE COUNTRY PARK","PREMISES RELATED EXPENDITURE","GENERAL WASTE","2211","P110592-SERVICE-12yd General Rubbish Skip",28/2/2021 00:00:00,"245023",270,"GB0239","GBN SERVICES LTD",1/2/2021 00:00:00,28/2/2021 00:00:00,"P11-2021"
,"LEE VALLEY VELOPARK","PREMISES RELATED EXPENDITURE","GENERAL WASTE","2211","P110927-SERVICE-December Collection",24/2/2021 00:00:00,"243447",525.26,"CL0037","VEOLIA ES (UK) LTD",1/2/2021 00:00:00,28/2/2021 00:00:00,"P11-2021"
,"LEE VALLEY VELOPARK","PREMISES RELATED EXPENDITURE","GENERAL WASTE","2211","P110927-SERVICE-December Collection",24/2/2021 00:00:00,"243764",-448.92,"CL0037","VEOLIA ES (UK) LTD",1/2/2021 00:00:00,28/2/2021 00:00:00,"P11-2021"
,"LEE VALLEY VELOPARK","PREMISES RELATED EXPENDITURE","GENERAL WASTE","2211","P110803-SERVICE-January Collection",22/2/2021 00:00:00,"244248",184.78,"CL0037","VEOLIA ES (UK) LTD",1/2/2021 00:00:00,28/2/2021 00:00:00,"P11-2021"
,"LEE VALLEY RIDING CENTRE","PREMISES RELATED EXPENDITURE","GENERAL WASTE","2211","P107322-SERVICE-annual waste and compactor",8/2/2021 00:00:00,"244399",1890.97,"BY0049","BYWATERS (LEYTON) LTD",1/2/2021 00:00:00,28/2/2021 00:00:00,"P11-2021"
,"LEE VALLEY ICE CENTRE","PREMISES RELATED EXPENDITURE","GENERAL WASTE","2211","P110738-SERVICE-Annual Duty Care Charge",8/2/2021 00:00:00,"244154",98.28,"CA0341","F & R CAWLEY LTD",1/2/2021 00:00:00,28/2/2021 00:00:00,"P11-2021"
,"LEE VALLEY ICE CENTRE","PREMISES RELATED EXPENDITURE","GENERAL WASTE","2211","P110638-SERVICE-Skip Exchange",15/2/2021 00:00:00,"244589",278.45,"OD0010","O'DONOVAN (WASTE DISPOSAL) LTD",1/2/2021 00:00:00,28/2/2021 00:00:00,"P11-2021"
,"LV LEISURE CENTRE CAMPSITE","PREMISES RELATED EXPENDITURE","GENERAL WASTE","2211","P110837-SERVICE-waste collection we have a credit note for th",17/2/2021 00:00:00,"244398",151.68,"BY0049","BYWATERS (LEYTON) LTD",1/2/2021 00:00:00,28/2/2021 00:00:00,"P11-2021"
,"LEE VALLEY WHITE WATER CENTRE","PREMISES RELATED EXPENDITURE","GENERAL WASTE","2211","P110769-SERVICE-Waste collection January 2021",10/2/2021 00:00:00,"244397",321.65,"BY0049","BYWATERS (LEYTON) LTD",1/2/2021 00:00:00,28/2/2021 00:00:00,"P11-2021"
"P&V","MYDDELTON HOUSE","PREMISES RELATED EXPENDITURE","RECYCLING","2214","P110766-SERVICE-Recycling",10/2/2021 00:00:00,"244153",98.28,"CA0341","F & R CAWLEY LTD",1/2/2021 00:00:00,28/2/2021 00:00:00,"P11-2021"
"P&V","MYDDELTON HOUSE","PREMISES RELATED EXPENDITURE","RECYCLING","2214","P110766-SERVICE-Recycling",15/2/2021 00:00:00,"244439",19.76,"CA0341","F & R CAWLEY LTD",1/2/2021 00:00:00,28/2/2021 00:00:00,"P11-2021"
,"LEE VALLEY FARM HAYES HILL","PREMISES RELATED EXPENDITURE","RECYCLING","2214","P110715-SERVICE-Recycling collections x5",10/2/2021 00:00:00,"244400",80.5,"BY0049","BYWATERS (LEYTON) LTD",1/2/2021 00:00:00,28/2/2021 00:00:00,"P11-2021"
"P&V","MYDDELTON HOUSE","PREMISES RELATED EXPENDITURE","BUILDING SERVICE AGREEMENTS","2220","P110071-SERVICE-Sanitary Services 2020",8/2/2021 00:00:00,"243217",159.13,"PE0015","PHS GROUP PLC",1/2/2021 00:00:00,28/2/2021 00:00:00,"P11-2021"
"P&V","MYDDELTON HOUSE","PREMISES RELATED EXPENDITURE","BUILDING SERVICE AGREEMENTS","2220","P110972-SERVICE-Sanitary Services",28/2/2021 00:00:00,"244829",53.44,"PE0015","PHS GROUP PLC",1/2/2021 00:00:00,28/2/2021 00:00:00,"P11-2021"
"CEO","RESIDENTIAL ACCOMMODATION","PREMISES RELATED EXPENDITURE","BUILDING SERVICE AGREEMENTS","2220","P110669-SERVICE-ECP cert for No 2 Gate Cottage",23/2/2021 00:00:00,"244436",70,"C10691","C15 LIMITED",1/2/2021 00:00:00,28/2/2021 00:00:00,"P11-2021"
,"LEE VALLEY CAMPSITE","PREMISES RELATED EXPENDITURE","BUILDING SERVICE AGREEMENTS","2220","P110679-SERVICE-pest control",8/2/2021 00:00:00,"244108",70,"VE0006","VERMINATE CITY & RURAL PEST CONTROL LTD",1/2/2021 00:00:00,28/2/2021 00:00:00,"P11-2021"
,"LEE VALLEY CAMPSITE","PREMISES RELATED EXPENDITURE","BUILDING SERVICE AGREEMENTS","2220","P110690-SERVICE-Sanitary and hygiene services",8/2/2021 00:00:00,"244340",82.09,"IN0012","INITIAL WASHROOM HYGIENE",1/2/2021 00:00:00,28/2/2021 00:00:00,"P11-2021"
,"LEE VALLEY CAMPSITE","PREMISES RELATED EXPENDITURE","BUILDING SERVICE AGREEMENTS","2220","P110690-SERVICE-Sanitary and hygiene services",8/2/2021 00:00:00,"244341",-82.09,"IN0012","INITIAL WASHROOM HYGIENE",1/2/2021 00:00:00,28/2/2021 00:00:00,"P11-2021"
,"LEE VALLEY CAMPSITE","PREMISES RELATED EXPENDITURE","BUILDING SERVICE AGREEMENTS","2220","P110690-SERVICE-Sanitary and hygiene services",8/2/2021 00:00:00,"244342",82.09,"IN0012","INITIAL WASHROOM HYGIENE",1/2/2021 00:00:00,28/2/2021 00:00:00,"P11-2021"
,"LEE VALLEY CAMPSITE","PREMISES RELATED EXPENDITURE","BUILDING SERVICE AGREEMENTS","2220","P110690-SERVICE-Sanitary and hygiene services",8/2/2021 00:00:00,"244343",-82.09,"IN0012","INITIAL WASHROOM HYGIENE",1/2/2021 00:00:00,28/2/2021 00:00:00,"P11-2021"
,"LEE VALLEY CAMPSITE","PREMISES RELATED EXPENDITURE","BUILDING SERVICE AGREEMENTS","2220","P110690-SERVICE-Sanitary and hygiene services",8/2/2021 00:00:00,"244344",71.14,"IN0012","INITIAL WASHROOM HYGIENE",1/2/2021 00:00:00,28/2/2021 00:00:00,"P11-2021"
,"LEE VALLEY CAMPSITE","PREMISES RELATED EXPENDITURE","BUILDING SERVICE AGREEMENTS","2220","P110690-SERVICE-Sanitary and hygiene services",8/2/2021 00:00:00,"244345",-71.14,"IN0012","INITIAL WASHROOM HYGIENE",1/2/2021 00:00:00,28/2/2021 00:00:00,"P11-2021"
,"LEE VALLEY CAMPSITE","PREMISES RELATED EXPENDITURE","BUILDING SERVICE AGREEMENTS","2220","P110690-SERVICE-Sanitary and hygiene services",8/2/2021 00:00:00,"244346",82.09,"IN0012","INITIAL WASHROOM HYGIENE",1/2/2021 00:00:00,28/2/2021 00:00:00,"P11-2021"
,"LEE VALLEY CAMPSITE","PREMISES RELATED EXPENDITURE","BUILDING SERVICE AGREEMENTS","2220","P110691-SERVICE-Sanitary and hygiene services",8/2/2021 00:00:00,"244347",82.09,"IN0012","INITIAL WASHROOM HYGIENE",1/2/2021 00:00:00,28/2/2021 00:00:00,"P11-2021"
"P&V","NORTH AREA RANGERS","PREMISES RELATED EXPENDITURE","BUILDING SERVICE AGREEMENTS","2220","P108298-SERVICE-Sanitary Disposal - Old Mill & Meadows Toilet",17/2/2021 00:00:00,"244568",8.22,"PE0015","PHS GROUP PLC",1/2/2021 00:00:00,28/2/2021 00:00:00,"P11-2021"
"P&V","GUNPOWDER PARK","PREMISES RELATED EXPENDITURE","BUILDING SERVICE AGREEMENTS","2220","CHUBB FIRE & SECURITY",8/2/2021 00:00:00,"235147",442.19,"CH0088","CHUBB FIRE & SECURITY",1/2/2021 00:00:00,28/2/2021 00:00:00,"P11-2021"
"P&V","GUNPOWDER PARK","PREMISES RELATED EXPENDITURE","BUILDING SERVICE AGREEMENTS","2220","CHUBB FIRE & SECURITY",8/2/2021 00:00:00,"242188",156.87,"CH0088","CHUBB FIRE & SECURITY",1/2/2021 00:00:00,28/2/2021 00:00:00,"P11-2021"
"P&V","GUNPOWDER PARK","PREMISES RELATED EXPENDITURE","BUILDING SERVICE AGREEMENTS","2220","CHUBB FIRE & SECURITY",8/2/2021 00:00:00,"242508",445.87,"CH0088","CHUBB FIRE & SECURITY",1/2/2021 00:00:00,28/2/2021 00:00:00,"P11-2021"
"P&V","GUNPOWDER PARK","PREMISES RELATED EXPENDITURE","BUILDING SERVICE AGREEMENTS","2220","P108593-SERVICE-Building Servcie Agreement - Gunpowder Park",17/2/2021 00:00:00,"243935",139.16,"CO0199","ENGIE FM LIMITED",1/2/2021 00:00:00,28/2/2021 00:00:00,"P11-2021"
"P&V","GUNPOWDER PARK","PREMISES RELATED EXPENDITURE","BUILDING SERVICE AGREEMENTS","2220","CHUBB FIRE & SECURITY",8/2/2021 00:00:00,"244370",-156.87,"CH0088","CHUBB FIRE & SECURITY",1/2/2021 00:00:00,28/2/2021 00:00:00,"P11-2021"
"P&V","GUNPOWDER PARK","PREMISES RELATED EXPENDITURE","BUILDING SERVICE AGREEMENTS","2220","CHUBB FIRE & SECURITY",8/2/2021 00:00:00,"244371",-442.19,"CH0088","CHUBB FIRE & SECURITY",1/2/2021 00:00:00,28/2/2021 00:00:00,"P11-2021"
"P&V","GUNPOWDER PARK","PREMISES RELATED EXPENDITURE","BUILDING SERVICE AGREEMENTS","2220","P108295-SERVICE-Sanitary Disposal - Gunpowder Park - Public T",15/2/2021 00:00:00,"244569",14.3,"PE0015","PHS GROUP PLC",1/2/2021 00:00:00,28/2/2021 00:00:00,"P11-2021"
"P&V","GUNPOWDER PARK","PREMISES RELATED EXPENDITURE","BUILDING SERVICE AGREEMENTS","2220","P108593-SERVICE-Building Servcie Agreement - Gunpowder Park",28/2/2021 00:00:00,"244883",139.16,"CO0199","ENGIE FM LIMITED",1/2/2021 00:00:00,28/2/2021 00:00:00,"P11-2021"
,"LEE VALLEY VELOPARK","PREMISES RELATED EXPENDITURE","BUILDING SERVICE AGREEMENTS","2220","P110113-SERVICE-Fire Extinguisher Service",8/2/2021 00:00:00,"243903",815.37,"TJ0009","T.J.FIRE & SECURITY",1/2/2021 00:00:00,28/2/2021 00:00:00,"P11-2021"
,"LEE VALLEY VELOPARK","PREMISES RELATED EXPENDITURE","BUILDING SERVICE AGREEMENTS","2220","P107025-SERVICE-Service call out 29/1/21",22/2/2021 00:00:00,"244184",630,"GO0211","GOODWATER LTD",1/2/2021 00:00:00,28/2/2021 00:00:00,"P11-2021"
,"LEE VALLEY VELOPARK","PREMISES RELATED EXPENDITURE","BUILDING SERVICE AGREEMENTS","2220","P109090-SERVICE-Water System Chemicals",15/2/2021 00:00:00,"244451",660,"GO0211","GOODWATER LTD",1/2/2021 00:00:00,28/2/2021 00:00:00,"P11-2021"
,"LEE VALLEY VELOPARK","PREMISES RELATED EXPENDITURE","BUILDING SERVICE AGREEMENTS","2220","P110552-SERVICE-Air Conditioning Service",28/2/2021 00:00:00,"244900",4551.25,"PO0412","PROTOCOOL LIMITED",1/2/2021 00:00:00,28/2/2021 00:00:00,"P11-2021"
,"LV HOCKEY AND TENNIS CENTRE","PREMISES RELATED EXPENDITURE","BUILDING SERVICE AGREEMENTS","2220","P110114-SERVICE-Fire Extinguisher Service",8/2/2021 00:00:00,"243871",418.75,"TJ0009","T.J.FIRE & SECURITY",1/2/2021 00:00:00,28/2/2021 00:00:00,"P11-2021"
,"LV HOCKEY AND TENNIS CENTRE","PREMISES RELATED EXPENDITURE","BUILDING SERVICE AGREEMENTS","2220","P110677-SERVICE-BT Redcare Charge 3 Dec-2 Mar",3/2/2021 00:00:00,"244113",78.87,"AD0015","ADT FIRE & SECURITY PLC",1/2/2021 00:00:00,28/2/2021 00:00:00,"P11-2021"
,"LV HOCKEY AND TENNIS CENTRE","PREMISES RELATED EXPENDITURE","BUILDING SERVICE AGREEMENTS","2220","P110775-SERVICE-BT Redcare Charge 3/6/20 - 2/9/20",15/2/2021 00:00:00,"244216",78.87,"AD0015","ADT FIRE & SECURITY PLC",1/2/2021 00:00:00,28/2/2021 00:00:00,"P11-2021"
,"LV HOCKEY AND TENNIS CENTRE","PREMISES RELATED EXPENDITURE","BUILDING SERVICE AGREEMENTS","2220","P110050-SERVICE-Annual Floodlight Maintenance",24/2/2021 00:00:00,"244713",14690.99,"HA0388","HALLIDAY LIGHTING LTD",1/2/2021 00:00:00,28/2/2021 00:00:00,"P11-2021"
,"LV HOCKEY AND TENNIS CENTRE","PREMISES RELATED EXPENDITURE","BUILDING SERVICE AGREEMENTS","2220","P110052-SERVICE-Replacement Lamps",24/2/2021 00:00:00,"244714",6612.5,"HA0388","HALLIDAY LIGHTING LTD",1/2/2021 00:00:00,28/2/2021 00:00:00,"P11-2021"
,"LV HOCKEY AND TENNIS CENTRE","PREMISES RELATED EXPENDITURE","BUILDING SERVICE AGREEMENTS","2220","P110551-SERVICE-Air Conditioning Service",28/2/2021 00:00:00,"244890",827,"PO0412","PROTOCOOL LIMITED",1/2/2021 00:00:00,28/2/2021 00:00:00,"P11-2021"
,"LV LEISURE CENTRE CAMPSITE","PREMISES RELATED EXPENDITURE","BUILDING SERVICE AGREEMENTS","2220","P110839-SERVICE-pest control for aug",17/2/2021 00:00:00,"244107",70,"VE0006","VERMINATE CITY & RURAL PEST CONTROL LTD",1/2/2021 00:00:00,28/2/2021 00:00:00,"P11-2021"
,"LEE VALLEY WHITE WATER CENTRE","PREMISES RELATED EXPENDITURE","BUILDING SERVICE AGREEMENTS","2220","P110513-SERVICE-Redcare & monitoring of fire alarm",28/2/2021 00:00:00,"240065",974.04,"AD0015","ADT FIRE & SECURITY PLC",1/2/2021 00:00:00,28/2/2021 00:00:00,"P11-2021"
,"LEE VALLEY WHITE WATER CENTRE","PREMISES RELATED EXPENDITURE","BUILDING SERVICE AGREEMENTS","2220","P110513-SERVICE-Redcare & monitoring of fire alarm",10/2/2021 00:00:00,"243699",991.63,"AD0015","ADT FIRE & SECURITY PLC",1/2/2021 00:00:00,28/2/2021 00:00:00,"P11-2021"
,"LEE VALLEY WHITE WATER CENTRE","PREMISES RELATED EXPENDITURE","BUILDING SERVICE AGREEMENTS","2220","P110513-SERVICE-Redcare & monitoring of fire alarm",10/2/2021 00:00:00,"244358",-991.63,"AD0015","ADT FIRE & SECURITY PLC",1/2/2021 00:00:00,28/2/2021 00:00:00,"P11-2021"
,"LEE VALLEY WHITE WATER CENTRE","PREMISES RELATED EXPENDITURE","BUILDING SERVICE AGREEMENTS","2220","P110380-SERVICE-Emergency lighting test",10/2/2021 00:00:00,"244390",640,"GI0137","R & P GIBBS LIMITED",1/2/2021 00:00:00,28/2/2021 00:00:00,"P11-2021"
,"LEE VALLEY WHITE WATER CENTRE","PREMISES RELATED EXPENDITURE","BUILDING SERVICE AGREEMENTS","2220","P110753-SERVICE-Monthly emergency lighting short duration tes",9/2/2021 00:00:00,"244412",330,"GI0137","R & P GIBBS LIMITED",1/2/2021 00:00:00,28/2/2021 00:00:00,"P11-2021"
,"LEE VALLEY WHITE WATER CENTRE","PREMISES RELATED EXPENDITURE","BUILDING SERVICE AGREEMENTS","2220","P110513-SERVICE-Redcare & monitoring of fire alarm",28/2/2021 00:00:00,"244928",-974.04,"AD0015","ADT FIRE & SECURITY PLC",1/2/2021 00:00:00,28/2/2021 00:00:00,"P11-2021"
,"LEE VALLEY ICE CENTRE","PREMISES RELATED EXPENDITURE","ENGINEERING SERVICE AGREEMENTS","2221","P110739-SERVICE-Cleaning Machines Hire",8/2/2021 00:00:00,"244182",420,"CL0606","CLEAN SWEEP UK LTD",1/2/2021 00:00:00,28/2/2021 00:00:00,"P11-2021"
"CEO","RESIDENTIAL ACCOMMODATION","PREMISES RELATED EXPENDITURE","BUILDING REPAIRS & MAINTENANCE","2222","P110720-SERVICE-Connaught Close Quarterly Cover",9/2/2021 00:00:00,"244105",70,"VE0006","VERMINATE CITY & RURAL PEST CONTROL LTD",1/2/2021 00:00:00,28/2/2021 00:00:00,"P11-2021"
"CEO","RESIDENTIAL ACCOMMODATION","PREMISES RELATED EXPENDITURE","BUILDING REPAIRS & MAINTENANCE","2222","P110528-SERVICE-Foliage & Roof Work at Springfield Bungalow",8/2/2021 00:00:00,"244122",389,"KE0023","KENDALL & SONS LIMITED",1/2/2021 00:00:00,28/2/2021 00:00:00,"P11-2021"
"CEO","RESIDENTIAL ACCOMMODATION","PREMISES RELATED EXPENDITURE","BUILDING REPAIRS & MAINTENANCE","2222","P110721-SERVICE-Roselea Bungalow Electric Safety Check",9/2/2021 00:00:00,"244138",100,"CA0165","CASTLES",1/2/2021 00:00:00,28/2/2021 00:00:00,"P11-2021"
"CEO","RESIDENTIAL ACCOMMODATION","PREMISES RELATED EXPENDITURE","BUILDING REPAIRS & MAINTENANCE","2222","P110864-SERVICE-Various Works",22/2/2021 00:00:00,"244429",90,"CA0165","CASTLES",1/2/2021 00:00:00,28/2/2021 00:00:00,"P11-2021"
"CEO","RESIDENTIAL ACCOMMODATION","PREMISES RELATED EXPENDITURE","BUILDING REPAIRS & MAINTENANCE","2222","P110864-SERVICE-Various Works",22/2/2021 00:00:00,"244432",84.65,"CA0165","CASTLES",1/2/2021 00:00:00,28/2/2021 00:00:00,"P11-2021"
"CEO","RESIDENTIAL ACCOMMODATION","PREMISES RELATED EXPENDITURE","BUILDING REPAIRS & MAINTENANCE","2222","P110864-SERVICE-Various Works",22/2/2021 00:00:00,"244433",90,"CA0165","CASTLES",1/2/2021 00:00:00,28/2/2021 00:00:00,"P11-2021"
"CEO","RESIDENTIAL ACCOMMODATION","PREMISES RELATED EXPENDITURE","BUILDING REPAIRS & MAINTENANCE","2222","P110864-SERVICE-Various Works",22/2/2021 00:00:00,"244434",82.5,"CA0165","CASTLES",1/2/2021 00:00:00,28/2/2021 00:00:00,"P11-2021"
"CEO","RESIDENTIAL ACCOMMODATION","PREMISES RELATED EXPENDITURE","BUILDING REPAIRS & MAINTENANCE","2222","P110864-SERVICE-Various Works",22/2/2021 00:00:00,"244435",180,"CA0165","CASTLES",1/2/2021 00:00:00,28/2/2021 00:00:00,"P11-2021"
"CEO","RESIDENTIAL ACCOMMODATION","PREMISES RELATED EXPENDITURE","BUILDING REPAIRS & MAINTENANCE","2222","P110643-SERVICE-Empty Cess Pit - Gate Lodge Myddelton House",15/2/2021 00:00:00,"244610",370,"TA0339","TANKER & DRAIN SOLUTIONS LTD",1/2/2021 00:00:00,28/2/2021 00:00:00,"P11-2021"
"CEO","RESIDENTIAL ACCOMMODATION","PREMISES RELATED EXPENDITURE","BUILDING REPAIRS & MAINTENANCE","2222","P110920-SERVICE-Boiler Breakdown Holyfield",28/2/2021 00:00:00,"244679",85,"WA0315","PAUL WALLACE LETTINGS",1/2/2021 00:00:00,28/2/2021 00:00:00,"P11-2021"
"CEO","COMMERCIAL ACCOMMODATION","PREMISES RELATED EXPENDITURE","BUILDING REPAIRS & MAINTENANCE","2222","P109526-SERVICE-LV Forge concrete blocks",22/2/2021 00:00:00,"244150",62,"NA0171","NAIVETTE SERVICES LTD",1/2/2021 00:00:00,28/2/2021 00:00:00,"P11-2021"
,"LEE VALLEY MARINA SPRINGFIELD","PREMISES RELATED EXPENDITURE","BUILDING REPAIRS & MAINTENANCE","2222","P107260-SERVICE-To carry out repairs, maintenance & provid su",15/2/2021 00:00:00,"244416",300,"DE0013","DENNIS SECURITY CENTRE",1/2/2021 00:00:00,28/2/2021 00:00:00,"P11-2021"
,"LEE VALLEY MARINA SPRINGFIELD","PREMISES RELATED EXPENDITURE","BUILDING REPAIRS & MAINTENANCE","2222","P110916-SERVICE-Alarm Battery Replacement",28/2/2021 00:00:00,"244620",45.32,"CH0088","CHUBB FIRE & SECURITY",1/2/2021 00:00:00,28/2/2021 00:00:00,"P11-2021"
,"LEE VALLEY MARINA SPRINGFIELD","PREMISES RELATED EXPENDITURE","BUILDING REPAIRS & MAINTENANCE","2222","P107260-SERVICE-To carry out repairs, maintenance & provid su",22/2/2021 00:00:00,"244861",586.96,"DE0013","DENNIS SECURITY CENTRE",1/2/2021 00:00:00,28/2/2021 00:00:00,"P11-2021"
,"LEE VALLEY MARINA SPRINGFIELD","PREMISES RELATED EXPENDITURE","BUILDING REPAIRS & MAINTENANCE","2222","P110515-SERVICE-Annual Service intruder Alarm SP reception",28/2/2021 00:00:00,"244876",187.74,"CH0088","CHUBB FIRE & SECURITY",1/2/2021 00:00:00,28/2/2021 00:00:00,"P11-2021"
,"LEE VALLEY MARINA SPRINGFIELD","PREMISES RELATED EXPENDITURE","BUILDING REPAIRS & MAINTENANCE","2222","P110789-SERVICE-Annual service for Chandlery Alarm",28/2/2021 00:00:00,"245045",187.74,"CH0088","CHUBB FIRE & SECURITY",1/2/2021 00:00:00,28/2/2021 00:00:00,"P11-2021"
,"LEE VALLEY MARINA STANSTEAD","PREMISES RELATED EXPENDITURE","BUILDING REPAIRS & MAINTENANCE","2222","P110330-SERVICE-Annual testing TMV",24/2/2021 00:00:00,"244865",68.25,"KI0090","KINGFISHER ENVIRONMENTAL SERVICES LTD",1/2/2021 00:00:00,28/2/2021 00:00:00,"P11-2021"
,"LEE VALLEY WATERWORKS CENTRE","PREMISES RELATED EXPENDITURE","BUILDING REPAIRS & MAINTENANCE","2222","P110402-SERVICE-Call Out AC Unit at WaterWorks in the Comms R",15/2/2021 00:00:00,"244392",338.63,"CO0199","ENGIE FM LIMITED",1/2/2021 00:00:00,28/2/2021 00:00:00,"P11-2021"
,"LEE VALLEY WATERWORKS CENTRE","PREMISES RELATED EXPENDITURE","BUILDING REPAIRS & MAINTENANCE","2222","P109195-SERVICE-Install Bollards in Car Park at the WaterWork",22/2/2021 00:00:00,"244674",1070,"BU0090","BUSH WHEELER SERVICES LTD",1/2/2021 00:00:00,28/2/2021 00:00:00,"P11-2021"
"P&V","LEE VALLEY FARM HOLYFIELDHALL","PREMISES RELATED EXPENDITURE","BUILDING REPAIRS & MAINTENANCE","2222","P110144-SERVICE-Building Repairs",16/2/2021 00:00:00,"244365",49.72,"JE0011","SAINT-GOBAIN BUILDING DISTRIBUTION",1/2/2021 00:00:00,28/2/2021 00:00:00,"P11-2021"
"P&V","LEE VALLEY FARM HOLYFIELDHALL","PREMISES RELATED EXPENDITURE","BUILDING REPAIRS & MAINTENANCE","2222","P110144-SERVICE-Building Repairs",16/2/2021 00:00:00,"244365",47.14,"JE0011","SAINT-GOBAIN BUILDING DISTRIBUTION",1/2/2021 00:00:00,28/2/2021 00:00:00,"P11-2021"
"P&V","LEE VALLEY FARM HOLYFIELDHALL","PREMISES RELATED EXPENDITURE","BUILDING REPAIRS & MAINTENANCE","2222","P110945-SERVICE-Plumbing Fittings",28/2/2021 00:00:00,"245016",41.49,"WO0076","E J WOOLLARD LTD",1/2/2021 00:00:00,28/2/2021 00:00:00,"P11-2021"
"P&V","LEE VALLEY FARM HOLYFIELDHALL","PREMISES RELATED EXPENDITURE","BUILDING REPAIRS & MAINTENANCE","2222","P110945-SERVICE-Plumbing Fittings",28/2/2021 00:00:00,"245017",17.7,"WO0076","E J WOOLLARD LTD",1/2/2021 00:00:00,28/2/2021 00:00:00,"P11-2021"
"P&V","LEE VALLEY FARM HOLYFIELDHALL","PREMISES RELATED EXPENDITURE","BUILDING REPAIRS & MAINTENANCE","2222","P110945-SERVICE-Plumbing Fittings",28/2/2021 00:00:00,"245018",222.37,"WO0076","E J WOOLLARD LTD",1/2/2021 00:00:00,28/2/2021 00:00:00,"P11-2021"
"P&V","LEE VALLEY FARM HOLYFIELDHALL","PREMISES RELATED EXPENDITURE","BUILDING REPAIRS & MAINTENANCE","2222","P110936-SERVICE-Steel",28/2/2021 00:00:00,"245037",46,"JP0017","JPS STEEL FABRICATION LTD",1/2/2021 00:00:00,28/2/2021 00:00:00,"P11-2021"
,"LEE VALLEY FARM HAYES HILL","PREMISES RELATED EXPENDITURE","BUILDING REPAIRS & MAINTENANCE","2222","P110713-SERVICE-Electrical works/repairs",10/2/2021 00:00:00,"244173",120,"BR0018","BRADSHAW ELECTRICAL LIMITED",1/2/2021 00:00:00,28/2/2021 00:00:00,"P11-2021"
,"LEE VALLEY FARM HAYES HILL","PREMISES RELATED EXPENDITURE","BUILDING REPAIRS & MAINTENANCE","2222","P110713-SERVICE-Electrical remedial works as per quotation",10/2/2021 00:00:00,"244173",1675,"BR0018","BRADSHAW ELECTRICAL LIMITED",1/2/2021 00:00:00,28/2/2021 00:00:00,"P11-2021"
,"LEE VALLEY FARM HAYES HILL","PREMISES RELATED EXPENDITURE","BUILDING REPAIRS & MAINTENANCE","2222","P110716-SERVICE-Plumbing work (pipe/tap fixed, investigation)",15/2/2021 00:00:00,"244445",260,"RE0094","REACT 2 IT (BUILDING & REFURBISHMENT) LTD",1/2/2021 00:00:00,28/2/2021 00:00:00,"P11-2021"
,"LEE VALLEY CAMPSITE","PREMISES RELATED EXPENDITURE","BUILDING REPAIRS & MAINTENANCE","2222","P110710-SERVICE-Static 24 RCD",9/2/2021 00:00:00,"244169",100,"BR0018","BRADSHAW ELECTRICAL LIMITED",1/2/2021 00:00:00,28/2/2021 00:00:00,"P11-2021"
,"LEE VALLEY CAMPSITE","PREMISES RELATED EXPENDITURE","BUILDING REPAIRS & MAINTENANCE","2222","P110501-SERVICE-Plot 6 - Remove,  site, new base, Plumb",22/2/2021 00:00:00,"244810",2225,"MO0041","CAPSER",1/2/2021 00:00:00,28/2/2021 00:00:00,"P11-2021"
,"LEE VALLEY CAMPSITE","PREMISES RELATED EXPENDITURE","BUILDING REPAIRS & MAINTENANCE","2222","P110507-SERVICE-Plot 21 - Remove old vand and new base",22/2/2021 00:00:00,"244812",1650,"MO0041","CAPSER",1/2/2021 00:00:00,28/2/2021 00:00:00,"P11-2021"
,"LEE VALLEY CAMPSITE","PREMISES RELATED EXPENDITURE","BUILDING REPAIRS & MAINTENANCE","2222","P110509-SERVICE-4 x Parking Spaces",22/2/2021 00:00:00,"244817",980,"MO0041","CAPSER",1/2/2021 00:00:00,28/2/2021 00:00:00,"P11-2021"
,"LEE VALLEY CAMPSITE","PREMISES RELATED EXPENDITURE","BUILDING REPAIRS & MAINTENANCE","2222","P110508-SERVICE-Trench for new lights",22/2/2021 00:00:00,"244818",500,"MO0041","CAPSER",1/2/2021 00:00:00,28/2/2021 00:00:00,"P11-2021"
,"LEE VALLEY CAMPSITE","PREMISES RELATED EXPENDITURE","BUILDING REPAIRS & MAINTENANCE","2222","P110848-SERVICE-Boiler - Staff Static",22/2/2021 00:00:00,"244866",60,"WA0339","WARMHOUSE SERVICES LTD",1/2/2021 00:00:00,28/2/2021 00:00:00,"P11-2021"
,"LEE VALLEY CARAVAN PARK","PREMISES RELATED EXPENDITURE","BUILDING REPAIRS & MAINTENANCE","2222","P108915-SERVICE-Electric site checks",15/2/2021 00:00:00,"244170",100,"BR0018","BRADSHAW ELECTRICAL LIMITED",1/2/2021 00:00:00,28/2/2021 00:00:00,"P11-2021"
,"LEE VALLEY CARAVAN PARK","PREMISES RELATED EXPENDITURE","BUILDING REPAIRS & MAINTENANCE","2222","P108915-SERVICE-Electric site checks",15/2/2021 00:00:00,"244171",60,"BR0018","BRADSHAW ELECTRICAL LIMITED",1/2/2021 00:00:00,28/2/2021 00:00:00,"P11-2021"
,"LEE VALLEY CARAVAN PARK","PREMISES RELATED EXPENDITURE","BUILDING REPAIRS & MAINTENANCE","2222","P110636-SERVICE-Slam Signs",15/2/2021 00:00:00,"244383",150.1,"SL0528","SLAM SIGNS LTD",1/2/2021 00:00:00,28/2/2021 00:00:00,"P11-2021"
"P&V","RIVER LEE COUNTRY PARK","PREMISES RELATED EXPENDITURE","BUILDING REPAIRS & MAINTENANCE","2222","P110744-SERVICE-Replace Lighjts at OM&M Toilets",10/2/2021 00:00:00,"244394",265,"BR0018","BRADSHAW ELECTRICAL LIMITED",1/2/2021 00:00:00,28/2/2021 00:00:00,"P11-2021"
,"LEE VALLEY VELOPARK","PREMISES RELATED EXPENDITURE","BUILDING REPAIRS & MAINTENANCE","2222","P110482-SERVICE-Fence Repairs",8/2/2021 00:00:00,"244339",627,"KE0023","KENDALL & SONS LIMITED",1/2/2021 00:00:00,28/2/2021 00:00:00,"P11-2021"
,"LEE VALLEY VELOPARK","PREMISES RELATED EXPENDITURE","BUILDING REPAIRS & MAINTENANCE","2222","P110486-SERVICE-Battery Replacement",15/2/2021 00:00:00,"244359",316,"AD0015","ADT FIRE & SECURITY PLC",1/2/2021 00:00:00,28/2/2021 00:00:00,"P11-2021"
,"LEE VALLEY VELOPARK","PREMISES RELATED EXPENDITURE","BUILDING REPAIRS & MAINTENANCE","2222","P110542-SERVICE-Heating Pumps",28/2/2021 00:00:00,"244912",1030,"GI0137","R & P GIBBS LIMITED",1/2/2021 00:00:00,28/2/2021 00:00:00,"P11-2021"
,"LV HOCKEY AND TENNIS CENTRE","PREMISES RELATED EXPENDITURE","BUILDING REPAIRS & MAINTENANCE","2222","P109944-SERVICE-Lamps",10/2/2021 00:00:00,"243511",138.9,"IN0159","INTERNATIONAL LAMPS LTD",1/2/2021 00:00:00,28/2/2021 00:00:00,"P11-2021"
,"LEE VALLEY RIDING CENTRE","PREMISES RELATED EXPENDITURE","BUILDING REPAIRS & MAINTENANCE","2222","P110776-SERVICE-fire alarm service April - July 2020",10/2/2021 00:00:00,"244215",793.08,"AD0015","ADT FIRE & SECURITY PLC",1/2/2021 00:00:00,28/2/2021 00:00:00,"P11-2021"
,"LEE VALLEY RIDING CENTRE","PREMISES RELATED EXPENDITURE","BUILDING REPAIRS & MAINTENANCE","2222","P110761-SERVICE-ADT call out and repair for fire alarm",15/2/2021 00:00:00,"244367",380,"AD0015","ADT FIRE & SECURITY PLC",1/2/2021 00:00:00,28/2/2021 00:00:00,"P11-2021"
,"LEE VALLEY ICE CENTRE","PREMISES RELATED EXPENDITURE","BUILDING REPAIRS & MAINTENANCE","2222","P110387-SERVICE-Remedial Works",28/2/2021 00:00:00,"244918",803.59,"ST0249","STAND BY FIRE PROTECTION",1/2/2021 00:00:00,28/2/2021 00:00:00,"P11-2021"
,"LEE VALLEY ATHLETICS CENTRE","PREMISES RELATED EXPENDITURE","BUILDING REPAIRS & MAINTENANCE","2222","P110490-SERVICE-LVAC NEW SPUR",8/2/2021 00:00:00,"244172",150,"BR0018","BRADSHAW ELECTRICAL LIMITED",1/2/2021 00:00:00,28/2/2021 00:00:00,"P11-2021"
,"LEE VALLEY ATHLETICS CENTRE","PREMISES RELATED EXPENDITURE","BUILDING REPAIRS & MAINTENANCE","2222","P110647-SERVICE-INVOICE 153531 17.12.20 CALLOUT LABOUR PARTS",8/2/2021 00:00:00,"244180",160.35,"GO0221","GOLF CAR UK LIMITED",1/2/2021 00:00:00,28/2/2021 00:00:00,"P11-2021"
,"LEE VALLEY ATHLETICS CENTRE","PREMISES RELATED EXPENDITURE","BUILDING REPAIRS & MAINTENANCE","2222","P110748-SERVICE-LVAC INV 45818211 27.11.20 INTRUDER ALARM 8/6",16/2/2021 00:00:00,"244448",75,"AD0015","ADT FIRE & SECURITY PLC",1/2/2021 00:00:00,28/2/2021 00:00:00,"P11-2021"
,"LEE VALLEY ATHLETICS CENTRE","PREMISES RELATED EXPENDITURE","BUILDING REPAIRS & MAINTENANCE","2222","P110901-SERVICE-REVISED PO FOR INV 45818215 CALL OUT 10.7.20",22/2/2021 00:00:00,"244449",265.54,"AD0015","ADT FIRE & SECURITY PLC",1/2/2021 00:00:00,28/2/2021 00:00:00,"P11-2021"
,"LEE VALLEY ATHLETICS CENTRE","PREMISES RELATED EXPENDITURE","BUILDING REPAIRS & MAINTENANCE","2222","P110655-SERVICE-LVAC HAND DRIER",22/2/2021 00:00:00,"244684",190,"BR0018","BRADSHAW ELECTRICAL LIMITED",1/2/2021 00:00:00,28/2/2021 00:00:00,"P11-2021"
,"LEE VALLEY WHITE WATER CENTRE","PREMISES RELATED EXPENDITURE","BUILDING REPAIRS & MAINTENANCE","2222","P109788-SERVICE-Works as per quote 2020-194",10/2/2021 00:00:00,"244391",460.5,"GI0137","R & P GIBBS LIMITED",1/2/2021 00:00:00,28/2/2021 00:00:00,"P11-2021"
"CEO","LVLC SERVICE CHARGE","PREMISES RELATED EXPENDITURE","BUILDING REPAIRS & MAINTENANCE","2222","KENDALL & SONS LIMITED",15/2/2021 00:00:00,"243975",170,"KE0023","KENDALL & SONS LIMITED",1/2/2021 00:00:00,28/2/2021 00:00:00,"P11-2021"
"CEO","LVLC SERVICE CHARGE","PREMISES RELATED EXPENDITURE","BUILDING REPAIRS & MAINTENANCE","2222","KENDALL & SONS LIMITED",15/2/2021 00:00:00,"243975",-1874,"KE0023","KENDALL & SONS LIMITED",1/2/2021 00:00:00,28/2/2021 00:00:00,"P11-2021"
"CEO","LVLC SERVICE CHARGE","PREMISES RELATED EXPENDITURE","BUILDING REPAIRS & MAINTENANCE","2222","P110212-SERVICE-Picketts Lock Cinema Forecourt Paver Repairs",15/2/2021 00:00:00,"243975",1874,"KE0023","KENDALL & SONS LIMITED",1/2/2021 00:00:00,28/2/2021 00:00:00,"P11-2021"
"CEO","LVLC SERVICE CHARGE","PREMISES RELATED EXPENDITURE","BUILDING REPAIRS & MAINTENANCE","2222","KENDALL & SONS LIMITED",15/2/2021 00:00:00,"243975",1704,"KE0023","KENDALL & SONS LIMITED",1/2/2021 00:00:00,28/2/2021 00:00:00,"P11-2021"
"CEO","LVLC SERVICE CHARGE","PREMISES RELATED EXPENDITURE","BUILDING REPAIRS & MAINTENANCE","2222","P110921-SERVICE-Car Park Lights at LVAC",28/2/2021 00:00:00,"244686",305,"BR0018","BRADSHAW ELECTRICAL LIMITED",1/2/2021 00:00:00,28/2/2021 00:00:00,"P11-2021"
,"LEE VALLEY ATHLETICS CENTRE","PREMISES RELATED EXPENDITURE","ENGINEERING SERVICES CONTRACT","2223","P110749-SERVICE-LVAC MAINT INV 45818034 27.11.20",16/2/2021 00:00:00,"244450",379.1,"AD0015","ADT FIRE & SECURITY PLC",1/2/2021 00:00:00,28/2/2021 00:00:00,"P11-2021"
,"LEE VALLEY ATHLETICS CENTRE","PREMISES RELATED EXPENDITURE","ENGINEERING SERVICES CONTRACT","2223","P110826-SERVICE-LVAC ACCESS CONTROL MAINT 29/10/20-31/10/21",22/2/2021 00:00:00,"244672",472.63,"AD0015","ADT FIRE & SECURITY PLC",1/2/2021 00:00:00,28/2/2021 00:00:00,"P11-2021"
,"LEE VALLEY ATHLETICS CENTRE","PREMISES RELATED EXPENDITURE","ENGINEERING SERVICES CONTRACT","2223","P110825-SERVICE-LVAC INV 45581891 INTRUDER MAINT & MONITERING",22/2/2021 00:00:00,"244673",664.33,"AD0015","ADT FIRE & SECURITY PLC",1/2/2021 00:00:00,28/2/2021 00:00:00,"P11-2021"
,"LEE VALLEY ATHLETICS CENTRE","PREMISES RELATED EXPENDITURE","ENGINEERING SERVICES CONTRACT","2223","P110899-SERVICE-LVAC INV 219628",28/2/2021 00:00:00,"244884",858.16,"IN0071","INTEGRAL UK LTD",1/2/2021 00:00:00,28/2/2021 00:00:00,"P11-2021"
,"LEE VALLEY ATHLETICS CENTRE","PREMISES RELATED EXPENDITURE","ENGINEERING SERVICES CONTRACT","2223","P110899-SERVICE-LVAC INV 234693",28/2/2021 00:00:00,"244885",84,"IN0071","INTEGRAL UK LTD",1/2/2021 00:00:00,28/2/2021 00:00:00,"P11-2021"
,"LEE VALLEY ATHLETICS CENTRE","PREMISES RELATED EXPENDITURE","ENGINEERING SERVICES CONTRACT","2223","P110899-SERVICE-LVAC INV 234694",28/2/2021 00:00:00,"244886",84,"IN0071","INTEGRAL UK LTD",1/2/2021 00:00:00,28/2/2021 00:00:00,"P11-2021"
,"LEE VALLEY ATHLETICS CENTRE","PREMISES RELATED EXPENDITURE","ENGINEERING SERVICES CONTRACT","2223","P110899-SERVICE-LVAC INV 234696",28/2/2021 00:00:00,"244887",236,"IN0071","INTEGRAL UK LTD",1/2/2021 00:00:00,28/2/2021 00:00:00,"P11-2021"
,"LEE VALLEY ATHLETICS CENTRE","PREMISES RELATED EXPENDITURE","ENGINEERING SERVICES CONTRACT","2223","P110899-SERVICE-LVAC INV 234697",28/2/2021 00:00:00,"244888",160,"IN0071","INTEGRAL UK LTD",1/2/2021 00:00:00,28/2/2021 00:00:00,"P11-2021"
,"LEE VALLEY ATHLETICS CENTRE","PREMISES RELATED EXPENDITURE","ENGINEERING SERVICES CONTRACT","2223","P110899-SERVICE-LVAC INV 234698",28/2/2021 00:00:00,"244889",179,"IN0071","INTEGRAL UK LTD",1/2/2021 00:00:00,28/2/2021 00:00:00,"P11-2021"
,"LEE VALLEY WHITE WATER CENTRE","PREMISES RELATED EXPENDITURE","ENGINEERING SERVICES CONTRACT","2223","P107341-SERVICE-Pump maintenance October - March",10/2/2021 00:00:00,"244162",1530,"AM0309","AMP 5 LIMITED",1/2/2021 00:00:00,28/2/2021 00:00:00,"P11-2021"
,"LEE VALLEY WHITE WATER CENTRE","PREMISES RELATED EXPENDITURE","ENGINEERING SERVICES CONTRACT","2223","P107341-SERVICE-Pump maintenance October - March",10/2/2021 00:00:00,"244163",1530,"AM0309","AMP 5 LIMITED",1/2/2021 00:00:00,28/2/2021 00:00:00,"P11-2021"
"P&V","SOUTH AREA RANGERS","SUPPLIES AND SERVICES","FENCES/GATES ETC.","2231","P110369-SERVICE-1x Spring catch-and-keep set (2714)",9/2/2021 00:00:00,"244192",14.19,"FA0099","FARM & COUNTRY SUPPLIES LTD",1/2/2021 00:00:00,28/2/2021 00:00:00,"P11-2021"
"P&V","SOUTH AREA RANGERS","SUPPLIES AND SERVICES","FENCES/GATES ETC.","2231","P110369-SERVICE-Delivery to address below",9/2/2021 00:00:00,"244192",6.4,"FA0099","FARM & COUNTRY SUPPLIES LTD",1/2/2021 00:00:00,28/2/2021 00:00:00,"P11-2021"
"P&V","SOUTH AREA RANGERS","SUPPLIES AND SERVICES","FENCES/GATES ETC.","2231","P110369-SERVICE-1x Auto gate catch set with D-loop heavy (573",9/2/2021 00:00:00,"244192",19.84,"FA0099","FARM & COUNTRY SUPPLIES LTD",1/2/2021 00:00:00,28/2/2021 00:00:00,"P11-2021"
"P&V","SOUTH AREA RANGERS","SUPPLIES AND SERVICES","FENCES/GATES ETC.","2231","P110369-SERVICE-1x Adjustable field-gate hing set (2663)",9/2/2021 00:00:00,"244192",35.76,"FA0099","FARM & COUNTRY SUPPLIES LTD",1/2/2021 00:00:00,28/2/2021 00:00:00,"P11-2021"
"P&V","RIVER LEE COUNTRY PARK","SUPPLIES AND SERVICES","FENCES/GATES ETC.","2231","P110777-SERVICE-Height Barrier Repairs - Pindar Car Park",22/2/2021 00:00:00,"244680",350,"LW0268","LWC ENGINEERING LIMITED",1/2/2021 00:00:00,28/2/2021 00:00:00,"P11-2021"
"P&V","RIVER LEE COUNTRY PARK","SUPPLIES AND SERVICES","FENCES/GATES ETC.","2231","P110777-SERVICE-Height Barrier Repairs - Broxbourne Riverside",22/2/2021 00:00:00,"244681",350,"LW0268","LWC ENGINEERING LIMITED",1/2/2021 00:00:00,28/2/2021 00:00:00,"P11-2021"
"P&V","RIVER LEE COUNTRY PARK","SUPPLIES AND SERVICES","FENCES/GATES ETC.","2231","KENDALL & SONS LIMITED",22/2/2021 00:00:00,"244695",575,"KE0023","KENDALL & SONS LIMITED",1/2/2021 00:00:00,28/2/2021 00:00:00,"P11-2021"
"P&V","RIVER LEE COUNTRY PARK","SUPPLIES AND SERVICES","FENCES/GATES ETC.","2231","KENDALL & SONS LIMITED",22/2/2021 00:00:00,"244695",45,"KE0023","KENDALL & SONS LIMITED",1/2/2021 00:00:00,28/2/2021 00:00:00,"P11-2021"
"P&V","RIVER LEE COUNTRY PARK","SUPPLIES AND SERVICES","FENCES/GATES ETC.","2231","P110278-SERVICE-Locking Post at Cheshunt Country Walk",22/2/2021 00:00:00,"244695",620,"KE0023","KENDALL & SONS LIMITED",1/2/2021 00:00:00,28/2/2021 00:00:00,"P11-2021"
"P&V","RIVER LEE COUNTRY PARK","SUPPLIES AND SERVICES","FENCES/GATES ETC.","2231","KENDALL & SONS LIMITED",22/2/2021 00:00:00,"244695",-620,"KE0023","KENDALL & SONS LIMITED",1/2/2021 00:00:00,28/2/2021 00:00:00,"P11-2021"
"CEO","RESIDENTIAL ACCOMMODATION","EXPENDITURE FROM REPAIRS FUND","EXPENDITURE FROM REPAIRS FUND","2240","P110862-SERVICE-Bathroom Taps at 7 Picketts Lock Lane",22/2/2021 00:00:00,"244430",150,"CA0165","CASTLES",1/2/2021 00:00:00,28/2/2021 00:00:00,"P11-2021"
"CEO","RESIDENTIAL ACCOMMODATION","EXPENDITURE FROM REPAIRS FUND","EXPENDITURE FROM REPAIRS FUND","2240","P110863-SERVICE-New Sink & Window Hinges at 9 Picketts Lock L",22/2/2021 00:00:00,"244431",470,"CA0165","CASTLES",1/2/2021 00:00:00,28/2/2021 00:00:00,"P11-2021"
"CEO","RESIDENTIAL ACCOMMODATION","EXPENDITURE FROM REPAIRS FUND","EXPENDITURE FROM REPAIRS FUND","2240","P110727-SERVICE-Window Repairs at 9 Picketts Lock",15/2/2021 00:00:00,"244570",525,"WI0334","WINDOW REPAIR ENFIELD LTD",1/2/2021 00:00:00,28/2/2021 00:00:00,"P11-2021"
"CEO","RESIDENTIAL ACCOMMODATION","EXPENDITURE FROM REPAIRS FUND","EXPENDITURE FROM REPAIRS FUND","2240","P110758-SERVICE-Work on Shower at 2 The Cottage, Hayes Hill",24/2/2021 00:00:00,"244694",282.4,"KE0023","KENDALL & SONS LIMITED",1/2/2021 00:00:00,28/2/2021 00:00:00,"P11-2021"
"CEO","COMMERCIAL ACCOMMODATION","PREMISES RELATED EXPENDITURE","EAST HALE ALLOTMENTS","2261","P110730-SERVICE-Allotment Bins",9/2/2021 00:00:00,"244250",108.18,"CL0037","VEOLIA ES (UK) LTD",1/2/2021 00:00:00,28/2/2021 00:00:00,"P11-2021"
"CEO","COMMERCIAL ACCOMMODATION","PREMISES RELATED EXPENDITURE","ENERGY COSTS (ELECTRICITY)","2332","NPOWER LIMITED",15/2/2021 00:00:00,"243684",172.56,"NP0123","NPOWER LIMITED",1/2/2021 00:00:00,28/2/2021 00:00:00,"P11-2021"
"CEO","COMMERCIAL ACCOMMODATION","PREMISES RELATED EXPENDITURE","ENERGY COSTS (ELECTRICITY)","2332","E-ON NEXT ENERGY LTD",15/2/2021 00:00:00,"244116",34.01,"EO0398","E-ON NEXT ENERGY LTD",1/2/2021 00:00:00,28/2/2021 00:00:00,"P11-2021"
"CEO","COMMERCIAL ACCOMMODATION","PREMISES RELATED EXPENDITURE","ENERGY COSTS (ELECTRICITY)","2332","E-ON",28/2/2021 00:00:00,"244443",15.84,"PO0025","E-ON",1/2/2021 00:00:00,28/2/2021 00:00:00,"P11-2021"
"CEO","COMMERCIAL ACCOMMODATION","PREMISES RELATED EXPENDITURE","ENERGY COSTS (ELECTRICITY)","2332","E-ON NEXT ENERGY LTD",15/2/2021 00:00:00,"244462",-34.01,"EO0398","E-ON NEXT ENERGY LTD",1/2/2021 00:00:00,28/2/2021 00:00:00,"P11-2021"
"CEO","COMMERCIAL ACCOMMODATION","PREMISES RELATED EXPENDITURE","ENERGY COSTS (ELECTRICITY)","2332","E-ON NEXT ENERGY LTD",15/2/2021 00:00:00,"244463",-210.95,"EO0398","E-ON NEXT ENERGY LTD",1/2/2021 00:00:00,28/2/2021 00:00:00,"P11-2021"
"CEO","COMMERCIAL ACCOMMODATION","PREMISES RELATED EXPENDITURE","ENERGY COSTS (ELECTRICITY)","2332","E-ON",28/2/2021 00:00:00,"244809",27.25,"PO0025","E-ON",1/2/2021 00:00:00,28/2/2021 00:00:00,"P11-2021"
,"LEE VALLEY MARINA SPRINGFIELD","PREMISES RELATED EXPENDITURE","ENERGY COSTS (ELECTRICITY)","2332","ZEN INTERNET LTD",16/2/2021 00:00:00,"244627",38,"ZE0007","ZEN INTERNET LTD",1/2/2021 00:00:00,28/2/2021 00:00:00,"P11-2021"
,"LEE VALLEY MARINA SPRINGFIELD","PREMISES RELATED EXPENDITURE","ENERGY COSTS (ELECTRICITY)","2332","KENT COUNTY COUNCIL (KCS)",15/2/2021 00:00:00,"244651",5304.18,"KE0007","KENT COUNTY COUNCIL (KCS)",1/2/2021 00:00:00,28/2/2021 00:00:00,"P11-2021"
,"LEE VALLEY CAMPSITE","PREMISES RELATED EXPENDITURE","ENERGY COSTS (ELECTRICITY)","2332","KENT COUNTY COUNCIL (KCS)",15/2/2021 00:00:00,"244649",3705.14,"KE0007","KENT COUNTY COUNCIL (KCS)",1/2/2021 00:00:00,28/2/2021 00:00:00,"P11-2021"
,"LEE VALLEY CAMPSITE","PREMISES RELATED EXPENDITURE","ENERGY COSTS (ELECTRICITY)","2332","KENT COUNTY COUNCIL (KCS)",15/2/2021 00:00:00,"244650",5251.93,"KE0007","KENT COUNTY COUNCIL (KCS)",1/2/2021 00:00:00,28/2/2021 00:00:00,"P11-2021"
,"LEE VALLEY CARAVAN PARK","PREMISES RELATED EXPENDITURE","ENERGY COSTS (ELECTRICITY)","2332","KENT COUNTY COUNCIL (KCS)",28/2/2021 00:00:00,"244652",10523.95,"KE0007","KENT COUNTY COUNCIL (KCS)",1/2/2021 00:00:00,28/2/2021 00:00:00,"P11-2021"
"P&V","EAST INDIA DOCK AND BOW CREEK","PREMISES RELATED EXPENDITURE","ENERGY COSTS (ELECTRICITY)","2332","KENT COUNTY COUNCIL (KCS)",22/2/2021 00:00:00,"244700",83.56,"KE0007","KENT COUNTY COUNCIL (KCS)",1/2/2021 00:00:00,28/2/2021 00:00:00,"P11-2021"
"P&V","GUNPOWDER PARK","PREMISES RELATED EXPENDITURE","ENERGY COSTS (ELECTRICITY)","2332","KENT COUNTY COUNCIL (KCS)",22/2/2021 00:00:00,"244703",262.87,"KE0007","KENT COUNTY COUNCIL (KCS)",1/2/2021 00:00:00,28/2/2021 00:00:00,"P11-2021"
,"LEE VALLEY VELOPARK","PREMISES RELATED EXPENDITURE","ENERGY COSTS (ELECTRICITY)","2332","NPOWER LIMITED",16/2/2021 00:00:00,"244598",11713.13,"NP0123","NPOWER LIMITED",1/2/2021 00:00:00,28/2/2021 00:00:00,"P11-2021"
,"LEE VALLEY VELOPARK","PREMISES RELATED EXPENDITURE","ENERGY COSTS (ELECTRICITY)","2332","NPOWER LIMITED",16/2/2021 00:00:00,"244599",9925.32,"NP0123","NPOWER LIMITED",1/2/2021 00:00:00,28/2/2021 00:00:00,"P11-2021"
,"LEE VALLEY VELOPARK","PREMISES RELATED EXPENDITURE","ENERGY COSTS (ELECTRICITY)","2332","NPOWER LIMITED",22/2/2021 00:00:00,"244851",10559.44,"NP0123","NPOWER LIMITED",1/2/2021 00:00:00,28/2/2021 00:00:00,"P11-2021"
,"LEE VALLEY VELOPARK","PREMISES RELATED EXPENDITURE","ENERGY COSTS (ELECTRICITY)","2332","KENT COUNTY COUNCIL (KCS)",28/2/2021 00:00:00,"245055",52.08,"KE0007","KENT COUNTY COUNCIL (KCS)",1/2/2021 00:00:00,28/2/2021 00:00:00,"P11-2021"
,"LEE VALLEY VELOPARK","PREMISES RELATED EXPENDITURE","ENERGY COSTS (ELECTRICITY)","2332","KENT COUNTY COUNCIL (KCS)",28/2/2021 00:00:00,"245056",42.04,"KE0007","KENT COUNTY COUNCIL (KCS)",1/2/2021 00:00:00,28/2/2021 00:00:00,"P11-2021"
,"LV HOCKEY AND TENNIS CENTRE","PREMISES RELATED EXPENDITURE","ENERGY COSTS (ELECTRICITY)","2332","NPOWER LIMITED",16/2/2021 00:00:00,"244600",10907.4,"NP0123","NPOWER LIMITED",1/2/2021 00:00:00,28/2/2021 00:00:00,"P11-2021"
,"LV HOCKEY AND TENNIS CENTRE","PREMISES RELATED EXPENDITURE","ENERGY COSTS (ELECTRICITY)","2332","NPOWER LIMITED",16/2/2021 00:00:00,"244601",5756,"NP0123","NPOWER LIMITED",1/2/2021 00:00:00,28/2/2021 00:00:00,"P11-2021"
,"LV HOCKEY AND TENNIS CENTRE","PREMISES RELATED EXPENDITURE","ENERGY COSTS (ELECTRICITY)","2332","NPOWER LIMITED",22/2/2021 00:00:00,"244850",4981.83,"NP0123","NPOWER LIMITED",1/2/2021 00:00:00,28/2/2021 00:00:00,"P11-2021"
,"LEE VALLEY RIDING CENTRE","PREMISES RELATED EXPENDITURE","ENERGY COSTS (ELECTRICITY)","2332","NPOWER LIMITED",8/2/2021 00:00:00,"244369",1248.62,"NP0123","NPOWER LIMITED",1/2/2021 00:00:00,28/2/2021 00:00:00,"P11-2021"
,"LEE VALLEY RIDING CENTRE","PREMISES RELATED EXPENDITURE","ENERGY COSTS (ELECTRICITY)","2332","EDF ENERGY 1 LIMITED",28/2/2021 00:00:00,"245048",87.88,"ED0077","EDF ENERGY 1 LIMITED",1/2/2021 00:00:00,28/2/2021 00:00:00,"P11-2021"
,"LEE VALLEY ICE CENTRE","PREMISES RELATED EXPENDITURE","ENERGY COSTS (ELECTRICITY)","2332","NPOWER LIMITED",16/2/2021 00:00:00,"244596",15104.29,"NP0123","NPOWER LIMITED",1/2/2021 00:00:00,28/2/2021 00:00:00,"P11-2021"
,"LEE VALLEY ICE CENTRE","PREMISES RELATED EXPENDITURE","ENERGY COSTS (ELECTRICITY)","2332","NPOWER LIMITED",16/2/2021 00:00:00,"244597",11485.73,"NP0123","NPOWER LIMITED",1/2/2021 00:00:00,28/2/2021 00:00:00,"P11-2021"
,"LEE VALLEY ICE CENTRE","PREMISES RELATED EXPENDITURE","ENERGY COSTS (ELECTRICITY)","2332","NPOWER LIMITED",22/2/2021 00:00:00,"244849",15143.84,"NP0123","NPOWER LIMITED",1/2/2021 00:00:00,28/2/2021 00:00:00,"P11-2021"
"P&V","FORMER LV LIDO SITE","PREMISES RELATED EXPENDITURE","ENERGY COSTS (ELECTRICITY)","2332","KENT COUNTY COUNCIL (KCS)",22/2/2021 00:00:00,"244701",34.94,"KE0007","KENT COUNTY COUNCIL (KCS)",1/2/2021 00:00:00,28/2/2021 00:00:00,"P11-2021"
,"LEE VALLEY WHITE WATER CENTRE","PREMISES RELATED EXPENDITURE","ENERGY COSTS (ELECTRICITY)","2332","BRITISH GAS BUSINESS",15/2/2021 00:00:00,"244368",86.83,"BR0030","BRITISH GAS BUSINESS",1/2/2021 00:00:00,28/2/2021 00:00:00,"P11-2021"
,"LEE VALLEY WHITE WATER CENTRE","PREMISES RELATED EXPENDITURE","ENERGY COSTS (ELECTRICITY)","2332","NPOWER LIMITED",17/2/2021 00:00:00,"244602",12131.67,"NP0123","NPOWER LIMITED",1/2/2021 00:00:00,28/2/2021 00:00:00,"P11-2021"
,"LEE VALLEY WHITE WATER CENTRE","PREMISES RELATED EXPENDITURE","ENERGY COSTS (ELECTRICITY)","2332","NPOWER LIMITED",17/2/2021 00:00:00,"244603",6575.13,"NP0123","NPOWER LIMITED",1/2/2021 00:00:00,28/2/2021 00:00:00,"P11-2021"
,"LEE VALLEY WHITE WATER CENTRE","PREMISES RELATED EXPENDITURE","ENERGY COSTS (ELECTRICITY)","2332","NPOWER LIMITED",22/2/2021 00:00:00,"244852",5974.28,"NP0123","NPOWER LIMITED",1/2/2021 00:00:00,28/2/2021 00:00:00,"P11-2021"
,"LEE VALLEY WHITE WATER CENTRE","PREMISES RELATED EXPENDITURE","ENERGY COSTS (ELECTRICITY)","2332","NPOWER LIMITED",22/2/2021 00:00:00,"244857",158.81,"NP0123","NPOWER LIMITED",1/2/2021 00:00:00,28/2/2021 00:00:00,"P11-2021"
,"LEE VALLEY WHITE WATER CENTRE","PREMISES RELATED EXPENDITURE","ENERGY COSTS (ELECTRICITY)","2332","NPOWER LIMITED",28/2/2021 00:00:00,"244858",148.25,"NP0123","NPOWER LIMITED",1/2/2021 00:00:00,28/2/2021 00:00:00,"P11-2021"
,"LEE VALLEY WHITE WATER CENTRE","PREMISES RELATED EXPENDITURE","ENERGY COSTS (ELECTRICITY)","2332","NPOWER LIMITED",22/2/2021 00:00:00,"244859",156.25,"NP0123","NPOWER LIMITED",1/2/2021 00:00:00,28/2/2021 00:00:00,"P11-2021"
,"LEE VALLEY WHITE WATER CENTRE","PREMISES RELATED EXPENDITURE","ENERGY COSTS (ELECTRICITY)","2332","NPOWER LIMITED",22/2/2021 00:00:00,"244860",157.2,"NP0123","NPOWER LIMITED",1/2/2021 00:00:00,28/2/2021 00:00:00,"P11-2021"
"CEO","RESIDENTIAL ACCOMMODATION","PREMISES RELATED EXPENDITURE","ENERGY COSTS (GAS)","2333","P110844-SERVICE-The Occupiier Lee Valley Forge, Wharf Road",17/2/2021 00:00:00,"243927",19.61,"CA0006","CALOR GAS LIMITED",1/2/2021 00:00:00,28/2/2021 00:00:00,"P11-2021"
"CEO","RESIDENTIAL ACCOMMODATION","PREMISES RELATED EXPENDITURE","ENERGY COSTS (GAS)","2333","P110449-SERVICE-Gas Certificates at Dobbs Weir & Holyfield",8/2/2021 00:00:00,"243991",240,"RE0094","REACT 2 IT (BUILDING & REFURBISHMENT) LTD",1/2/2021 00:00:00,28/2/2021 00:00:00,"P11-2021"
"CEO","RESIDENTIAL ACCOMMODATION","PREMISES RELATED EXPENDITURE","ENERGY COSTS (GAS)","2333","P110860-SERVICE-Gas Certificates",24/2/2021 00:00:00,"244831",360,"RE0094","REACT 2 IT (BUILDING & REFURBISHMENT) LTD",1/2/2021 00:00:00,28/2/2021 00:00:00,"P11-2021"
"P&V","FISHERIES MANAGEMENT","PREMISES RELATED EXPENDITURE","ENERGY COSTS (GAS)","2333","P110704-SERVICE-2 x Oxygen Cylinders Size Y",8/2/2021 00:00:00,"244186",242.3,"BO0015","BOC LTD",1/2/2021 00:00:00,28/2/2021 00:00:00,"P11-2021"
,"LEE VALLEY MARINA SPRINGFIELD","PREMISES RELATED EXPENDITURE","ENERGY COSTS (GAS)","2333","KENT COUNTY COUNCIL (KCS)",15/2/2021 00:00:00,"244634",753.15,"KE0007","KENT COUNTY COUNCIL (KCS)",1/2/2021 00:00:00,28/2/2021 00:00:00,"P11-2021"
,"LEE VALLEY MARINA STANSTEAD","PREMISES RELATED EXPENDITURE","ENERGY COSTS (GAS)","2333","KENT COUNTY COUNCIL (KCS)",15/2/2021 00:00:00,"244635",123.42,"KE0007","KENT COUNTY COUNCIL (KCS)",1/2/2021 00:00:00,28/2/2021 00:00:00,"P11-2021"
,"LEE VALLEY MARINA STANSTEAD","PREMISES RELATED EXPENDITURE","ENERGY COSTS (GAS)","2333","KENT COUNTY COUNCIL (KCS)",15/2/2021 00:00:00,"244636",504.77,"KE0007","KENT COUNTY COUNCIL (KCS)",1/2/2021 00:00:00,28/2/2021 00:00:00,"P11-2021"
,"LEE VALLEY WATERWORKS CENTRE","PREMISES RELATED EXPENDITURE","ENERGY COSTS (GAS)","2333","KENT COUNTY COUNCIL (KCS)",15/2/2021 00:00:00,"244630",428.81,"KE0007","KENT COUNTY COUNCIL (KCS)",1/2/2021 00:00:00,28/2/2021 00:00:00,"P11-2021"
,"LEE VALLEY CAMPSITE","PREMISES RELATED EXPENDITURE","ENERGY COSTS (GAS)","2333","KENT COUNTY COUNCIL (KCS)",15/2/2021 00:00:00,"244632",634.12,"KE0007","KENT COUNTY COUNCIL (KCS)",1/2/2021 00:00:00,28/2/2021 00:00:00,"P11-2021"
,"LEE VALLEY CARAVAN PARK","PREMISES RELATED EXPENDITURE","ENERGY COSTS (GAS)","2333","P110779-SERVICE-Static gas tanks filled",15/2/2021 00:00:00,"244406",6275.82,"AV0327","AVANTI GAS LIMITED",1/2/2021 00:00:00,28/2/2021 00:00:00,"P11-2021"
,"LEE VALLEY CARAVAN PARK","PREMISES RELATED EXPENDITURE","ENERGY COSTS (GAS)","2333","P110953-SERVICE-Avanti Gas",28/2/2021 00:00:00,"244924",6601.67,"AV0327","AVANTI GAS LIMITED",1/2/2021 00:00:00,28/2/2021 00:00:00,"P11-2021"
"P&V","GUNPOWDER PARK","PREMISES RELATED EXPENDITURE","ENERGY COSTS (GAS)","2333","KENT COUNTY COUNCIL (KCS)",15/2/2021 00:00:00,"244631",84.95,"KE0007","KENT COUNTY COUNCIL (KCS)",1/2/2021 00:00:00,28/2/2021 00:00:00,"P11-2021"
,"LEE VALLEY RIDING CENTRE","PREMISES RELATED EXPENDITURE","ENERGY COSTS (GAS)","2333","BRITISH GAS BUSINESS",15/2/2021 00:00:00,"244591",262.41,"BR0029","BRITISH GAS BUSINESS",1/2/2021 00:00:00,28/2/2021 00:00:00,"P11-2021"
,"LEE VALLEY RIDING CENTRE","PREMISES RELATED EXPENDITURE","ENERGY COSTS (GAS)","2333","BRITISH GAS BUSINESS",15/2/2021 00:00:00,"244592",205.83,"BR0029","BRITISH GAS BUSINESS",1/2/2021 00:00:00,28/2/2021 00:00:00,"P11-2021"
,"LEE VALLEY RIDING CENTRE","PREMISES RELATED EXPENDITURE","ENERGY COSTS (GAS)","2333","BRITISH GAS BUSINESS",15/2/2021 00:00:00,"244593",250.18,"BR0029","BRITISH GAS BUSINESS",1/2/2021 00:00:00,28/2/2021 00:00:00,"P11-2021"
,"LEE VALLEY RIDING CENTRE","PREMISES RELATED EXPENDITURE","ENERGY COSTS (GAS)","2333","BRITISH GAS BUSINESS",15/2/2021 00:00:00,"244594",139.35,"BR0029","BRITISH GAS BUSINESS",1/2/2021 00:00:00,28/2/2021 00:00:00,"P11-2021"
,"LEE VALLEY RIDING CENTRE","PREMISES RELATED EXPENDITURE","ENERGY COSTS (GAS)","2333","BRITISH GAS BUSINESS",28/2/2021 00:00:00,"245046",141.08,"BR0029","BRITISH GAS BUSINESS",1/2/2021 00:00:00,28/2/2021 00:00:00,"P11-2021"
,"LV LEISURE CENTRE CAMPSITE","PREMISES RELATED EXPENDITURE","ENERGY COSTS (GAS)","2333","KENT COUNTY COUNCIL (KCS)",17/2/2021 00:00:00,"244633",1913.09,"KE0007","KENT COUNTY COUNCIL (KCS)",1/2/2021 00:00:00,28/2/2021 00:00:00,"P11-2021"
,"LEE VALLEY MARINA SPRINGFIELD","PREMISES RELATED EXPENDITURE","RENT (EXTERNAL)","2442","THAMES WATER UTILITIES LIMITED",28/2/2021 00:00:00,"245049",2618.75,"TH0020","THAMES WATER UTILITIES LIMITED-  SAVILLS",1/2/2021 00:00:00,28/2/2021 00:00:00,"P11-2021"
,"LEE VALLEY MARINA STANSTEAD","PREMISES RELATED EXPENDITURE","RENT (EXTERNAL)","2442","CANAL & RIVER TRUST",24/2/2021 00:00:00,"244830",11875,"BR0036","CANAL & RIVER TRUST",1/2/2021 00:00:00,28/2/2021 00:00:00,"P11-2021"
"P&V","YOUTH AND SCHOOLS","PREMISES RELATED EXPENDITURE","RENT (EXTERNAL)","2442","P110915-SERVICE-Abbey Famhouse office rental 1 Feb -31 March",28/2/2021 00:00:00,"244916",2217.44,"WA0108","WALTHAM ABBEY PAROCHIAL CHURCH COUNCIL",1/2/2021 00:00:00,28/2/2021 00:00:00,"P11-2021"
"P&V","NORTH AREA RANGERS","PREMISES RELATED EXPENDITURE","RENT (EXTERNAL)","2442","ROYDON PARISH COUNCIL",28/2/2021 00:00:00,"245031",1077.48,"RO0025","ROYDON PARISH COUNCIL",1/2/2021 00:00:00,28/2/2021 00:00:00,"P11-2021"
"CEO","RESIDENTIAL ACCOMMODATION","PREMISES RELATED EXPENDITURE","COUNCIL TAX","2445","LONDON BOROUGH OF WALTHAM FORE",17/2/2021 00:00:00,"244581",1027.25,"WA0005","LONDON BOROUGH OF WALTHAM FOREST",1/2/2021 00:00:00,28/2/2021 00:00:00,"P11-2021"
,"LEE VALLEY RIDING CENTRE","PREMISES RELATED EXPENDITURE","COUNCIL TAX","2445","LONDON BOROUGH OF WALTHAM FORE",15/2/2021 00:00:00,"244582",1173.54,"WA0005","LONDON BOROUGH OF WALTHAM FOREST",1/2/2021 00:00:00,28/2/2021 00:00:00,"P11-2021"
,"LEE VALLEY RIDING CENTRE","PREMISES RELATED EXPENDITURE","COUNCIL TAX","2445","LONDON BOROUGH OF WALTHAM FORE",15/2/2021 00:00:00,"244583",1173.54,"WA0005","LONDON BOROUGH OF WALTHAM FOREST",1/2/2021 00:00:00,28/2/2021 00:00:00,"P11-2021"
,"LEE VALLEY RIDING CENTRE","PREMISES RELATED EXPENDITURE","COUNCIL TAX","2445","LONDON BOROUGH OF WALTHAM FORE",15/2/2021 00:00:00,"244584",1173.54,"WA0005","LONDON BOROUGH OF WALTHAM FOREST",1/2/2021 00:00:00,28/2/2021 00:00:00,"P11-2021"
"CEO","RESIDENTIAL ACCOMMODATION","PREMISES RELATED EXPENDITURE","PROPERTY MANAGEMT/LETTING FEES","2447","P110718-SERVICE-2 Bungalow - Rent Guarantee Policy",9/2/2021 00:00:00,"243976",320,"WA0315","PAUL WALLACE LETTINGS",1/2/2021 00:00:00,28/2/2021 00:00:00,"P11-2021"
"CEO","RESIDENTIAL ACCOMMODATION","PREMISES RELATED EXPENDITURE","PROPERTY MANAGEMT/LETTING FEES","2447","P110719-SERVICE-2 Bungalow - 6 Month Management Fee",9/2/2021 00:00:00,"243977",897,"WA0315","PAUL WALLACE LETTINGS",1/2/2021 00:00:00,28/2/2021 00:00:00,"P11-2021"
"CEO","RESIDENTIAL ACCOMMODATION","PREMISES RELATED EXPENDITURE","PROPERTY MANAGEMT/LETTING FEES","2447","P109291-SERVICE-Holyfield Farmhouse Annexe Multifuel burner",22/2/2021 00:00:00,"244828",3110,"IN0202","INTERSTYLE GROUP LTD",1/2/2021 00:00:00,28/2/2021 00:00:00,"P11-2021"
,"LEE VALLEY MARINA STANSTEAD","PREMISES RELATED EXPENDITURE","WATER","2555","CASTLE WATER LIMITED",8/2/2021 00:00:00,"244402",129.76,"CA0625","CASTLE WATER LIMITED",1/2/2021 00:00:00,28/2/2021 00:00:00,"P11-2021"
,"LEE VALLEY MARINA STANSTEAD","PREMISES RELATED EXPENDITURE","WATER","2555","CASTLE WATER LIMITED",8/2/2021 00:00:00,"244402",141.97,"CA0625","CASTLE WATER LIMITED",1/2/2021 00:00:00,28/2/2021 00:00:00,"P11-2021"
,"LEE VALLEY MARINA SPRINGFIELD","PREMISES RELATED EXPENDITURE","CLEANING & DOMESTIC SUPPLIES","2666","P110624-SERVICE-To supply items as requested",15/2/2021 00:00:00,"244575",160.64,"HY0043","HYGIENE SYSTEMS LTD",1/2/2021 00:00:00,28/2/2021 00:00:00,"P11-2021"
,"LEE VALLEY MARINA SPRINGFIELD","PREMISES RELATED EXPENDITURE","CLEANING & DOMESTIC SUPPLIES","2666","P110960-SERVICE-February 2021 Site Cleaning",28/2/2021 00:00:00,"245070",892.71,"MA0015","MAYFAIR CLEANING COMPANY LIMITED",1/2/2021 00:00:00,28/2/2021 00:00:00,"P11-2021"
,"LEE VALLEY FARM HAYES HILL","PREMISES RELATED EXPENDITURE","CLEANING & DOMESTIC SUPPLIES","2666","P110652-SERVICE-Economy Foam Backed Sponge Scourer",15/2/2021 00:00:00,"244574",3.3,"HY0043","HYGIENE SYSTEMS LTD",1/2/2021 00:00:00,28/2/2021 00:00:00,"P11-2021"
,"LEE VALLEY FARM HAYES HILL","PREMISES RELATED EXPENDITURE","CLEANING & DOMESTIC SUPPLIES","2666","P110652-SERVICE-other various supplies",15/2/2021 00:00:00,"244574",80.53,"HY0043","HYGIENE SYSTEMS LTD",1/2/2021 00:00:00,28/2/2021 00:00:00,"P11-2021"
,"LEE VALLEY FARM HAYES HILL","PREMISES RELATED EXPENDITURE","CLEANING & DOMESTIC SUPPLIES","2666","P110652-SERVICE-Centrefeed Roll 2 Ply Blue",15/2/2021 00:00:00,"244574",31.64,"HY0043","HYGIENE SYSTEMS LTD",1/2/2021 00:00:00,28/2/2021 00:00:00,"P11-2021"
,"LEE VALLEY FARM HAYES HILL","PREMISES RELATED EXPENDITURE","CLEANING & DOMESTIC SUPPLIES","2666","P110652-SERVICE-Clover Stc Acidic Toilet Cleaner & Descaler",15/2/2021 00:00:00,"244574",11.02,"HY0043","HYGIENE SYSTEMS LTD",1/2/2021 00:00:00,28/2/2021 00:00:00,"P11-2021"
,"LEE VALLEY FARM HAYES HILL","PREMISES RELATED EXPENDITURE","CLEANING & DOMESTIC SUPPLIES","2666","P110652-SERVICE-Tork H3 Hand Towel Singlefold 1 Ply",15/2/2021 00:00:00,"244574",29,"HY0043","HYGIENE SYSTEMS LTD",1/2/2021 00:00:00,28/2/2021 00:00:00,"P11-2021"
,"LEE VALLEY CAMPSITE","PREMISES RELATED EXPENDITURE","CLEANING & DOMESTIC SUPPLIES","2666","P110563-SERVICE-Grit salt",8/2/2021 00:00:00,"244189",84.2,"HY0043","HYGIENE SYSTEMS LTD",1/2/2021 00:00:00,28/2/2021 00:00:00,"P11-2021"
,"LEE VALLEY CAMPSITE","PREMISES RELATED EXPENDITURE","CLEANING & DOMESTIC SUPPLIES","2666","P110400-SERVICE-Cleaning products",15/2/2021 00:00:00,"244576",8.1,"HY0043","HYGIENE SYSTEMS LTD",1/2/2021 00:00:00,28/2/2021 00:00:00,"P11-2021"
,"LEE VALLEY CARAVAN PARK","PREMISES RELATED EXPENDITURE","CLEANING & DOMESTIC SUPPLIES","2666","P110566-SERVICE-Hygeine systems",16/2/2021 00:00:00,"244190",259.56,"HY0043","HYGIENE SYSTEMS LTD",1/2/2021 00:00:00,28/2/2021 00:00:00,"P11-2021"
,"LEE VALLEY VELOPARK","PREMISES RELATED EXPENDITURE","CLEANING & DOMESTIC SUPPLIES","2666","P108449-SERVICE-Soap 19x Cases",10/2/2021 00:00:00,"244202",997.5,"BR0025","BREEZE SOUTHERN LTD",1/2/2021 00:00:00,28/2/2021 00:00:00,"P11-2021"
,"LEE VALLEY ATHLETICS CENTRE","PREMISES RELATED EXPENDITURE","CLEANING & DOMESTIC SUPPLIES","2666","P110824-SERVICE-LVAC CLEANING SUPPLIES MB",24/2/2021 00:00:00,"244835",107.38,"HY0043","HYGIENE SYSTEMS LTD",1/2/2021 00:00:00,28/2/2021 00:00:00,"P11-2021"
"P&V","LEE VALLEY FARM HOLYFIELDHALL","TRANSPORT RELATED EXPENDITURE","TRANSPORT RUNNING EXPENSES","3333","P109152-SERVICE-Various Parts",15/2/2021 00:00:00,"243986",70.43,"RW0257","R. W. CRAWFORD AGRICULTURAL MACHINERY LTD",1/2/2021 00:00:00,28/2/2021 00:00:00,"P11-2021"
"P&V","LEE VALLEY FARM HOLYFIELDHALL","TRANSPORT RELATED EXPENDITURE","TRANSPORT RUNNING EXPENSES","3333","P110809-SERVICE-Call Out",17/2/2021 00:00:00,"244009",2398.77,"OL0001","OLIVER AGRICULTURE LTD",1/2/2021 00:00:00,28/2/2021 00:00:00,"P11-2021"
"P&V","LEE VALLEY FARM HOLYFIELDHALL","TRANSPORT RELATED EXPENDITURE","TRANSPORT RUNNING EXPENSES","3333","P107087-SERVICE-Hose repairs/sundries",15/2/2021 00:00:00,"244022",108.15,"HU0003","ALLIANCE AUTOMOTIVE UK CV LIMITED T/A",1/2/2021 00:00:00,28/2/2021 00:00:00,"P11-2021"
"P&V","LEE VALLEY FARM HOLYFIELDHALL","TRANSPORT RELATED EXPENDITURE","TRANSPORT RUNNING EXPENSES","3333","P110811-SERVICE-Centre Bearing",15/2/2021 00:00:00,"244028",39.36,"BR0143","GEORGE BROWNS LTD",1/2/2021 00:00:00,28/2/2021 00:00:00,"P11-2021"
"P&V","LEE VALLEY FARM HOLYFIELDHALL","TRANSPORT RELATED EXPENDITURE","TRANSPORT RUNNING EXPENSES","3333","P110812-SERVICE-Parts",15/2/2021 00:00:00,"244152",175.32,"GR0022","GROUP COMPONENTS LIMITED",1/2/2021 00:00:00,28/2/2021 00:00:00,"P11-2021"
"P&V","LEE VALLEY FARM HOLYFIELDHALL","TRANSPORT RELATED EXPENDITURE","TRANSPORT RUNNING EXPENSES","3333","P107093-SERVICE-Tractor Spares",28/2/2021 00:00:00,"244917",125.38,"OL0059","OLIVER LANDPOWER LIMITED",1/2/2021 00:00:00,28/2/2021 00:00:00,"P11-2021"
"P&V","LEE VALLEY FARM HOLYFIELDHALL","TRANSPORT RELATED EXPENDITURE","TRANSPORT RUNNING EXPENSES","3333","P110906-SERVICE-1.5cu/m JCB Bucket",28/2/2021 00:00:00,"244922",950,"OL0059","OLIVER LANDPOWER LIMITED",1/2/2021 00:00:00,28/2/2021 00:00:00,"P11-2021"
"P&V","LEE VALLEY FARM HOLYFIELDHALL","TRANSPORT RELATED EXPENDITURE","TRANSPORT RUNNING EXPENSES","3333","P109341-SERVICE-Parts",28/2/2021 00:00:00,"245024",22.4,"BE0066","BEARINGS AND DRIVES",1/2/2021 00:00:00,28/2/2021 00:00:00,"P11-2021"
"P&V","LEE VALLEY FARM HOLYFIELDHALL","TRANSPORT RELATED EXPENDITURE","TRANSPORT RUNNING EXPENSES","3333","P109341-SERVICE-Parts",28/2/2021 00:00:00,"245025",56.11,"BE0066","BEARINGS AND DRIVES",1/2/2021 00:00:00,28/2/2021 00:00:00,"P11-2021"
"P&V","LEE VALLEY FARM HOLYFIELDHALL","TRANSPORT RELATED EXPENDITURE","TRANSPORT RUNNING EXPENSES","3333","P110935-SERVICE-Fertilizer Spreader, Test & Certificate",28/2/2021 00:00:00,"245038",297,"SC0363","SCS SPREADER & SPRAYER TESTING LTD",1/2/2021 00:00:00,28/2/2021 00:00:00,"P11-2021"
,"LV LEISURE CENTRE GOLF COURSE","TRANSPORT RELATED EXPENDITURE","TRANSPORT RUNNING EXPENSES","3333","P110836-SERVICE-two week hire charge",22/2/2021 00:00:00,"244709",425,"AN0450","ANGLIA MOWERS",1/2/2021 00:00:00,28/2/2021 00:00:00,"P11-2021"
,"LV LEISURE CENTRE GOLF COURSE","TRANSPORT RELATED EXPENDITURE","TRANSPORT RUNNING EXPENSES","3333","P110835-SERVICE-two week hire charge",22/2/2021 00:00:00,"244710",425,"AN0450","ANGLIA MOWERS",1/2/2021 00:00:00,28/2/2021 00:00:00,"P11-2021"
,"LEE VALLEY MARINA SPRINGFIELD","TRANSPORT RELATED EXPENDITURE","VEHICLE FUEL","3335","ALLSTAR BUSINESS SOLUTIONS LTD",8/2/2021 00:00:00,"244179",15.42,"AR0035","ALLSTAR BUSINESS SOLUTIONS LTD",1/2/2021 00:00:00,28/2/2021 00:00:00,"P11-2021"
,"LEE VALLEY MARINA STANSTEAD","TRANSPORT RELATED EXPENDITURE","VEHICLE FUEL","3335","ALLSTAR BUSINESS SOLUTIONS LTD",8/2/2021 00:00:00,"244178",112.38,"AR0035","ALLSTAR BUSINESS SOLUTIONS LTD",1/2/2021 00:00:00,28/2/2021 00:00:00,"P11-2021"
,"LEE VALLEY CARAVAN PARK","TRANSPORT RELATED EXPENDITURE","VEHICLE FUEL","3335","ALLSTAR BUSINESS SOLUTIONS LTD",17/2/2021 00:00:00,"244807",-2.55,"AR0035","ALLSTAR BUSINESS SOLUTIONS LTD",1/2/2021 00:00:00,28/2/2021 00:00:00,"P11-2021"
,"LEE VALLEY CARAVAN PARK","TRANSPORT RELATED EXPENDITURE","VEHICLE FUEL","3335","ALLSTAR BUSINESS SOLUTIONS LTD",17/2/2021 00:00:00,"244807",-145.01,"AR0035","ALLSTAR BUSINESS SOLUTIONS LTD",1/2/2021 00:00:00,28/2/2021 00:00:00,"P11-2021"
"P&V","NORTH AREA RANGERS","TRANSPORT RELATED EXPENDITURE","VEHICLE FUEL","3335","ALLSTAR BUSINESS SOLUTIONS LTD",8/2/2021 00:00:00,"244178",77.01,"AR0035","ALLSTAR BUSINESS SOLUTIONS LTD",1/2/2021 00:00:00,28/2/2021 00:00:00,"P11-2021"
"P&V","SOUTH AREA RANGERS","TRANSPORT RELATED EXPENDITURE","VEHICLE FUEL","3335","ALLSTAR BUSINESS SOLUTIONS LTD",8/2/2021 00:00:00,"244178",347.59,"AR0035","ALLSTAR BUSINESS SOLUTIONS LTD",1/2/2021 00:00:00,28/2/2021 00:00:00,"P11-2021"
"P&V","RIVER LEE COUNTRY PARK","TRANSPORT RELATED EXPENDITURE","VEHICLE FUEL","3335","ALLSTAR BUSINESS SOLUTIONS LTD",8/2/2021 00:00:00,"244178",407.23,"AR0035","ALLSTAR BUSINESS SOLUTIONS LTD",1/2/2021 00:00:00,28/2/2021 00:00:00,"P11-2021"
"P&V","RIVER LEE COUNTRY PARK","TRANSPORT RELATED EXPENDITURE","VEHICLE FUEL","3335","ALLSTAR BUSINESS SOLUTIONS LTD",8/2/2021 00:00:00,"244178",194.81,"AR0035","ALLSTAR BUSINESS SOLUTIONS LTD",1/2/2021 00:00:00,28/2/2021 00:00:00,"P11-2021"
"P&V","RIVER LEE COUNTRY PARK","TRANSPORT RELATED EXPENDITURE","VEHICLE REPAIRS & MAINTENANCE","3338","GATES HARLOW",8/2/2021 00:00:00,"244384",54.85,"GA0165","GATES HARLOW",1/2/2021 00:00:00,28/2/2021 00:00:00,"P11-2021"
"P&V","RIVER LEE COUNTRY PARK","TRANSPORT RELATED EXPENDITURE","VEHICLE REPAIRS & MAINTENANCE","3338","GATES HARLOW",8/2/2021 00:00:00,"244384",-179.2,"GA0165","GATES HARLOW",1/2/2021 00:00:00,28/2/2021 00:00:00,"P11-2021"
"P&V","RIVER LEE COUNTRY PARK","TRANSPORT RELATED EXPENDITURE","VEHICLE REPAIRS & MAINTENANCE","3338","P110062-SERVICE-Service and MOT GL16 WJZ - Transit Tipper",8/2/2021 00:00:00,"244384",179.2,"GA0165","GATES HARLOW",1/2/2021 00:00:00,28/2/2021 00:00:00,"P11-2021"
"P&V","RIVER LEE COUNTRY PARK","TRANSPORT RELATED EXPENDITURE","VEHICLE REPAIRS & MAINTENANCE","3338","GATES HARLOW",8/2/2021 00:00:00,"244384",124.35,"GA0165","GATES HARLOW",1/2/2021 00:00:00,28/2/2021 00:00:00,"P11-2021"
,"LEE VALLEY RIDING CENTRE","TRANSPORT RELATED EXPENDITURE","VEHICLE REPAIRS & MAINTENANCE","3338","P110914-SERVICE-New battery",24/2/2021 00:00:00,"244690",72,"AP0245","APS LIMITED",1/2/2021 00:00:00,28/2/2021 00:00:00,"P11-2021"
,"LEE VALLEY RIDING CENTRE","TRANSPORT RELATED EXPENDITURE","VEHICLE REPAIRS & MAINTENANCE","3338","P110914-SERVICE-labour",24/2/2021 00:00:00,"244690",54,"AP0245","APS LIMITED",1/2/2021 00:00:00,28/2/2021 00:00:00,"P11-2021"
,"LEE VALLEY CAMPSITE","TRANSPORT RELATED EXPENDITURE","LEASED VEHICLES","3401","P110772-SERVICE-Vehiclel Hire",24/2/2021 00:00:00,"244901",541.67,"DE0311","DELXPRESS LTD",1/2/2021 00:00:00,28/2/2021 00:00:00,"P11-2021"
,"LV LEISURE CENTRE CAMPSITE","TRANSPORT RELATED EXPENDITURE","LEASED VEHICLES","3401","P110771-SERVICE-Van hire",24/2/2021 00:00:00,"244902",541.67,"DE0311","DELXPRESS LTD",1/2/2021 00:00:00,28/2/2021 00:00:00,"P11-2021"
"P&V","MYDDELTON HOUSE","SUPPLIES AND SERVICES","EQUIPMENT & MATERIALS","4111","P110729-SERVICE-Repair Waste Pipe in Bungalow",8/2/2021 00:00:00,"244411",128,"GI0137","R & P GIBBS LIMITED",1/2/2021 00:00:00,28/2/2021 00:00:00,"P11-2021"
"P&V","FISHERIES MANAGEMENT","SUPPLIES AND SERVICES","EQUIPMENT & MATERIALS","4111","P110556-SERVICE-2 x Toner",8/2/2021 00:00:00,"244010",47.3,"MO0027","MOBILE STATIONERY & PRINTING CENTRE LTD",1/2/2021 00:00:00,28/2/2021 00:00:00,"P11-2021"
"P&V","FISHERIES MANAGEMENT","SUPPLIES AND SERVICES","EQUIPMENT & MATERIALS","4111","P110598-SERVICE-Black Toner",8/2/2021 00:00:00,"244136",45.16,"MO0027","MOBILE STATIONERY & PRINTING CENTRE LTD",1/2/2021 00:00:00,28/2/2021 00:00:00,"P11-2021"
"P&V","FISHERIES MANAGEMENT","SUPPLIES AND SERVICES","EQUIPMENT & MATERIALS","4111","P110598-SERVICE-5 x reams Paper",8/2/2021 00:00:00,"244136",24.23,"MO0027","MOBILE STATIONERY & PRINTING CENTRE LTD",1/2/2021 00:00:00,28/2/2021 00:00:00,"P11-2021"
,"STANSTEAD RECHARGEABLE WORKS","SUPPLIES AND SERVICES","EQUIPMENT & MATERIALS","4111","P110459-SERVICE-blacking",8/2/2021 00:00:00,"244242",848.4,"MA0008","AXALTA COATING SYSTEMS HUTHWAITE UK LTD",1/2/2021 00:00:00,28/2/2021 00:00:00,"P11-2021"
,"LEE VALLEY FARM HAYES HILL","SUPPLIES AND SERVICES","EQUIPMENT & MATERIALS","4111","P110762-SERVICE-Grit salt",22/2/2021 00:00:00,"244579",98.85,"SE0285","SELCO BUILDERS WAREHOUSE",1/2/2021 00:00:00,28/2/2021 00:00:00,"P11-2021"
,"LEE VALLEY CAMPSITE","SUPPLIES AND SERVICES","EQUIPMENT & MATERIALS","4111","P110642-SERVICE-sign",15/2/2021 00:00:00,"244383",190.4,"SL0528","SLAM SIGNS LTD",1/2/2021 00:00:00,28/2/2021 00:00:00,"P11-2021"
,"LEE VALLEY CAMPSITE","SUPPLIES AND SERVICES","EQUIPMENT & MATERIALS","4111","P110804-SERVICE-Painting supplies",16/2/2021 00:00:00,"244626",134.02,"BQ0164","TRADE UK ACCOUNT",1/2/2021 00:00:00,28/2/2021 00:00:00,"P11-2021"
,"LEE VALLEY CARAVAN PARK","SUPPLIES AND SERVICES","EQUIPMENT & MATERIALS","4111","P109798-SERVICE-replacement window",10/2/2021 00:00:00,"244185",225,"PI0333","PIONEER CARAVANS",1/2/2021 00:00:00,28/2/2021 00:00:00,"P11-2021"
,"LEE VALLEY CARAVAN PARK","SUPPLIES AND SERVICES","EQUIPMENT & MATERIALS","4111","P110781-SERVICE-Unblocked foul line",16/2/2021 00:00:00,"244232",280,"CO0550","CONVERT WATER LTD",1/2/2021 00:00:00,28/2/2021 00:00:00,"P11-2021"
,"LEE VALLEY CARAVAN PARK","SUPPLIES AND SERVICES","EQUIPMENT & MATERIALS","4111","P110865-SERVICE-Remedial Elec Works",22/2/2021 00:00:00,"244446",2515,"BR0018","BRADSHAW ELECTRICAL LIMITED",1/2/2021 00:00:00,28/2/2021 00:00:00,"P11-2021"
,"LEE VALLEY CARAVAN PARK","SUPPLIES AND SERVICES","EQUIPMENT & MATERIALS","4111","P110859-SERVICE-Gas leak plot 90",28/2/2021 00:00:00,"244878",70,"SO0400","SOUTHERN GREEN SERVICES LIMITED",1/2/2021 00:00:00,28/2/2021 00:00:00,"P11-2021"
,"LEE VALLEY CARAVAN PARK","SUPPLIES AND SERVICES","EQUIPMENT & MATERIALS","4111","P110879-SERVICE-Type one gravel",28/2/2021 00:00:00,"244929",218.5,"LE0012","LEASIDE TIMBER & BUILDERS MERCHANTS LTD",1/2/2021 00:00:00,28/2/2021 00:00:00,"P11-2021"
"P&V","NORTH AREA RANGERS","SUPPLIES AND SERVICES","EQUIPMENT & MATERIALS","4111","P107157-SERVICE-Equipment & Materials as and when required",8/2/2021 00:00:00,"244374",37.8,"JW0004","J & W FENCING LIMITED",1/2/2021 00:00:00,28/2/2021 00:00:00,"P11-2021"
"P&V","ABBEY GARDENS","SUPPLIES AND SERVICES","EQUIPMENT & MATERIALS","4111","P107156-SERVICE-Equipment & Materials as and when required",15/2/2021 00:00:00,"244643",45.04,"JE0011","SAINT-GOBAIN BUILDING DISTRIBUTION",1/2/2021 00:00:00,28/2/2021 00:00:00,"P11-2021"
"P&V","RIVER LEE COUNTRY PARK","SUPPLIES AND SERVICES","EQUIPMENT & MATERIALS","4111","P109128-SERVICE-DELIVERY TO ADDRESS BELOW",8/2/2021 00:00:00,"242232",108,"ST0041","BROXAP LTD",1/2/2021 00:00:00,28/2/2021 00:00:00,"P11-2021"
"P&V","RIVER LEE COUNTRY PARK","SUPPLIES AND SERVICES","EQUIPMENT & MATERIALS","4111","P109128-SERVICE-1x Penwortham Hard Wood Iroko Root Fixed Benc",8/2/2021 00:00:00,"242232",552,"ST0041","BROXAP LTD",1/2/2021 00:00:00,28/2/2021 00:00:00,"P11-2021"
"P&V","RIVER LEE COUNTRY PARK","SUPPLIES AND SERVICES","EQUIPMENT & MATERIALS","4111","P109128-SERVICE-2x Mild Steel Removable Socket",8/2/2021 00:00:00,"242232",170,"ST0041","BROXAP LTD",1/2/2021 00:00:00,28/2/2021 00:00:00,"P11-2021"
"P&V","RIVER LEE COUNTRY PARK","SUPPLIES AND SERVICES","EQUIPMENT & MATERIALS","4111","P109128-SERVICE-1x Penwortham Hard Wood Iroko Root Fixed Benc",8/2/2021 00:00:00,"244237",-552,"ST0041","BROXAP LTD",1/2/2021 00:00:00,28/2/2021 00:00:00,"P11-2021"
"P&V","RIVER LEE COUNTRY PARK","SUPPLIES AND SERVICES","EQUIPMENT & MATERIALS","4111","P109128-SERVICE-1x Penwortham Hard Wood Iroko Root Fixed Benc",22/2/2021 00:00:00,"244677",552,"ST0041","BROXAP LTD",1/2/2021 00:00:00,28/2/2021 00:00:00,"P11-2021"
"P&V","RIVER LEE COUNTRY PARK","SUPPLIES AND SERVICES","EQUIPMENT & MATERIALS","4111","P110962-SERVICE-1x Pack of Screws 100mm - Box 100",28/2/2021 00:00:00,"245058",13.47,"JE0011","SAINT-GOBAIN BUILDING DISTRIBUTION",1/2/2021 00:00:00,28/2/2021 00:00:00,"P11-2021"
"P&V","RIVER LEE COUNTRY PARK","SUPPLIES AND SERVICES","EQUIPMENT & MATERIALS","4111","P110962-SERVICE-1x Pack of Screws 80mm - Box 100",28/2/2021 00:00:00,"245058",11.57,"JE0011","SAINT-GOBAIN BUILDING DISTRIBUTION",1/2/2021 00:00:00,28/2/2021 00:00:00,"P11-2021"
"P&V","RIVER LEE COUNTRY PARK","SUPPLIES AND SERVICES","EQUIPMENT & MATERIALS","4111","P110962-SERVICE-5x Handsaw",28/2/2021 00:00:00,"245058",50,"JE0011","SAINT-GOBAIN BUILDING DISTRIBUTION",1/2/2021 00:00:00,28/2/2021 00:00:00,"P11-2021"
"P&V","RIVER LEE COUNTRY PARK","SUPPLIES AND SERVICES","EQUIPMENT & MATERIALS","4111","P110962-SERVICE-2x Pack of Gloves",28/2/2021 00:00:00,"245058",24.9,"JE0011","SAINT-GOBAIN BUILDING DISTRIBUTION",1/2/2021 00:00:00,28/2/2021 00:00:00,"P11-2021"
"P&V","RIVER LEE COUNTRY PARK","SUPPLIES AND SERVICES","EQUIPMENT & MATERIALS","4111","P110962-SERVICE-6x White Rock Salt",28/2/2021 00:00:00,"245059",41.88,"JE0011","SAINT-GOBAIN BUILDING DISTRIBUTION",1/2/2021 00:00:00,28/2/2021 00:00:00,"P11-2021"
"P&V","BIODIVERSITY ACTION PLAN","SUPPLIES AND SERVICES","EQUIPMENT & MATERIALS","4111","P110680-SERVICE-2 x 25kg Bags of Kiln Dried Sand",28/2/2021 00:00:00,"245057",9.16,"JE0011","SAINT-GOBAIN BUILDING DISTRIBUTION",1/2/2021 00:00:00,28/2/2021 00:00:00,"P11-2021"
"P&V","EVENTS MANAGEMENT (PR)","SUPPLIES AND SERVICES","EQUIPMENT & MATERIALS","4111","P110635-SERVICE-3 x Fire extinguisher replacements",10/2/2021 00:00:00,"244181",109.12,"TJ0009","T.J.FIRE & SECURITY",1/2/2021 00:00:00,28/2/2021 00:00:00,"P11-2021"
"P&V","EVENTS MANAGEMENT (PR)","SUPPLIES AND SERVICES","EQUIPMENT & MATERIALS","4111","P110635-SERVICE-Sundry items",10/2/2021 00:00:00,"244181",71.98,"TJ0009","T.J.FIRE & SECURITY",1/2/2021 00:00:00,28/2/2021 00:00:00,"P11-2021"
,"LEE VALLEY VELOPARK","SUPPLIES AND SERVICES","EQUIPMENT & MATERIALS","4111","P110793-SERVICE-Equipment & Materials",22/2/2021 00:00:00,"244156",97.05,"SC0057","SCREWFIX DIRECT LTD",1/2/2021 00:00:00,28/2/2021 00:00:00,"P11-2021"
,"LEE VALLEY VELOPARK","SUPPLIES AND SERVICES","EQUIPMENT & MATERIALS","4111","P110793-SERVICE-Equipment & Materials",22/2/2021 00:00:00,"244157",12.49,"SC0057","SCREWFIX DIRECT LTD",1/2/2021 00:00:00,28/2/2021 00:00:00,"P11-2021"
,"LEE VALLEY VELOPARK","SUPPLIES AND SERVICES","EQUIPMENT & MATERIALS","4111","P110793-SERVICE-Equipment & Materials",22/2/2021 00:00:00,"244158",4.41,"SC0057","SCREWFIX DIRECT LTD",1/2/2021 00:00:00,28/2/2021 00:00:00,"P11-2021"
,"LEE VALLEY VELOPARK","SUPPLIES AND SERVICES","EQUIPMENT & MATERIALS","4111","P110794-SERVICE-Suregas Rental",15/2/2021 00:00:00,"244198",51.3,"BO0015","BOC LTD",1/2/2021 00:00:00,28/2/2021 00:00:00,"P11-2021"
,"LEE VALLEY VELOPARK","SUPPLIES AND SERVICES","EQUIPMENT & MATERIALS","4111","P110793-SERVICE-Equipment & Materials",22/2/2021 00:00:00,"244239",-37.49,"SC0057","SCREWFIX DIRECT LTD",1/2/2021 00:00:00,28/2/2021 00:00:00,"P11-2021"
,"LEE VALLEY VELOPARK","SUPPLIES AND SERVICES","EQUIPMENT & MATERIALS","4111","P110793-SERVICE-Equipment & Materials",22/2/2021 00:00:00,"244240",29.16,"SC0057","SCREWFIX DIRECT LTD",1/2/2021 00:00:00,28/2/2021 00:00:00,"P11-2021"
,"LEE VALLEY VELOPARK","SUPPLIES AND SERVICES","EQUIPMENT & MATERIALS","4111","P110847-SERVICE-Equipment",22/2/2021 00:00:00,"244372",42.52,"CI0033","CITY ELECTRICAL FACTORS LTD",1/2/2021 00:00:00,28/2/2021 00:00:00,"P11-2021"
,"LEE VALLEY VELOPARK","SUPPLIES AND SERVICES","EQUIPMENT & MATERIALS","4111","P110793-SERVICE-Equipment & Materials",22/2/2021 00:00:00,"244405",23.48,"SC0057","SCREWFIX DIRECT LTD",1/2/2021 00:00:00,28/2/2021 00:00:00,"P11-2021"
,"LEE VALLEY VELOPARK","SUPPLIES AND SERVICES","EQUIPMENT & MATERIALS","4111","P110883-SERVICE-Equipment & Materials",28/2/2021 00:00:00,"244424",134.93,"SC0057","SCREWFIX DIRECT LTD",1/2/2021 00:00:00,28/2/2021 00:00:00,"P11-2021"
,"LEE VALLEY VELOPARK","SUPPLIES AND SERVICES","EQUIPMENT & MATERIALS","4111","P110883-SERVICE-Equipment & Materials",28/2/2021 00:00:00,"244425",-14.66,"SC0057","SCREWFIX DIRECT LTD",1/2/2021 00:00:00,28/2/2021 00:00:00,"P11-2021"
,"LEE VALLEY VELOPARK","SUPPLIES AND SERVICES","EQUIPMENT & MATERIALS","4111","P110883-SERVICE-Equipment & Materials",28/2/2021 00:00:00,"244426",16.66,"SC0057","SCREWFIX DIRECT LTD",1/2/2021 00:00:00,28/2/2021 00:00:00,"P11-2021"
,"LEE VALLEY VELOPARK","SUPPLIES AND SERVICES","EQUIPMENT & MATERIALS","4111","P110883-SERVICE-Equipment & Materials",28/2/2021 00:00:00,"244606",177.63,"SC0057","SCREWFIX DIRECT LTD",1/2/2021 00:00:00,28/2/2021 00:00:00,"P11-2021"
,"LV HOCKEY AND TENNIS CENTRE","SUPPLIES AND SERVICES","EQUIPMENT & MATERIALS","4111","P110795-SERVICE-Suregas Rental",15/2/2021 00:00:00,"244199",16.8,"BO0015","BOC LTD",1/2/2021 00:00:00,28/2/2021 00:00:00,"P11-2021"
"P&V","THREE MILLS","SUPPLIES AND SERVICES","EQUIPMENT & MATERIALS","4111","P110010-SERVICE-Service and Replace Trampoline Springs",15/2/2021 00:00:00,"244611",241.5,"AR0291","ARD PLAYGROUNDS",1/2/2021 00:00:00,28/2/2021 00:00:00,"P11-2021"
"P&V","THREE MILLS","SUPPLIES AND SERVICES","EQUIPMENT & MATERIALS","4111","P110010-SERVICE-2x Maypole Swing Seats",15/2/2021 00:00:00,"244611",337,"AR0291","ARD PLAYGROUNDS",1/2/2021 00:00:00,28/2/2021 00:00:00,"P11-2021"
,"LEE VALLEY RIDING CENTRE","SUPPLIES AND SERVICES","EQUIPMENT & MATERIALS","4111","P110496-SERVICE-udder cream",3/2/2021 00:00:00,"244119",50.4,"JE0001","B JENKINSON & SONS LTD",1/2/2021 00:00:00,28/2/2021 00:00:00,"P11-2021"
,"LEE VALLEY RIDING CENTRE","SUPPLIES AND SERVICES","EQUIPMENT & MATERIALS","4111","P110496-SERVICE-salt licks",3/2/2021 00:00:00,"244119",105,"JE0001","B JENKINSON & SONS LTD",1/2/2021 00:00:00,28/2/2021 00:00:00,"P11-2021"
,"LEE VALLEY RIDING CENTRE","SUPPLIES AND SERVICES","EQUIPMENT & MATERIALS","4111","P110496-SERVICE-mane and tail spray",8/2/2021 00:00:00,"244205",37.55,"JE0001","B JENKINSON & SONS LTD",1/2/2021 00:00:00,28/2/2021 00:00:00,"P11-2021"
,"LEE VALLEY RIDING CENTRE","SUPPLIES AND SERVICES","EQUIPMENT & MATERIALS","4111","P110496-SERVICE-yard boots",8/2/2021 00:00:00,"244205",98.4,"JE0001","B JENKINSON & SONS LTD",1/2/2021 00:00:00,28/2/2021 00:00:00,"P11-2021"
,"LEE VALLEY RIDING CENTRE","SUPPLIES AND SERVICES","EQUIPMENT & MATERIALS","4111","P110496-SERVICE-salt licks",8/2/2021 00:00:00,"244205",80.5,"JE0001","B JENKINSON & SONS LTD",1/2/2021 00:00:00,28/2/2021 00:00:00,"P11-2021"
,"LEE VALLEY RIDING CENTRE","SUPPLIES AND SERVICES","EQUIPMENT & MATERIALS","4111","P110496-SERVICE-udder cream",8/2/2021 00:00:00,"244205",33.6,"JE0001","B JENKINSON & SONS LTD",1/2/2021 00:00:00,28/2/2021 00:00:00,"P11-2021"
,"LEE VALLEY RIDING CENTRE","SUPPLIES AND SERVICES","EQUIPMENT & MATERIALS","4111","P110595-SERVICE-Horse Zara",15/2/2021 00:00:00,"244563",5500,"DR0028","HARVEY DREA",1/2/2021 00:00:00,28/2/2021 00:00:00,"P11-2021"
,"LEE VALLEY RIDING CENTRE","SUPPLIES AND SERVICES","EQUIPMENT & MATERIALS","4111","P110595-SERVICE-Horse Jingle",15/2/2021 00:00:00,"244563",5500,"DR0028","HARVEY DREA",1/2/2021 00:00:00,28/2/2021 00:00:00,"P11-2021"
,"LEE VALLEY RIDING CENTRE","SUPPLIES AND SERVICES","EQUIPMENT & MATERIALS","4111","P110595-SERVICE-Horse Harvey",15/2/2021 00:00:00,"244563",5500,"DR0028","HARVEY DREA",1/2/2021 00:00:00,28/2/2021 00:00:00,"P11-2021"
,"LEE VALLEY RIDING CENTRE","SUPPLIES AND SERVICES","EQUIPMENT & MATERIALS","4111","P110595-SERVICE-Horse Piper",15/2/2021 00:00:00,"244563",5500,"DR0028","HARVEY DREA",1/2/2021 00:00:00,28/2/2021 00:00:00,"P11-2021"
,"LEE VALLEY RIDING CENTRE","SUPPLIES AND SERVICES","EQUIPMENT & MATERIALS","4111","P110849-SERVICE-rug detergent x 4 rug reproof x 1",22/2/2021 00:00:00,"244823",312.88,"JL0014","JLA LIMITED",1/2/2021 00:00:00,28/2/2021 00:00:00,"P11-2021"
,"LEE VALLEY ICE CENTRE","SUPPLIES AND SERVICES","EQUIPMENT & MATERIALS","4111","P110737-SERVICE-Install Two New Cameras",8/2/2021 00:00:00,"244145",480,"RV0035","RVTV SECURITY LTD",1/2/2021 00:00:00,28/2/2021 00:00:00,"P11-2021"
,"LV ICE CENTRE CATERING","SUPPLIES AND SERVICES","EQUIPMENT & MATERIALS","4111","P110827-SERVICE-Coca-cola Draft/Ven Machines",22/2/2021 00:00:00,"244196",33.33,"CO0045","COCA COLA EUROPEAN PARTNERS GREAT BRITAIN LTD",1/2/2021 00:00:00,28/2/2021 00:00:00,"P11-2021"
,"LV ICE CENTRE CATERING","SUPPLIES AND SERVICES","EQUIPMENT & MATERIALS","4111","P110828-SERVICE-Suregas",22/2/2021 00:00:00,"244200",35.4,"BO0015","BOC LTD",1/2/2021 00:00:00,28/2/2021 00:00:00,"P11-2021"
,"LV LEISURE CENTRE GOLF COURSE","SUPPLIES AND SERVICES","EQUIPMENT & MATERIALS","4111","P110504-SERVICE-10 x 25kg 20-0-7 fertilser",8/2/2021 00:00:00,"244221",250,"MR0420","MR AMENITY LTD",1/2/2021 00:00:00,28/2/2021 00:00:00,"P11-2021"
,"LV LEISURE CENTRE GOLF COURSE","SUPPLIES AND SERVICES","EQUIPMENT & MATERIALS","4111","P110502-SERVICE-fungicide",8/2/2021 00:00:00,"244222",550,"MR0420","MR AMENITY LTD",1/2/2021 00:00:00,28/2/2021 00:00:00,"P11-2021"
,"LV LEISURE CENTRE GOLF COURSE","SUPPLIES AND SERVICES","EQUIPMENT & MATERIALS","4111","P107155-SERVICE-Mower Parts",28/2/2021 00:00:00,"244903",-580.92,"LE0279","REESINK TURFCARE UK LIMITED",1/2/2021 00:00:00,28/2/2021 00:00:00,"P11-2021"
,"LEE VALLEY CARAVAN PARK","SUPPLIES AND SERVICES","EQUIPMENT MAINTENANCE","4112","P110857-SERVICE-Gas regulator replaced",28/2/2021 00:00:00,"244877",285,"SO0400","SOUTHERN GREEN SERVICES LIMITED",1/2/2021 00:00:00,28/2/2021 00:00:00,"P11-2021"
"P&V","RIVER LEE COUNTRY PARK","SUPPLIES AND SERVICES","EQUIPMENT MAINTENANCE","4112","P110607-SERVICE-Chainsaw Repairs",15/2/2021 00:00:00,"244595",27.75,"DO0027","ERNEST DOE & SONS LTD",1/2/2021 00:00:00,28/2/2021 00:00:00,"P11-2021"
"R&B","INFORMATION TECHNOLOGY","SUPPLIES AND SERVICES","IT CORE SYSTEMS","4113","P110937-SERVICE-EFin DBA Services",28/2/2021 00:00:00,"237926",554.54,"CE0021","ADVANCED BUSINESS SOLUTIONS",1/2/2021 00:00:00,28/2/2021 00:00:00,"P11-2021"
"R&B","INFORMATION TECHNOLOGY","SUPPLIES AND SERVICES","IT CORE SYSTEMS","4113","P110937-SERVICE-Xcel Download Maintenance",28/2/2021 00:00:00,"237926",554.54,"CE0021","ADVANCED BUSINESS SOLUTIONS",1/2/2021 00:00:00,28/2/2021 00:00:00,"P11-2021"
"R&B","INFORMATION TECHNOLOGY","SUPPLIES AND SERVICES","IT CORE SYSTEMS","4113","P110937-SERVICE-Collaborative planning",28/2/2021 00:00:00,"237926",546.8,"CE0021","ADVANCED BUSINESS SOLUTIONS",1/2/2021 00:00:00,28/2/2021 00:00:00,"P11-2021"
"R&B","INFORMATION TECHNOLOGY","SUPPLIES AND SERVICES","IT CORE SYSTEMS","4113","P110937-SERVICE-Xcel Upload Maintenance",28/2/2021 00:00:00,"237926",554.54,"CE0021","ADVANCED BUSINESS SOLUTIONS",1/2/2021 00:00:00,28/2/2021 00:00:00,"P11-2021"
"R&B","INFORMATION TECHNOLOGY","SUPPLIES AND SERVICES","IT CORE SYSTEMS","4113","P110937-SERVICE-V1 Login Data Mapping",28/2/2021 00:00:00,"237926",546.8,"CE0021","ADVANCED BUSINESS SOLUTIONS",1/2/2021 00:00:00,28/2/2021 00:00:00,"P11-2021"
"R&B","INFORMATION TECHNOLOGY","SUPPLIES AND SERVICES","IT CORE SYSTEMS","4113","P110937-SERVICE-Paperclip Maintenance",28/2/2021 00:00:00,"237926",554.54,"CE0021","ADVANCED BUSINESS SOLUTIONS",1/2/2021 00:00:00,28/2/2021 00:00:00,"P11-2021"
"R&B","INFORMATION TECHNOLOGY","SUPPLIES AND SERVICES","IT CORE SYSTEMS","4113","P110937-SERVICE-Collaborative Interface Broker",28/2/2021 00:00:00,"237926",554.54,"CE0021","ADVANCED BUSINESS SOLUTIONS",1/2/2021 00:00:00,28/2/2021 00:00:00,"P11-2021"
"R&B","INFORMATION TECHNOLOGY","SUPPLIES AND SERVICES","IT CORE SYSTEMS","4113","P110937-SERVICE-SAP Business Objectives Enterprise QRA",28/2/2021 00:00:00,"237926",554.54,"CE0021","ADVANCED BUSINESS SOLUTIONS",1/2/2021 00:00:00,28/2/2021 00:00:00,"P11-2021"
"R&B","INFORMATION TECHNOLOGY","SUPPLIES AND SERVICES","IT CORE SYSTEMS","4113","P110937-SERVICE-Document imaging Maintenance",28/2/2021 00:00:00,"237926",554.54,"CE0021","ADVANCED BUSINESS SOLUTIONS",1/2/2021 00:00:00,28/2/2021 00:00:00,"P11-2021"
"R&B","INFORMATION TECHNOLOGY","SUPPLIES AND SERVICES","IT CORE SYSTEMS","4113","P110937-SERVICE-Web Chart of Accounts",28/2/2021 00:00:00,"237926",554.54,"CE0021","ADVANCED BUSINESS SOLUTIONS",1/2/2021 00:00:00,28/2/2021 00:00:00,"P11-2021"
"R&B","INFORMATION TECHNOLOGY","SUPPLIES AND SERVICES","IT CORE SYSTEMS","4113","P110934-SERVICE-Business Tax Portal 20/21",28/2/2021 00:00:00,"238388",1087.8,"CE0021","ADVANCED BUSINESS SOLUTIONS",1/2/2021 00:00:00,28/2/2021 00:00:00,"P11-2021"
"R&B","INFORMATION TECHNOLOGY","SUPPLIES AND SERVICES","IT CORE SYSTEMS","4113","P110898-SERVICE-Payware Ocuis POS client monthly service fee",22/2/2021 00:00:00,"244708",351,"CO0440","VERIFONE SERVICES UK & IRELAND LTD",1/2/2021 00:00:00,28/2/2021 00:00:00,"P11-2021"
"R&B","INFORMATION TECHNOLOGY","SUPPLIES AND SERVICES","IT CORE SYSTEMS","4113","P110964-SERVICE-Payroll Hosting  March 21",28/2/2021 00:00:00,"245032",516.68,"PA0453","PAYROLL BUSINESS SOLUTIONS LTD",1/2/2021 00:00:00,28/2/2021 00:00:00,"P11-2021"
"R&B","INFORMATION TECHNOLOGY","SUPPLIES AND SERVICES","IT NETWORK & TELECOMS COSTS","4114","P107345-SERVICE-.Monthly Service & Calls 20/21",16/2/2021 00:00:00,"244174",145.29,"FR0131","VOICEFLEX LTD",1/2/2021 00:00:00,28/2/2021 00:00:00,"P11-2021"
"R&B","INFORMATION TECHNOLOGY","SUPPLIES AND SERVICES","IT NETWORK & TELECOMS COSTS","4114","P110281-SERVICE-MPLS lines all sites Dec 2020",16/2/2021 00:00:00,"244427",-863.7,"PP0200","PPSNET LIMITED",1/2/2021 00:00:00,28/2/2021 00:00:00,"P11-2021"
"R&B","INFORMATION TECHNOLOGY","SUPPLIES AND SERVICES","IT NETWORK & TELECOMS COSTS","4114","P110832-SERVICE-MPLS All sites Feb 21",16/2/2021 00:00:00,"244428",13651.17,"PP0200","PPSNET LIMITED",1/2/2021 00:00:00,28/2/2021 00:00:00,"P11-2021"
"P&V","FISHERIES MANAGEMENT","SUPPLIES AND SERVICES","EQUIPMENT HIRE","4115","P108092-SERVICE-44 weeks hire at Abbotts Lake, Marsh Lane, SG",15/2/2021 00:00:00,"244440",92,"TO0092","TOILETS+ LTD",1/2/2021 00:00:00,28/2/2021 00:00:00,"P11-2021"
"P&V","MYDDELTON HOUSE","SUPPLIES AND SERVICES","IT HARDWARE & SOFTWARE COSTS","4116","ZEN INTERNET LTD",16/2/2021 00:00:00,"244607",42,"ZE0007","ZEN INTERNET LTD",1/2/2021 00:00:00,28/2/2021 00:00:00,"P11-2021"
"R&B","INFORMATION TECHNOLOGY","SUPPLIES AND SERVICES","IT HARDWARE & SOFTWARE COSTS","4116","P110841-SERVICE-Ubiquiti POE X2 YOUR REF 5771578",28/2/2021 00:00:00,"245063",269.95,"CC0711","CCS MEDIA LIMITED",1/2/2021 00:00:00,28/2/2021 00:00:00,"P11-2021"
,"LEE VALLEY MARINA STANSTEAD","SUPPLIES AND SERVICES","IT HARDWARE & SOFTWARE COSTS","4116","ZEN INTERNET LTD",22/2/2021 00:00:00,"244670",31.32,"ZE0007","ZEN INTERNET LTD",1/2/2021 00:00:00,28/2/2021 00:00:00,"P11-2021"
,"LEE VALLEY CAMPSITE","SUPPLIES AND SERVICES","IT HARDWARE & SOFTWARE COSTS","4116","ZEN INTERNET LTD",22/2/2021 00:00:00,"244671",42,"ZE0007","ZEN INTERNET LTD",1/2/2021 00:00:00,28/2/2021 00:00:00,"P11-2021"
,"LEE VALLEY CAMPSITE","SUPPLIES AND SERVICES","IT HARDWARE & SOFTWARE COSTS","4116","ZEN INTERNET LTD",28/2/2021 00:00:00,"245028",-2.19,"ZE0007","ZEN INTERNET LTD",1/2/2021 00:00:00,28/2/2021 00:00:00,"P11-2021"
,"LEE VALLEY CAMPSITE","SUPPLIES AND SERVICES","IT HARDWARE & SOFTWARE COSTS","4116","ZEN INTERNET LTD",28/2/2021 00:00:00,"245029",-3.23,"ZE0007","ZEN INTERNET LTD",1/2/2021 00:00:00,28/2/2021 00:00:00,"P11-2021"
,"LEE VALLEY RIDING CENTRE","SUPPLIES AND SERVICES","IT HARDWARE & SOFTWARE COSTS","4116","ZEN INTERNET LTD",16/2/2021 00:00:00,"244421",31.32,"ZE0007","ZEN INTERNET LTD",1/2/2021 00:00:00,28/2/2021 00:00:00,"P11-2021"
,"LEE VALLEY ICE CENTRE","SUPPLIES AND SERVICES","IT HARDWARE & SOFTWARE COSTS","4116","ZEN INTERNET LTD",22/2/2021 00:00:00,"244842",42,"ZE0007","ZEN INTERNET LTD",1/2/2021 00:00:00,28/2/2021 00:00:00,"P11-2021"
,"LEE VALLEY WHITE WATER CENTRE","SUPPLIES AND SERVICES","IT HARDWARE & SOFTWARE COSTS","4116","ZEN INTERNET LTD",28/2/2021 00:00:00,"244872",13.49,"ZE0007","ZEN INTERNET LTD",1/2/2021 00:00:00,28/2/2021 00:00:00,"P11-2021"
,"LEE VALLEY WHITE WATER CENTRE","SUPPLIES AND SERVICES","IT HARDWARE & SOFTWARE COSTS","4116","ZEN INTERNET LTD",28/2/2021 00:00:00,"244873",17.83,"ZE0007","ZEN INTERNET LTD",1/2/2021 00:00:00,28/2/2021 00:00:00,"P11-2021"
,"LEE VALLEY ATHLETICS CENTRE","SUPPLIES AND SERVICES","VENDING AGREEMENTS","4117","P110742-SERVICE-LVAC EQUIP RENTAL INV M722128 -  28.1.21",8/2/2021 00:00:00,"244206",156,"RI0176","RIJO 42 LIMITED",1/2/2021 00:00:00,28/2/2021 00:00:00,"P11-2021"
"R&B","INFORMATION TECHNOLOGY","SUPPLIES AND SERVICES","IT MAINTENANCE AGREEMENTS","4119","P110403-SERVICE-Annual Air Conditioning Maintenance 20/21",22/2/2021 00:00:00,"244688",774.07,"MA0032","MACAIR FMI LIMITED",1/2/2021 00:00:00,28/2/2021 00:00:00,"P11-2021"
"R&B","INFORMATION TECHNOLOGY","SUPPLIES AND SERVICES","IT MAINTENANCE AGREEMENTS","4119","P107296-SERVICE-1 - 31 March 2021",22/2/2021 00:00:00,"244836",876,"IQ0022","IQUAL",1/2/2021 00:00:00,28/2/2021 00:00:00,"P11-2021"
"R&B","INFORMATION TECHNOLOGY","SUPPLIES AND SERVICES","IT MAINTENANCE AGREEMENTS","4119","P110908-SERVICE-X Advanced for Server - 15 Devices",28/2/2021 00:00:00,"244911",1674,"IQ0022","IQUAL",1/2/2021 00:00:00,28/2/2021 00:00:00,"P11-2021"
"R&B","INFORMATION TECHNOLOGY","SUPPLIES AND SERVICES","IT MAINTENANCE AGREEMENTS","4119","P110908-SERVICE-X Endpoint Advanced - 200 Devices",28/2/2021 00:00:00,"244911",10500,"IQ0022","IQUAL",1/2/2021 00:00:00,28/2/2021 00:00:00,"P11-2021"
,"LEE VALLEY MARINA SPRINGFIELD","SUPPLIES AND SERVICES","IT MAINTENANCE AGREEMENTS","4119","P110754-SERVICE-Monthly IT support Springfield",9/2/2021 00:00:00,"244261",72.44,"CY0653","CYBERTILL",1/2/2021 00:00:00,28/2/2021 00:00:00,"P11-2021"
,"LEE VALLEY MARINA STANSTEAD","SUPPLIES AND SERVICES","IT MAINTENANCE AGREEMENTS","4119","P110754-SERVICE-Monthly IT support Stanstead Marina",9/2/2021 00:00:00,"244261",72.44,"CY0653","CYBERTILL",1/2/2021 00:00:00,28/2/2021 00:00:00,"P11-2021"
,"LEE VALLEY CAMPSITE","SUPPLIES AND SERVICES","IT MAINTENANCE AGREEMENTS","4119","P110907-SERVICE-Monthly Subs March 21",28/2/2021 00:00:00,"244894",145.5,"NE0218","NETGUIDES LIMITED",1/2/2021 00:00:00,28/2/2021 00:00:00,"P11-2021"
,"LEE VALLEY CARAVAN PARK","SUPPLIES AND SERVICES","IT MAINTENANCE AGREEMENTS","4119","P110907-SERVICE-Monthly Subs March 21",28/2/2021 00:00:00,"244894",145.5,"NE0218","NETGUIDES LIMITED",1/2/2021 00:00:00,28/2/2021 00:00:00,"P11-2021"
"P&V","ALMOST WILD CAMPSITE","SUPPLIES AND SERVICES","IT MAINTENANCE AGREEMENTS","4119","P110907-SERVICE-Monthly Subs March 21",28/2/2021 00:00:00,"244894",145.5,"NE0218","NETGUIDES LIMITED",1/2/2021 00:00:00,28/2/2021 00:00:00,"P11-2021"
,"LV LEISURE CENTRE CAMPSITE","SUPPLIES AND SERVICES","IT MAINTENANCE AGREEMENTS","4119","P110838-SERVICE-third party provider",17/2/2021 00:00:00,"244646",179.98,"UK0025","UK CAMPSITE CO UK",1/2/2021 00:00:00,28/2/2021 00:00:00,"P11-2021"
,"LV LEISURE CENTRE CAMPSITE","SUPPLIES AND SERVICES","IT MAINTENANCE AGREEMENTS","4119","P110907-SERVICE-Monthly Subs March 21",28/2/2021 00:00:00,"244894",145.5,"NE0218","NETGUIDES LIMITED",1/2/2021 00:00:00,28/2/2021 00:00:00,"P11-2021"
,"LV LEISURE CENTRE GOLF COURSE","SUPPLIES AND SERVICES","IT MAINTENANCE AGREEMENTS","4119","P110755-SERVICE-Monthly digi tickets January 2021",22/2/2021 00:00:00,"244238",398.7,"DI0304","DIGITAL TICKETING SYSTEMS LTD (DIGITICKETS)",1/2/2021 00:00:00,28/2/2021 00:00:00,"P11-2021"
"P&V","EAST INDIA DOCK AND BOW CREEK","SUPPLIES AND SERVICES","MATERIALS (COUNTERS)","4123","P110801-SERVICE-Visitor Counters Maintainance",17/2/2021 00:00:00,"244648",1400,"HE0418","HEALTHMATIC LTD",1/2/2021 00:00:00,28/2/2021 00:00:00,"P11-2021"
"P&V","NORTH AREA RANGERS","SUPPLIES AND SERVICES","MATERIALS (COUNTERS)","4123","P110801-SERVICE-Visitor Counters Maintainance",17/2/2021 00:00:00,"244648",3300,"HE0418","HEALTHMATIC LTD",1/2/2021 00:00:00,28/2/2021 00:00:00,"P11-2021"
"P&V","SOUTH AREA RANGERS","SUPPLIES AND SERVICES","MATERIALS (COUNTERS)","4123","P110801-SERVICE-Visitor Counters Maintainance",17/2/2021 00:00:00,"244648",4350,"HE0418","HEALTHMATIC LTD",1/2/2021 00:00:00,28/2/2021 00:00:00,"P11-2021"
"P&V","ABBEY GARDENS","SUPPLIES AND SERVICES","MATERIALS (COUNTERS)","4123","P110801-SERVICE-Visitor Counters Maintainance",17/2/2021 00:00:00,"244648",1000,"HE0418","HEALTHMATIC LTD",1/2/2021 00:00:00,28/2/2021 00:00:00,"P11-2021"
"P&V","GUNPOWDER PARK","SUPPLIES AND SERVICES","MATERIALS (COUNTERS)","4123","P110801-SERVICE-Visitor Counters Maintainance",17/2/2021 00:00:00,"244648",3350,"HE0418","HEALTHMATIC LTD",1/2/2021 00:00:00,28/2/2021 00:00:00,"P11-2021"
"P&V","RIVER LEE COUNTRY PARK","SUPPLIES AND SERVICES","MATERIALS (COUNTERS)","4123","P110801-SERVICE-Visitor Counters Maintainance",17/2/2021 00:00:00,"244648",10000,"HE0418","HEALTHMATIC LTD",1/2/2021 00:00:00,28/2/2021 00:00:00,"P11-2021"
"P&V","THREE MILLS","SUPPLIES AND SERVICES","MATERIALS (COUNTERS)","4123","P110801-SERVICE-Visitor Counters Maintainance",17/2/2021 00:00:00,"244648",750,"HE0418","HEALTHMATIC LTD",1/2/2021 00:00:00,28/2/2021 00:00:00,"P11-2021"
"P&V","ABBEY GARDENS","SUPPLIES AND SERVICES","MATERIALS (LOCKS)","4124","P110658-SERVICE-0.5Kg NCAB Cornfield Annual & Biennial Mix",9/2/2021 00:00:00,"244393",39.16,"NA0178","NATURESCAPE BRITISH WILD FLOWERS",1/2/2021 00:00:00,28/2/2021 00:00:00,"P11-2021"
"P&V","ABBEY GARDENS","SUPPLIES AND SERVICES","MATERIALS (LOCKS)","4124","P110658-SERVICE-0.5Kg N9F Hedgerow Mix flowers only",9/2/2021 00:00:00,"244393",52.08,"NA0178","NATURESCAPE BRITISH WILD FLOWERS",1/2/2021 00:00:00,28/2/2021 00:00:00,"P11-2021"
"P&V","ABBEY GARDENS","SUPPLIES AND SERVICES","MATERIALS (LOCKS)","4124","P110658-SERVICE-2Kg NCA1 Standard Cornfield Mix",9/2/2021 00:00:00,"244393",68.33,"NA0178","NATURESCAPE BRITISH WILD FLOWERS",1/2/2021 00:00:00,28/2/2021 00:00:00,"P11-2021"
"P&V","ABBEY GARDENS","SUPPLIES AND SERVICES","MATERIALS (LOCKS)","4124","P110658-SERVICE-0.7Kg N4F Summer Flowering Butterfly and Bee",9/2/2021 00:00:00,"244393",83.33,"NA0178","NATURESCAPE BRITISH WILD FLOWERS",1/2/2021 00:00:00,28/2/2021 00:00:00,"P11-2021"
"P&V","ABBEY GARDENS","SUPPLIES AND SERVICES","MATERIALS (LOCKS)","4124","P110658-SERVICE-Delivery to Address below",9/2/2021 00:00:00,"244393",3.5,"NA0178","NATURESCAPE BRITISH WILD FLOWERS",1/2/2021 00:00:00,28/2/2021 00:00:00,"P11-2021"
"P&V","ABBEY GARDENS","SUPPLIES AND SERVICES","MATERIALS (LOCKS)","4124","P110658-SERVICE-0.5Kg NCA2 Special Cornfield Annuals Mix",9/2/2021 00:00:00,"244393",29.16,"NA0178","NATURESCAPE BRITISH WILD FLOWERS",1/2/2021 00:00:00,28/2/2021 00:00:00,"P11-2021"
"P&V","ABBEY GARDENS","SUPPLIES AND SERVICES","MATERIALS (LOCKS)","4124","P110658-SERVICE-50Kg Poppy Seeds",9/2/2021 00:00:00,"244393",37.5,"NA0178","NATURESCAPE BRITISH WILD FLOWERS",1/2/2021 00:00:00,28/2/2021 00:00:00,"P11-2021"
,"LEE VALLEY CAMPSITE","SUPPLIES AND SERVICES","MATERIALS (GROUNDS MAINT)","4125","P110434-SERVICE-Fencing Supplies",8/2/2021 00:00:00,"244373",691.5,"JW0004","J & W FENCING LIMITED",1/2/2021 00:00:00,28/2/2021 00:00:00,"P11-2021"
,"LV LEISURE CENTRE GOLF COURSE","SUPPLIES AND SERVICES","MATERIALS (GROUNDS MAINT)","4125","P110500-SERVICE-4 x 10l MR Sea Fe @125 each & 4 x 5l h2 pro @",15/2/2021 00:00:00,"244360",880.32,"CA0698","CAMBRIDGE GOLF COMPANY",1/2/2021 00:00:00,28/2/2021 00:00:00,"P11-2021"
,"LV LEISURE CENTRE GOLF COURSE","SUPPLIES AND SERVICES","MATERIALS (GROUNDS MAINT)","4125","P110685-SERVICE-Bunker Sand",17/2/2021 00:00:00,"244447",442.5,"MR0420","MR AMENITY LTD",1/2/2021 00:00:00,28/2/2021 00:00:00,"P11-2021"
,"LV LEISURE CENTRE GOLF COURSE","SUPPLIES AND SERVICES","MATERIALS (GROUNDS MAINT)","4125","P110688-SERVICE-Bunker Sand",24/2/2021 00:00:00,"244452",442.5,"MR0420","MR AMENITY LTD",1/2/2021 00:00:00,28/2/2021 00:00:00,"P11-2021"
,"LV LEISURE CENTRE GOLF COURSE","SUPPLIES AND SERVICES","MATERIALS (GROUNDS MAINT)","4125","P110686-SERVICE-Top dressing for greens",17/2/2021 00:00:00,"244577",450,"MR0420","MR AMENITY LTD",1/2/2021 00:00:00,28/2/2021 00:00:00,"P11-2021"
"P&V","MYDDELTON HOUSE GARDENS","SUPPLIES AND SERVICES","MATERIALS (PLANTS & SHRUBS)","4126","P110138-SERVICE-Organic seed order Dec 2020",16/2/2021 00:00:00,"244613",38.44,"TA0591","TAMAR ORGANICS",1/2/2021 00:00:00,28/2/2021 00:00:00,"P11-2021"
"P&V","MYDDELTON HOUSE GARDENS","SUPPLIES AND SERVICES","MATERIALS (PLANTS & SHRUBS)","4126","TAMAR ORGANICS",16/2/2021 00:00:00,"244613",10.3,"TA0591","TAMAR ORGANICS",1/2/2021 00:00:00,28/2/2021 00:00:00,"P11-2021"
"P&V","MYDDELTON HOUSE GARDENS","SUPPLIES AND SERVICES","MATERIALS (PLANTS & SHRUBS)","4126","TAMAR ORGANICS",16/2/2021 00:00:00,"244613",-38.44,"TA0591","TAMAR ORGANICS",1/2/2021 00:00:00,28/2/2021 00:00:00,"P11-2021"
"P&V","MYDDELTON HOUSE GARDENS","SUPPLIES AND SERVICES","MATERIALS (PLANTS & SHRUBS)","4126","TAMAR ORGANICS",16/2/2021 00:00:00,"244613",28.14,"TA0591","TAMAR ORGANICS",1/2/2021 00:00:00,28/2/2021 00:00:00,"P11-2021"
"P&V","MYDDELTON HOUSE GARDENS","SUPPLIES AND SERVICES","MATERIALS (PLANTS & SHRUBS)","4126","P109908-SERVICE-Tulip Burgundy Blend Mixed 11- Quantity 2,000",22/2/2021 00:00:00,"244816",210.8,"PA0002","J PARKER DUTCH BULB WS LTD",1/2/2021 00:00:00,28/2/2021 00:00:00,"P11-2021"
,"STANSTEAD RECHARGEABLE WORKS","SUPPLIES AND SERVICES","MATERIALS (TOOLS & PLANT)","4127","P110802-SERVICE-yard services",15/2/2021 00:00:00,"244642",630,"WA0251","M J MARINE SERVICES",1/2/2021 00:00:00,28/2/2021 00:00:00,"P11-2021"
,"STANSTEAD RECHARGEABLE WORKS","SUPPLIES AND SERVICES","MATERIALS (ENG OTHER)","4130","P110819-SERVICE-to supply 25x25 box section",28/2/2021 00:00:00,"244881",55,"EN0309","PRH ENGINEERING LIMITED",1/2/2021 00:00:00,28/2/2021 00:00:00,"P11-2021"
,"STANSTEAD RECHARGEABLE WORKS","SUPPLIES AND SERVICES","MATERIALS (ENG OTHER)","4130","P110957-SERVICE-marina services",28/2/2021 00:00:00,"245066",450,"WA0251","M J MARINE SERVICES",1/2/2021 00:00:00,28/2/2021 00:00:00,"P11-2021"
,"LEE VALLEY ICE CENTRE","SUPPLIES AND SERVICES","MATERIALS (ENG OTHER)","4130","P110611-SERVICE-Fogging/Drains service",16/2/2021 00:00:00,"243710",531.41,"RE0215","RENTOKIL SPECIALIST HYGIENE",1/2/2021 00:00:00,28/2/2021 00:00:00,"P11-2021"
,"LEE VALLEY ICE CENTRE","SUPPLIES AND SERVICES","MATERIALS (ENG OTHER)","4130","P110829-SERVICE-Radio's Hire",22/2/2021 00:00:00,"244438",220.56,"LO0133","RADIOCOMS SYSTEMS LTD",1/2/2021 00:00:00,28/2/2021 00:00:00,"P11-2021"
,"LEE VALLEY WHITE WATER CENTRE","SUPPLIES AND SERVICES","MATERIALS (CHEMICALS)","4131","P110537-SERVICE-1000L hypo, pump over & delivery",9/2/2021 00:00:00,"244201",272.5,"IN0182","INDUSTRIAL CHEMICALS LTD",1/2/2021 00:00:00,28/2/2021 00:00:00,"P11-2021"
,"LEE VALLEY WHITE WATER CENTRE","SUPPLIES AND SERVICES","MATERIALS (CHEMICALS)","4131","P110768-SERVICE-1000l Hypo",22/2/2021 00:00:00,"244675",232.5,"IN0182","INDUSTRIAL CHEMICALS LTD",1/2/2021 00:00:00,28/2/2021 00:00:00,"P11-2021"
,"LEE VALLEY WHITE WATER CENTRE","SUPPLIES AND SERVICES","MATERIALS (CHEMICALS)","4131","P110768-SERVICE-Pump over & Delivery",22/2/2021 00:00:00,"244675",40,"IN0182","INDUSTRIAL CHEMICALS LTD",1/2/2021 00:00:00,28/2/2021 00:00:00,"P11-2021"
,"LEE VALLEY WHITE WATER CENTRE","SUPPLIES AND SERVICES","MATERIALS (CHEMICALS)","4131","P110768-SERVICE-16 units Acid",22/2/2021 00:00:00,"244676",153.76,"IN0182","INDUSTRIAL CHEMICALS LTD",1/2/2021 00:00:00,28/2/2021 00:00:00,"P11-2021"
,"LEE VALLEY VELOPARK","SUPPLIES AND SERVICES","MATERIALS (MEDICAL)","4132","P110800-SERVICE-First Aid Supplies",22/2/2021 00:00:00,"244691",69.8,"FI0215","VALUE  PRODUCTS LTD",1/2/2021 00:00:00,28/2/2021 00:00:00,"P11-2021"
"P&V","LEE VALLEY FARM HOLYFIELDHALL","SUPPLIES AND SERVICES","FEED","4133","P110810-SERVICE-Nutrimol",15/2/2021 00:00:00,"244026",1570.14,"BO0246","FOR FARMERS UK LTD",1/2/2021 00:00:00,28/2/2021 00:00:00,"P11-2021"
"P&V","LEE VALLEY FARM HOLYFIELDHALL","SUPPLIES AND SERVICES","FEED","4133","P110814-SERVICE-Beef Grower/Translac",15/2/2021 00:00:00,"244229",7485.06,"BO0246","FOR FARMERS UK LTD",1/2/2021 00:00:00,28/2/2021 00:00:00,"P11-2021"
"P&V","LEE VALLEY FARM HOLYFIELDHALL","SUPPLIES AND SERVICES","FEED","4133","P110815-SERVICE-Maxcare Dairy",15/2/2021 00:00:00,"244387",606,"BO0246","FOR FARMERS UK LTD",1/2/2021 00:00:00,28/2/2021 00:00:00,"P11-2021"
"P&V","LEE VALLEY FARM HOLYFIELDHALL","SUPPLIES AND SERVICES","FEED","4133","P110820-SERVICE-Golden Flakes",22/2/2021 00:00:00,"244474",1246.8,"BO0246","FOR FARMERS UK LTD",1/2/2021 00:00:00,28/2/2021 00:00:00,"P11-2021"
,"LEE VALLEY FARM HAYES HILL","SUPPLIES AND SERVICES","FEED","4133","P110714-SERVICE-100 bales hay",10/2/2021 00:00:00,"244366",400,"WI0053","J & D WILLIAMS",1/2/2021 00:00:00,28/2/2021 00:00:00,"P11-2021"
,"LEE VALLEY FARM HAYES HILL","SUPPLIES AND SERVICES","FEED","4133","P110714-SERVICE-150 bales straw",10/2/2021 00:00:00,"244366",337.5,"WI0053","J & D WILLIAMS",1/2/2021 00:00:00,28/2/2021 00:00:00,"P11-2021"
,"LEE VALLEY FARM HAYES HILL","SUPPLIES AND SERVICES","FEED","4133","P110664-SERVICE-Livefood order",8/2/2021 00:00:00,"244386",52.85,"PE0253","PEREGRINE LIVEFOODS LTD",1/2/2021 00:00:00,28/2/2021 00:00:00,"P11-2021"
,"LEE VALLEY FARM HAYES HILL","SUPPLIES AND SERVICES","FEED","4133","P110717-SERVICE-Livefood order",15/2/2021 00:00:00,"244571",56.1,"PE0253","PEREGRINE LIVEFOODS LTD",1/2/2021 00:00:00,28/2/2021 00:00:00,"P11-2021"
,"LEE VALLEY FARM HAYES HILL","SUPPLIES AND SERVICES","FEED","4133","P110687-SERVICE-4x Sawdust",15/2/2021 00:00:00,"244604",25,"TI0003","G J W TITMUSS LTD",1/2/2021 00:00:00,28/2/2021 00:00:00,"P11-2021"
,"LEE VALLEY FARM HAYES HILL","SUPPLIES AND SERVICES","FEED","4133","P110687-SERVICE-10x sow and weaner pellets",15/2/2021 00:00:00,"244604",103,"TI0003","G J W TITMUSS LTD",1/2/2021 00:00:00,28/2/2021 00:00:00,"P11-2021"
,"LEE VALLEY FARM HAYES HILL","SUPPLIES AND SERVICES","FEED","4133","P110687-SERVICE-10x Dry goat mix",15/2/2021 00:00:00,"244604",119.6,"TI0003","G J W TITMUSS LTD",1/2/2021 00:00:00,28/2/2021 00:00:00,"P11-2021"
,"LEE VALLEY FARM HAYES HILL","SUPPLIES AND SERVICES","FEED","4133","P110687-SERVICE-2x L-mix",15/2/2021 00:00:00,"244604",23.24,"TI0003","G J W TITMUSS LTD",1/2/2021 00:00:00,28/2/2021 00:00:00,"P11-2021"
,"LEE VALLEY FARM HAYES HILL","SUPPLIES AND SERVICES","FEED","4133","P110687-SERVICE-1x chaff",15/2/2021 00:00:00,"244604",12.48,"TI0003","G J W TITMUSS LTD",1/2/2021 00:00:00,28/2/2021 00:00:00,"P11-2021"
,"LEE VALLEY FARM HAYES HILL","SUPPLIES AND SERVICES","FEED","4133","P110687-SERVICE-1x Donkey diet",15/2/2021 00:00:00,"244604",10.7,"TI0003","G J W TITMUSS LTD",1/2/2021 00:00:00,28/2/2021 00:00:00,"P11-2021"
,"LEE VALLEY FARM HAYES HILL","SUPPLIES AND SERVICES","FEED","4133","P110687-SERVICE-1x Mollichaff donkey",15/2/2021 00:00:00,"244604",8.98,"TI0003","G J W TITMUSS LTD",1/2/2021 00:00:00,28/2/2021 00:00:00,"P11-2021"
,"LEE VALLEY FARM HAYES HILL","SUPPLIES AND SERVICES","FEED","4133","JOLLEYS-SMALL ANIMAL FEED",15/2/2021 00:00:00,"244637",7.07,"FI0001","DIRECTOR OF FINANCE - CASH",1/2/2021 00:00:00,28/2/2021 00:00:00,"P11-2021"
,"LEE VALLEY FARM HAYES HILL","SUPPLIES AND SERVICES","FEED","4133","P110806-SERVICE-Livefood",22/2/2021 00:00:00,"244706",24.65,"PE0253","PEREGRINE LIVEFOODS LTD",1/2/2021 00:00:00,28/2/2021 00:00:00,"P11-2021"
,"LEE VALLEY FARM HAYES HILL","SUPPLIES AND SERVICES","FEED","4133","P110806-SERVICE-Frozen food",22/2/2021 00:00:00,"244706",11.5,"PE0253","PEREGRINE LIVEFOODS LTD",1/2/2021 00:00:00,28/2/2021 00:00:00,"P11-2021"
,"LEE VALLEY FARM HAYES HILL","SUPPLIES AND SERVICES","FEED","4133","P110806-SERVICE-Livefood",22/2/2021 00:00:00,"244707",40.35,"PE0253","PEREGRINE LIVEFOODS LTD",1/2/2021 00:00:00,28/2/2021 00:00:00,"P11-2021"
,"LEE VALLEY FARM HAYES HILL","SUPPLIES AND SERVICES","FEED","4133","P110806-SERVICE-Frozen food",22/2/2021 00:00:00,"244707",3.05,"PE0253","PEREGRINE LIVEFOODS LTD",1/2/2021 00:00:00,28/2/2021 00:00:00,"P11-2021"
,"LEE VALLEY FARM HAYES HILL","SUPPLIES AND SERVICES","FEED","4133","P110887-SERVICE-Livefood order",28/2/2021 00:00:00,"244921",40.15,"PE0253","PEREGRINE LIVEFOODS LTD",1/2/2021 00:00:00,28/2/2021 00:00:00,"P11-2021"
,"LEE VALLEY RIDING CENTRE","SUPPLIES AND SERVICES","FEED","4133","P110620-SERVICE-feed",8/2/2021 00:00:00,"244259",1465.75,"DO0029","M C DOWLING & SONS",1/2/2021 00:00:00,28/2/2021 00:00:00,"P11-2021"
,"LEE VALLEY RIDING CENTRE","SUPPLIES AND SERVICES","FEED","4133","P110928-SERVICE-feed",28/2/2021 00:00:00,"244471",382.75,"DO0029","M C DOWLING & SONS",1/2/2021 00:00:00,28/2/2021 00:00:00,"P11-2021"
,"LEE VALLEY RIDING CENTRE","SUPPLIES AND SERVICES","FEED","4133","P110928-SERVICE-feed",28/2/2021 00:00:00,"244629",2076.9,"DO0029","M C DOWLING & SONS",1/2/2021 00:00:00,28/2/2021 00:00:00,"P11-2021"
,"LEE VALLEY RIDING CENTRE","SUPPLIES AND SERVICES","BEDDING","4134","P110928-SERVICE-bedding",28/2/2021 00:00:00,"244442",1872.65,"DO0029","M C DOWLING & SONS",1/2/2021 00:00:00,28/2/2021 00:00:00,"P11-2021"
,"LEE VALLEY RIDING CENTRE","SUPPLIES AND SERVICES","BEDDING","4134","P110928-SERVICE-bedding",28/2/2021 00:00:00,"244471",315,"DO0029","M C DOWLING & SONS",1/2/2021 00:00:00,28/2/2021 00:00:00,"P11-2021"
"P&V","LEE VALLEY FARM HOLYFIELDHALL","SUPPLIES AND SERVICES","SEEDS","4135","P110973-SERVICE-Barley",28/2/2021 00:00:00,"244909",2550,"HA0013","HARLOW AGRICULTURAL MERCHANTS",1/2/2021 00:00:00,28/2/2021 00:00:00,"P11-2021"
"P&V","LEE VALLEY FARM HOLYFIELDHALL","SUPPLIES AND SERVICES","FERTILIZER","4137","P110939-SERVICE-Amonnium Nitrate",28/2/2021 00:00:00,"244837",3510,"HA0013","HARLOW AGRICULTURAL MERCHANTS",1/2/2021 00:00:00,28/2/2021 00:00:00,"P11-2021"
"P&V","LEE VALLEY FARM HOLYFIELDHALL","SUPPLIES AND SERVICES","DAIRY SUNDRIES","4138","P110813-SERVICE-Towels/Pump",15/2/2021 00:00:00,"244194",650.73,"FA0099","FARM & COUNTRY SUPPLIES LTD",1/2/2021 00:00:00,28/2/2021 00:00:00,"P11-2021"
"P&V","LEE VALLEY FARM HOLYFIELDHALL","SUPPLIES AND SERVICES","DAIRY SUNDRIES","4138","P109892-SERVICE-Liquid Nitrogen",15/2/2021 00:00:00,"244241",54,"GE0005","GENUS BREEDING LTD",1/2/2021 00:00:00,28/2/2021 00:00:00,"P11-2021"
"P&V","LEE VALLEY FARM HOLYFIELDHALL","SUPPLIES AND SERVICES","DAIRY SUNDRIES","4138","P107858-SERVICE-Slurry Machine Spares",15/2/2021 00:00:00,"244361",263.6,"ST0237","STORTH LTD",1/2/2021 00:00:00,28/2/2021 00:00:00,"P11-2021"
"P&V","LEE VALLEY FARM HOLYFIELDHALL","SUPPLIES AND SERVICES","DAIRY SUNDRIES","4138","P110582-SERVICE-Dead Animal Removal",16/2/2021 00:00:00,"244647",140,"MA0074","W MARTIN & SON LIMITED",1/2/2021 00:00:00,28/2/2021 00:00:00,"P11-2021"
"P&V","LEE VALLEY FARM HOLYFIELDHALL","SUPPLIES AND SERVICES","DAIRY SUNDRIES","4138","P110582-SERVICE-Dead Animal Removal",28/2/2021 00:00:00,"245061",48,"MA0074","W MARTIN & SON LIMITED",1/2/2021 00:00:00,28/2/2021 00:00:00,"P11-2021"
"P&V","NORTH AREA RANGERS","SUPPLIES AND SERVICES","CLOTHING & UNIFORMS","4225","P110661-SERVICE-Delivery to address below",8/2/2021 00:00:00,"244409",8.99,"OU0086","THE OUTDOORS COMPANY",1/2/2021 00:00:00,28/2/2021 00:00:00,"P11-2021"
"P&V","NORTH AREA RANGERS","SUPPLIES AND SERVICES","CLOTHING & UNIFORMS","4225","P110661-SERVICE-1x Pair of Gronell Boots - size 10.5",8/2/2021 00:00:00,"244409",109.99,"OU0086","THE OUTDOORS COMPANY",1/2/2021 00:00:00,28/2/2021 00:00:00,"P11-2021"
"P&V","SOUTH AREA RANGERS","SUPPLIES AND SERVICES","CLOTHING & UNIFORMS","4225","P109920-SERVICE-Delivery",8/2/2021 00:00:00,"243923",7,"HO0221","HONEY BROTHERS LIMITED",1/2/2021 00:00:00,28/2/2021 00:00:00,"P11-2021"
"P&V","SOUTH AREA RANGERS","SUPPLIES AND SERVICES","CLOTHING & UNIFORMS","4225","P109920-SERVICE-Helmet Adaptor",8/2/2021 00:00:00,"243923",20,"HO0221","HONEY BROTHERS LIMITED",1/2/2021 00:00:00,28/2/2021 00:00:00,"P11-2021"
"R&B","DEMOCRATIC REPRESENTATION & MA","SUPPLIES AND SERVICES","OFFICE EXPENSES","4311","P110631-SERVICE-1 x Box A4 Envelopes (J26339)",8/2/2021 00:00:00,"244236",41.19,"TH0008","JKL SOLUTIONS LTD",1/2/2021 00:00:00,28/2/2021 00:00:00,"P11-2021"
"R&B","DEMOCRATIC REPRESENTATION & MA","SUPPLIES AND SERVICES","OFFICE EXPENSES","4311","P110631-SERVICE-1 x Box Pink Paper (89603)",8/2/2021 00:00:00,"244236",30.65,"TH0008","JKL SOLUTIONS LTD",1/2/2021 00:00:00,28/2/2021 00:00:00,"P11-2021"
,"LEE VALLEY MARINA SPRINGFIELD","SUPPLIES AND SERVICES","OFFICE EXPENSES","4311","JKL SOLUTIONS LTD",15/2/2021 00:00:00,"244612",40.66,"TH0008","JKL SOLUTIONS LTD",1/2/2021 00:00:00,28/2/2021 00:00:00,"P11-2021"
,"LEE VALLEY MARINA SPRINGFIELD","SUPPLIES AND SERVICES","OFFICE EXPENSES","4311","JKL SOLUTIONS LTD",15/2/2021 00:00:00,"244612",-125.66,"TH0008","JKL SOLUTIONS LTD",1/2/2021 00:00:00,28/2/2021 00:00:00,"P11-2021"
,"LEE VALLEY MARINA SPRINGFIELD","SUPPLIES AND SERVICES","OFFICE EXPENSES","4311","P110786-SERVICE-To supply items as requested",15/2/2021 00:00:00,"244612",125.66,"TH0008","JKL SOLUTIONS LTD",1/2/2021 00:00:00,28/2/2021 00:00:00,"P11-2021"
,"LEE VALLEY MARINA SPRINGFIELD","SUPPLIES AND SERVICES","OFFICE EXPENSES","4311","JKL SOLUTIONS LTD",15/2/2021 00:00:00,"244612",85,"TH0008","JKL SOLUTIONS LTD",1/2/2021 00:00:00,28/2/2021 00:00:00,"P11-2021"
,"LEE VALLEY FARM HAYES HILL","SUPPLIES AND SERVICES","OFFICE EXPENSES","4311","P110750-SERVICE-Increase for invoice",17/2/2021 00:00:00,"244561",25.22,"TH0008","JKL SOLUTIONS LTD",1/2/2021 00:00:00,28/2/2021 00:00:00,"P11-2021"
,"LEE VALLEY FARM HAYES HILL","SUPPLIES AND SERVICES","OFFICE EXPENSES","4311","P110750-SERVICE-Product Code: RX52312",17/2/2021 00:00:00,"244561",88.49,"TH0008","JKL SOLUTIONS LTD",1/2/2021 00:00:00,28/2/2021 00:00:00,"P11-2021"
,"LEE VALLEY ATHLETICS CENTRE","SUPPLIES AND SERVICES","OFFICE EXPENSES","4311","P110747-SERVICE-copier paper, batteries, diaries",16/2/2021 00:00:00,"244562",126.15,"TH0008","JKL SOLUTIONS LTD",1/2/2021 00:00:00,28/2/2021 00:00:00,"P11-2021"
,"LEE VALLEY VELOPARK","SUPPLIES AND SERVICES","PHOTOCOPYING","4314","KONICA MINOLTA BUSINESS SOLUTI",28/2/2021 00:00:00,"244910",26.28,"KO0071","KONICA MINOLTA BUSINESS SOLUTIONS ( UK) LTD",1/2/2021 00:00:00,28/2/2021 00:00:00,"P11-2021"
,"LEE VALLEY VELOPARK","SUPPLIES AND SERVICES","PHOTOCOPYING","4314","KONICA MINOLTA BUSINESS SOLUTI",28/2/2021 00:00:00,"245040",101.07,"KO0071","KONICA MINOLTA BUSINESS SOLUTIONS ( UK) LTD",1/2/2021 00:00:00,28/2/2021 00:00:00,"P11-2021"
,"LSC INFORMATION TECHNOLOGY","SUPPLIES AND SERVICES","PHOTOCOPYING","4314","ANNODATA LTD",28/2/2021 00:00:00,"245072",1151.6,"AN0466","ANNODATA LTD",1/2/2021 00:00:00,28/2/2021 00:00:00,"P11-2021"
"R&B","HUMAN RESOURCES","SUPPLIES AND SERVICES","PERIODICALS & REFERENCE BOOKS","4332","P110757-SERVICE-XPERT HR SUBSCRIPTION APRIL - SEPT 2021",15/2/2021 00:00:00,"244567",1100,"VI0074","VINE HR LIMITED",1/2/2021 00:00:00,28/2/2021 00:00:00,"P11-2021"
"CEO","CHIEF EXECUTIVE","SUPPLIES AND SERVICES","SUBSCRIPTIONS","4334","P110656-SERVICE-MJ Subscription",8/2/2021 00:00:00,"244195",140,"HE0021","HEMMING GROUP LIMITED",1/2/2021 00:00:00,28/2/2021 00:00:00,"P11-2021"
"P&V","LEE VALLEY FARM HOLYFIELDHALL","SUPPLIES AND SERVICES","SUBSCRIPTIONS","4334","P110630-SERVICE-SAI Global/Red Tractor Farm Assurance Scheme",15/2/2021 00:00:00,"244161",237.16,"FA0065","EFSIS/FABBL FARM ASSURANCE SCHEME",1/2/2021 00:00:00,28/2/2021 00:00:00,"P11-2021"
"P&V","LEE VALLEY FARM HOLYFIELDHALL","SUPPLIES AND SERVICES","SUBSCRIPTIONS","4334","P110583-SERVICE-Subscription",16/2/2021 00:00:00,"244415",338.54,"NA0005","NATIONAL MILK RECORDS PLC",1/2/2021 00:00:00,28/2/2021 00:00:00,"P11-2021"
"R&B","REVENUE SUSPENSE (AUTHORITY)","SUPPLIES AND SERVICES","TELEPHONES (MOBILE)","4484","GAMMA TELECOM LTD",28/2/2021 00:00:00,"245050",714.48,"GA0432","GAMMA TELECOM LTD",1/2/2021 00:00:00,28/2/2021 00:00:00,"P11-2021"
"R&B","REVENUE SUSPENSE (AUTHORITY)","SUPPLIES AND SERVICES","TELEPHONES (MOBILE)","4484","GAMMA TELECOM LTD",28/2/2021 00:00:00,"245051",715.4,"GA0432","GAMMA TELECOM LTD",1/2/2021 00:00:00,28/2/2021 00:00:00,"P11-2021"
"R&B","REVENUE SUSPENSE (AUTHORITY)","SUPPLIES AND SERVICES","TELEPHONES (MOBILE)","4484","GAMMA TELECOM LTD",28/2/2021 00:00:00,"245052",706.23,"GA0432","GAMMA TELECOM LTD",1/2/2021 00:00:00,28/2/2021 00:00:00,"P11-2021"
"R&B","REVENUE SUSPENSE (AUTHORITY)","SUPPLIES AND SERVICES","TELEPHONES (MOBILE)","4484","GAMMA TELECOM LTD",28/2/2021 00:00:00,"245053",703.34,"GA0432","GAMMA TELECOM LTD",1/2/2021 00:00:00,28/2/2021 00:00:00,"P11-2021"
"R&B","DEMOCRATIC REPRESENTATION & MA","SUPPLIES AND SERVICES","MEMBERS EXPENSES","4502","P110951-SERVICE-Scanning",28/2/2021 00:00:00,"245027",217.5,"ME0034","MERLIN DOCUMENT MANAGEMENT SOLUTIONS",1/2/2021 00:00:00,28/2/2021 00:00:00,"P11-2021"
"P&V","FISHERIES MANAGEMENT","SUPPLIES AND SERVICES","MARKETING","4603","P107479-SERVICE-Portacabin Cleaning",8/2/2021 00:00:00,"244164",200,"GA0431","GARDENS MADE SIMPLE",1/2/2021 00:00:00,28/2/2021 00:00:00,"P11-2021"
,"LEE VALLEY VELOPARK","SUPPLIES AND SERVICES","MARKETING","4603","P110599-SERVICE-Road Circuit Banners",8/2/2021 00:00:00,"244197",234.3,"MA0167","MARTIN DANNELL & CO LTD",1/2/2021 00:00:00,28/2/2021 00:00:00,"P11-2021"
,"LEE VALLEY MARINA SPRINGFIELD","SUPPLIES AND SERVICES","MERCHANT PROCESSING CHARGES","4641","WORLDPAY",8/2/2021 00:00:00,"244224",15,"WO0338","WORLDPAY",1/2/2021 00:00:00,28/2/2021 00:00:00,"P11-2021"
,"LEE VALLEY MARINA STANSTEAD","SUPPLIES AND SERVICES","MERCHANT PROCESSING CHARGES","4641","WORLDPAY",8/2/2021 00:00:00,"244224",15,"WO0338","WORLDPAY",1/2/2021 00:00:00,28/2/2021 00:00:00,"P11-2021"
,"LEE VALLEY MARINA STANSTEAD","SUPPLIES AND SERVICES","SECURITY","4650","P110037-SERVICE-to supply and install 1x double ram kit",28/2/2021 00:00:00,"244925",2854.96,"AI0262","AIS ( ADVANCED INTEGRATED SECURITY)",1/2/2021 00:00:00,28/2/2021 00:00:00,"P11-2021"
"P&V","NORTH AREA RANGERS","SUPPLIES AND SERVICES","SECURITY","4650","P107669-SERVICE-Security - North of the Park",15/2/2021 00:00:00,"244226",3753.89,"PA0059","PARKGUARD LTD",1/2/2021 00:00:00,28/2/2021 00:00:00,"P11-2021"
"P&V","SOUTH AREA RANGERS","SUPPLIES AND SERVICES","SECURITY","4650","P107671-SERVICE-Security - South of the Park",8/2/2021 00:00:00,"244227",6097.2,"PA0059","PARKGUARD LTD",1/2/2021 00:00:00,28/2/2021 00:00:00,"P11-2021"
"CEO","LVLC SERVICE CHARGE","SUPPLIES AND SERVICES","SECURITY","4650","P110597-SERVICE-Move Concrete Block",15/2/2021 00:00:00,"244151",372.1,"NA0171","NAIVETTE SERVICES LTD",1/2/2021 00:00:00,28/2/2021 00:00:00,"P11-2021"
"CEO","PR/COMMUNICATIONS","SUPPLIES AND SERVICES","ARTWORK","4664","P109814-SERVICE-Create Lee Valley destination sub logos for T",28/2/2021 00:00:00,"244882",114,"BL0393","BLUE SEA DESIGN",1/2/2021 00:00:00,28/2/2021 00:00:00,"P11-2021"
"R&B","PERFORMANCE MANAGEMENT","SUPPLIES AND SERVICES","OFFSITE ARCHIVED STORAGE","4667","P110770-SERVICE-Off site archiving January 2021",10/2/2021 00:00:00,"244410",292.53,"DA0154","RESTORE PLC",1/2/2021 00:00:00,28/2/2021 00:00:00,"P11-2021"
"P&V","LEE VALLEY FARM HOLYFIELDHALL","THIRD PARTY PAYMENTS","VETERINARY SERVICES","4718","WESTPOINT GROUP TRADING LTD",22/2/2021 00:00:00,"244640",41,"NO0108","WESTPOINT GROUP TRADING LTD",1/2/2021 00:00:00,28/2/2021 00:00:00,"P11-2021"
"P&V","LEE VALLEY FARM HOLYFIELDHALL","THIRD PARTY PAYMENTS","VETERINARY SERVICES","4718","WESTPOINT GROUP TRADING LTD",22/2/2021 00:00:00,"244640",-1369.95,"NO0108","WESTPOINT GROUP TRADING LTD",1/2/2021 00:00:00,28/2/2021 00:00:00,"P11-2021"
"P&V","LEE VALLEY FARM HOLYFIELDHALL","THIRD PARTY PAYMENTS","VETERINARY SERVICES","4718","P110823-SERVICE-Vets",22/2/2021 00:00:00,"244640",1369.95,"NO0108","WESTPOINT GROUP TRADING LTD",1/2/2021 00:00:00,28/2/2021 00:00:00,"P11-2021"
"P&V","LEE VALLEY FARM HOLYFIELDHALL","THIRD PARTY PAYMENTS","VETERINARY SERVICES","4718","WESTPOINT GROUP TRADING LTD",22/2/2021 00:00:00,"244640",1328.95,"NO0108","WESTPOINT GROUP TRADING LTD",1/2/2021 00:00:00,28/2/2021 00:00:00,"P11-2021"
,"LEE VALLEY FARM HAYES HILL","THIRD PARTY PAYMENTS","VETERINARY SERVICES","4718","P110805-SERVICE-Dental visit for Kuster (donkey)",22/2/2021 00:00:00,"244693",100,"HO0432","HOME COUNTIES VETERINARY DENTAL PRACTICE",1/2/2021 00:00:00,28/2/2021 00:00:00,"P11-2021"
,"LEE VALLEY FARM HAYES HILL","THIRD PARTY PAYMENTS","VETERINARY SERVICES","4718","P110922-SERVICE-Collection and disposal of 7 goats",28/2/2021 00:00:00,"244930",400,"HO0033","HOLTS ABATTOIR LTD",1/2/2021 00:00:00,28/2/2021 00:00:00,"P11-2021"
,"LEE VALLEY FARM HAYES HILL","THIRD PARTY PAYMENTS","VETERINARY SERVICES","4718","P110922-SERVICE-Collection & transportation: 1pig & 2goats",28/2/2021 00:00:00,"244930",176,"HO0033","HOLTS ABATTOIR LTD",1/2/2021 00:00:00,28/2/2021 00:00:00,"P11-2021"
,"LEE VALLEY RIDING CENTRE","THIRD PARTY PAYMENTS","VETERINARY SERVICES","4718","P110659-SERVICE-Vet services Jan - M ar 2021",22/2/2021 00:00:00,"244711",154.18,"BA0566","BALLINGER EQUINE LTD",1/2/2021 00:00:00,28/2/2021 00:00:00,"P11-2021"
,"LEE VALLEY RIDING CENTRE","THIRD PARTY PAYMENTS","VETERINARY SERVICES","4718","P110659-SERVICE-Vet services Jan - M ar 2021",28/2/2021 00:00:00,"244895",300,"BA0566","BALLINGER EQUINE LTD",1/2/2021 00:00:00,28/2/2021 00:00:00,"P11-2021"
,"LEE VALLEY RIDING CENTRE","THIRD PARTY PAYMENTS","VETERINARY SERVICES","4718","P110659-SERVICE-vet services",28/2/2021 00:00:00,"244895",1000,"BA0566","BALLINGER EQUINE LTD",1/2/2021 00:00:00,28/2/2021 00:00:00,"P11-2021"
,"LEE VALLEY RIDING CENTRE","THIRD PARTY PAYMENTS","VETERINARY SERVICES","4718","P110659-SERVICE-Vet services Jan - M ar 2021",28/2/2021 00:00:00,"244896",453.24,"BA0566","BALLINGER EQUINE LTD",1/2/2021 00:00:00,28/2/2021 00:00:00,"P11-2021"
,"LEE VALLEY RIDING CENTRE","THIRD PARTY PAYMENTS","VETERINARY SERVICES","4718","P110659-SERVICE-Vet services Jan - M ar 2021",28/2/2021 00:00:00,"244897",211.86,"BA0566","BALLINGER EQUINE LTD",1/2/2021 00:00:00,28/2/2021 00:00:00,"P11-2021"
,"LEE VALLEY RIDING CENTRE","THIRD PARTY PAYMENTS","VETERINARY SERVICES","4718","P110659-SERVICE-Vet services Jan - M ar 2021",28/2/2021 00:00:00,"244898",245.28,"BA0566","BALLINGER EQUINE LTD",1/2/2021 00:00:00,28/2/2021 00:00:00,"P11-2021"
,"LEE VALLEY RIDING CENTRE","THIRD PARTY PAYMENTS","VETERINARY SERVICES","4718","P110659-SERVICE-Vet services Jan - M ar 2021",28/2/2021 00:00:00,"244899",106.81,"BA0566","BALLINGER EQUINE LTD",1/2/2021 00:00:00,28/2/2021 00:00:00,"P11-2021"
,"LEE VALLEY RIDING CENTRE","THIRD PARTY PAYMENTS","FARRIER","4719","P109658-SERVICE-farrier services 2020",8/2/2021 00:00:00,"244251",380,"CO0061","L COLLINS",1/2/2021 00:00:00,28/2/2021 00:00:00,"P11-2021"
,"LEE VALLEY RIDING CENTRE","THIRD PARTY PAYMENTS","FARRIER","4719","P109658-SERVICE-farrier services 2020",8/2/2021 00:00:00,"244252",520,"CO0061","L COLLINS",1/2/2021 00:00:00,28/2/2021 00:00:00,"P11-2021"
,"LEE VALLEY RIDING CENTRE","THIRD PARTY PAYMENTS","FARRIER","4719","P109658-SERVICE-farrier services 2020",8/2/2021 00:00:00,"244253",255,"CO0061","L COLLINS",1/2/2021 00:00:00,28/2/2021 00:00:00,"P11-2021"
,"LEE VALLEY RIDING CENTRE","THIRD PARTY PAYMENTS","FARRIER","4719","P109658-SERVICE-farrier services 2020",8/2/2021 00:00:00,"244254",335,"CO0061","L COLLINS",1/2/2021 00:00:00,28/2/2021 00:00:00,"P11-2021"
,"LEE VALLEY RIDING CENTRE","THIRD PARTY PAYMENTS","FARRIER","4719","P109658-SERVICE-farrier services 2020",8/2/2021 00:00:00,"244255",210,"CO0061","L COLLINS",1/2/2021 00:00:00,28/2/2021 00:00:00,"P11-2021"
"P&V","YOUTH AND SCHOOLS","SUPPLIES AND SERVICES","ACTIVITIES (SCHOOLS)","4725","P110637-SERVICE-Institute for Outdoor Learning renewal",8/2/2021 00:00:00,"244175",68,"IN0090","INSTITUTE FOR OUTDOOR LEARNING",1/2/2021 00:00:00,28/2/2021 00:00:00,"P11-2021"
"P&V","YOUTH AND SCHOOLS","SUPPLIES AND SERVICES","ACTIVITIES (SCHOOLS)","4725","P110785-SERVICE-LEEF Membership- large organisation",15/2/2021 00:00:00,"244564",160,"LO0437","LONDON ENVIRONMENTAL EDUCATION FORUM",1/2/2021 00:00:00,28/2/2021 00:00:00,"P11-2021"
"P&V","YOUTH AND SCHOOLS","SUPPLIES AND SERVICES","ACTIVITIES (SCHOOLS)","4725","P110699-SERVICE-Institue for Outdoor Learning renewal -",15/2/2021 00:00:00,"244609",68,"IN0090","INSTITUTE FOR OUTDOOR LEARNING",1/2/2021 00:00:00,28/2/2021 00:00:00,"P11-2021"
"P&V","YOUTH AND SCHOOLS","SUPPLIES AND SERVICES","ACTIVITIES (SCHOOLS)","4725","P110700-SERVICE-Institute for Outdoor Learning renewal",24/2/2021 00:00:00,"244639",68,"IN0090","INSTITUTE FOR OUTDOOR LEARNING",1/2/2021 00:00:00,28/2/2021 00:00:00,"P11-2021"
"P&V","YOUTH AND SCHOOLS","SUPPLIES AND SERVICES","ACTIVITIES (SCHOOLS)","4725","P110700-SERVICE-Field Studies PPG",24/2/2021 00:00:00,"244639",15,"IN0090","INSTITUTE FOR OUTDOOR LEARNING",1/2/2021 00:00:00,28/2/2021 00:00:00,"P11-2021"
,"LEE VALLEY MARINA SPRINGFIELD","SUPPLIES AND SERVICES","TRADING AC - EXTERNAL PURCHASE","4875","P110588-SERVICE-Chandlery Stock  647296",10/2/2021 00:00:00,"244023",695.88,"MI0200","MIDLAND CHANDLERS LIMITED",1/2/2021 00:00:00,28/2/2021 00:00:00,"P11-2021"
,"LEE VALLEY MARINA SPRINGFIELD","SUPPLIES AND SERVICES","TRADING AC - EXTERNAL PURCHASE","4875","MIDLAND CHANDLERS LIMITED",10/2/2021 00:00:00,"244023",-695.88,"MI0200","MIDLAND CHANDLERS LIMITED",1/2/2021 00:00:00,28/2/2021 00:00:00,"P11-2021"
,"LEE VALLEY MARINA SPRINGFIELD","SUPPLIES AND SERVICES","TRADING AC - EXTERNAL PURCHASE","4875","MIDLAND CHANDLERS LIMITED",10/2/2021 00:00:00,"244023",79.2,"MI0200","MIDLAND CHANDLERS LIMITED",1/2/2021 00:00:00,28/2/2021 00:00:00,"P11-2021"
,"LEE VALLEY MARINA SPRINGFIELD","SUPPLIES AND SERVICES","TRADING AC - EXTERNAL PURCHASE","4875","MIDLAND CHANDLERS LIMITED",10/2/2021 00:00:00,"244023",616.68,"MI0200","MIDLAND CHANDLERS LIMITED",1/2/2021 00:00:00,28/2/2021 00:00:00,"P11-2021"
,"LEE VALLEY MARINA SPRINGFIELD","SUPPLIES AND SERVICES","TRADING AC - EXTERNAL PURCHASE","4875","P110633-SERVICE-Chandlery Stock 648647",8/2/2021 00:00:00,"244228",301.39,"MI0200","MIDLAND CHANDLERS LIMITED",1/2/2021 00:00:00,28/2/2021 00:00:00,"P11-2021"
,"LEE VALLEY MARINA SPRINGFIELD","SUPPLIES AND SERVICES","TRADING AC - EXTERNAL PURCHASE","4875","P110054-SERVICE-Chandlery Stock (batteries)",8/2/2021 00:00:00,"244357",841.32,"EC0394","MANBAT LTD T/AS",1/2/2021 00:00:00,28/2/2021 00:00:00,"P11-2021"
,"LEE VALLEY MARINA SPRINGFIELD","SUPPLIES AND SERVICES","TRADING AC - EXTERNAL PURCHASE","4875","P110421-SERVICE-Chandlery Stock (gas)",10/2/2021 00:00:00,"244363",762.91,"CA0006","CALOR GAS LIMITED",1/2/2021 00:00:00,28/2/2021 00:00:00,"P11-2021"
,"LEE VALLEY MARINA SPRINGFIELD","SUPPLIES AND SERVICES","TRADING AC - EXTERNAL PURCHASE","4875","P109598-SERVICE-4 x Buffalo Baord",15/2/2021 00:00:00,"244417",293.51,"RO0323","E ROBERT TIMBER LTD",1/2/2021 00:00:00,28/2/2021 00:00:00,"P11-2021"
,"LEE VALLEY MARINA SPRINGFIELD","SUPPLIES AND SERVICES","TRADING AC - EXTERNAL PURCHASE","4875","P110702-SERVICE-Chandlery Stock  650450",17/2/2021 00:00:00,"244419",302.82,"MI0200","MIDLAND CHANDLERS LIMITED",1/2/2021 00:00:00,28/2/2021 00:00:00,"P11-2021"
,"LEE VALLEY MARINA SPRINGFIELD","SUPPLIES AND SERVICES","TRADING AC - EXTERNAL PURCHASE","4875","P110708-SERVICE-Chandlery Stock (logs)",17/2/2021 00:00:00,"244473",340,"HA0371","HARTS OF OAK",1/2/2021 00:00:00,28/2/2021 00:00:00,"P11-2021"
,"LEE VALLEY MARINA SPRINGFIELD","SUPPLIES AND SERVICES","TRADING AC - EXTERNAL PURCHASE","4875","P110773-SERVICE-Chandlery Stock 38132",28/2/2021 00:00:00,"244475",176.69,"AQ0033","AQUAFAX LIMITED",1/2/2021 00:00:00,28/2/2021 00:00:00,"P11-2021"
,"LEE VALLEY MARINA SPRINGFIELD","SUPPLIES AND SERVICES","TRADING AC - EXTERNAL PURCHASE","4875","P110492-SERVICE-Chandlery Stock  75351",17/2/2021 00:00:00,"244476",2.6,"AS0036","ASAP SUPPLIES",1/2/2021 00:00:00,28/2/2021 00:00:00,"P11-2021"
,"LEE VALLEY MARINA SPRINGFIELD","SUPPLIES AND SERVICES","TRADING AC - EXTERNAL PURCHASE","4875","P110735-SERVICE-Chandlery Stock  650935",17/2/2021 00:00:00,"244559",168.2,"MI0200","MIDLAND CHANDLERS LIMITED",1/2/2021 00:00:00,28/2/2021 00:00:00,"P11-2021"
,"LEE VALLEY MARINA SPRINGFIELD","SUPPLIES AND SERVICES","TRADING AC - EXTERNAL PURCHASE","4875","P110399-SERVICE-Chandlery Stock (Coal)",17/2/2021 00:00:00,"244614",800,"HI0076","W.G. HILL & SON",1/2/2021 00:00:00,28/2/2021 00:00:00,"P11-2021"
,"LEE VALLEY MARINA SPRINGFIELD","SUPPLIES AND SERVICES","TRADING AC - EXTERNAL PURCHASE","4875","P110468-SERVICE-Chandlery Stock (Coal)",17/2/2021 00:00:00,"244615",1810,"HI0076","W.G. HILL & SON",1/2/2021 00:00:00,28/2/2021 00:00:00,"P11-2021"
,"LEE VALLEY MARINA SPRINGFIELD","SUPPLIES AND SERVICES","TRADING AC - EXTERNAL PURCHASE","4875","P110797-SERVICE-Chandlery Stock  652015",17/2/2021 00:00:00,"244623",181.09,"MI0200","MIDLAND CHANDLERS LIMITED",1/2/2021 00:00:00,28/2/2021 00:00:00,"P11-2021"
,"LEE VALLEY MARINA SPRINGFIELD","SUPPLIES AND SERVICES","TRADING AC - EXTERNAL PURCHASE","4875","P110706-SERVICE-Chandlery Stock",22/2/2021 00:00:00,"244678",96.31,"LE0059","LEE SANITATION LTD",1/2/2021 00:00:00,28/2/2021 00:00:00,"P11-2021"
,"LEE VALLEY MARINA SPRINGFIELD","SUPPLIES AND SERVICES","TRADING AC - EXTERNAL PURCHASE","4875","P110840-SERVICE-Chandlery Stock  653456",24/2/2021 00:00:00,"244705",218.19,"MI0200","MIDLAND CHANDLERS LIMITED",1/2/2021 00:00:00,28/2/2021 00:00:00,"P11-2021"
,"LEE VALLEY MARINA SPRINGFIELD","SUPPLIES AND SERVICES","TRADING AC - EXTERNAL PURCHASE","4875","P110840-SERVICE-Chandlery Stock  653456",24/2/2021 00:00:00,"244824",-20,"MI0200","MIDLAND CHANDLERS LIMITED",1/2/2021 00:00:00,28/2/2021 00:00:00,"P11-2021"
,"LEE VALLEY MARINA SPRINGFIELD","SUPPLIES AND SERVICES","TRADING AC - EXTERNAL PURCHASE","4875","MIDLAND CHANDLERS LIMITED",28/2/2021 00:00:00,"244906",155.28,"MI0200","MIDLAND CHANDLERS LIMITED",1/2/2021 00:00:00,28/2/2021 00:00:00,"P11-2021"
,"LEE VALLEY MARINA SPRINGFIELD","SUPPLIES AND SERVICES","TRADING AC - EXTERNAL PURCHASE","4875","MIDLAND CHANDLERS LIMITED",28/2/2021 00:00:00,"244906",28.48,"MI0200","MIDLAND CHANDLERS LIMITED",1/2/2021 00:00:00,28/2/2021 00:00:00,"P11-2021"
,"LEE VALLEY MARINA SPRINGFIELD","SUPPLIES AND SERVICES","TRADING AC - EXTERNAL PURCHASE","4875","MIDLAND CHANDLERS LIMITED",28/2/2021 00:00:00,"244906",-183.76,"MI0200","MIDLAND CHANDLERS LIMITED",1/2/2021 00:00:00,28/2/2021 00:00:00,"P11-2021"
,"LEE VALLEY MARINA SPRINGFIELD","SUPPLIES AND SERVICES","TRADING AC - EXTERNAL PURCHASE","4875","P110896-SERVICE-Chandlery Stock 655135",28/2/2021 00:00:00,"244906",183.76,"MI0200","MIDLAND CHANDLERS LIMITED",1/2/2021 00:00:00,28/2/2021 00:00:00,"P11-2021"
,"LEE VALLEY MARINA SPRINGFIELD","SUPPLIES AND SERVICES","TRADING AC - EXTERNAL PURCHASE","4875","P110880-SERVICE-Chandlery Stock  81048",28/2/2021 00:00:00,"244907",111.6,"AS0036","ASAP SUPPLIES",1/2/2021 00:00:00,28/2/2021 00:00:00,"P11-2021"
,"LEE VALLEY MARINA SPRINGFIELD","SUPPLIES AND SERVICES","TRADING AC - EXTERNAL PURCHASE","4875","P110842-SERVICE-Chandlery Stock",28/2/2021 00:00:00,"245064",252.95,"CA0660","CALFIRE SPARELINE LIMITED",1/2/2021 00:00:00,28/2/2021 00:00:00,"P11-2021"
,"LEE VALLEY MARINA SPRINGFIELD","SUPPLIES AND SERVICES","TRADING AC - EXTERNAL PURCHASE","4875","P110724-SERVICE-Chandlery Stock (Gas)",28/2/2021 00:00:00,"245073",521.43,"CA0006","CALOR GAS LIMITED",1/2/2021 00:00:00,28/2/2021 00:00:00,"P11-2021"
,"STANSTEAD RECHARGEABLE WORKS","SUPPLIES AND SERVICES","TRADING AC - EXTERNAL PURCHASE","4875","P110619-SERVICE-chandlery stock",8/2/2021 00:00:00,"244223",28.73,"AS0036","ASAP SUPPLIES",1/2/2021 00:00:00,28/2/2021 00:00:00,"P11-2021"
,"STANSTEAD RECHARGEABLE WORKS","SUPPLIES AND SERVICES","TRADING AC - EXTERNAL PURCHASE","4875","P110562-SERVICE-RED DIESEL @ 48.74PPL",8/2/2021 00:00:00,"244230",1072.28,"TE0052","TEAM FLITWICK",1/2/2021 00:00:00,28/2/2021 00:00:00,"P11-2021"
,"STANSTEAD RECHARGEABLE WORKS","SUPPLIES AND SERVICES","TRADING AC - EXTERNAL PURCHASE","4875","P110430-SERVICE-solid fuels",8/2/2021 00:00:00,"244260",2592.4,"HI0076","W.G. HILL & SON",1/2/2021 00:00:00,28/2/2021 00:00:00,"P11-2021"
,"STANSTEAD RECHARGEABLE WORKS","SUPPLIES AND SERVICES","TRADING AC - EXTERNAL PURCHASE","4875","P110367-SERVICE-Batteries",8/2/2021 00:00:00,"244355",751.76,"EC0394","MANBAT LTD T/AS",1/2/2021 00:00:00,28/2/2021 00:00:00,"P11-2021"
,"STANSTEAD RECHARGEABLE WORKS","SUPPLIES AND SERVICES","TRADING AC - EXTERNAL PURCHASE","4875","P110367-SERVICE-extra amount for price rise",8/2/2021 00:00:00,"244355",22.49,"EC0394","MANBAT LTD T/AS",1/2/2021 00:00:00,28/2/2021 00:00:00,"P11-2021"
,"STANSTEAD RECHARGEABLE WORKS","SUPPLIES AND SERVICES","TRADING AC - EXTERNAL PURCHASE","4875","P110367-SERVICE-Batteries",23/2/2021 00:00:00,"244356",201.21,"EC0394","MANBAT LTD T/AS",1/2/2021 00:00:00,28/2/2021 00:00:00,"P11-2021"
,"STANSTEAD RECHARGEABLE WORKS","SUPPLIES AND SERVICES","TRADING AC - EXTERNAL PURCHASE","4875","P110571-SERVICE-stove glass",8/2/2021 00:00:00,"244362",31.76,"CA0660","CALFIRE SPARELINE LIMITED",1/2/2021 00:00:00,28/2/2021 00:00:00,"P11-2021"
,"STANSTEAD RECHARGEABLE WORKS","SUPPLIES AND SERVICES","TRADING AC - EXTERNAL PURCHASE","4875","P110697-SERVICE-logs",8/2/2021 00:00:00,"244395",196.2,"HI0076","W.G. HILL & SON",1/2/2021 00:00:00,28/2/2021 00:00:00,"P11-2021"
,"STANSTEAD RECHARGEABLE WORKS","SUPPLIES AND SERVICES","TRADING AC - EXTERNAL PURCHASE","4875","P110698-SERVICE-chandlery stock #650169",15/2/2021 00:00:00,"244403",400.89,"MI0200","MIDLAND CHANDLERS LIMITED",1/2/2021 00:00:00,28/2/2021 00:00:00,"P11-2021"
,"STANSTEAD RECHARGEABLE WORKS","SUPPLIES AND SERVICES","TRADING AC - EXTERNAL PURCHASE","4875","P110695-SERVICE-chandlery stock ~37522",8/2/2021 00:00:00,"244404",382.08,"AQ0033","AQUAFAX LIMITED",1/2/2021 00:00:00,28/2/2021 00:00:00,"P11-2021"
,"STANSTEAD RECHARGEABLE WORKS","SUPPLIES AND SERVICES","TRADING AC - EXTERNAL PURCHASE","4875","P110695-SERVICE-chandlery stock ~37522",15/2/2021 00:00:00,"244420",6.6,"AQ0033","AQUAFAX LIMITED",1/2/2021 00:00:00,28/2/2021 00:00:00,"P11-2021"
,"STANSTEAD RECHARGEABLE WORKS","SUPPLIES AND SERVICES","TRADING AC - EXTERNAL PURCHASE","4875","P110634-SERVICE-logs",15/2/2021 00:00:00,"244423",180,"HA0371","HARTS OF OAK",1/2/2021 00:00:00,28/2/2021 00:00:00,"P11-2021"
,"STANSTEAD RECHARGEABLE WORKS","SUPPLIES AND SERVICES","TRADING AC - EXTERNAL PURCHASE","4875","P110759-SERVICE-logs",15/2/2021 00:00:00,"244472",265,"HA0371","HARTS OF OAK",1/2/2021 00:00:00,28/2/2021 00:00:00,"P11-2021"
,"STANSTEAD RECHARGEABLE WORKS","SUPPLIES AND SERVICES","TRADING AC - EXTERNAL PURCHASE","4875","P110774-SERVICE-chandlery stock",15/2/2021 00:00:00,"244477",288.92,"AQ0033","AQUAFAX LIMITED",1/2/2021 00:00:00,28/2/2021 00:00:00,"P11-2021"
,"STANSTEAD RECHARGEABLE WORKS","SUPPLIES AND SERVICES","TRADING AC - EXTERNAL PURCHASE","4875","P110767-SERVICE-chandlery stock #651374",15/2/2021 00:00:00,"244560",559.19,"MI0200","MIDLAND CHANDLERS LIMITED",1/2/2021 00:00:00,28/2/2021 00:00:00,"P11-2021"
,"STANSTEAD RECHARGEABLE WORKS","SUPPLIES AND SERVICES","TRADING AC - EXTERNAL PURCHASE","4875","P110668-SERVICE-73l excess delivered",15/2/2021 00:00:00,"244572",35.41,"HA0400","WATSON FUELS",1/2/2021 00:00:00,28/2/2021 00:00:00,"P11-2021"
,"STANSTEAD RECHARGEABLE WORKS","SUPPLIES AND SERVICES","TRADING AC - EXTERNAL PURCHASE","4875","P110668-SERVICE-2000l red diesel @ 48.5ppl",15/2/2021 00:00:00,"244572",970,"HA0400","WATSON FUELS",1/2/2021 00:00:00,28/2/2021 00:00:00,"P11-2021"
,"STANSTEAD RECHARGEABLE WORKS","SUPPLIES AND SERVICES","TRADING AC - EXTERNAL PURCHASE","4875","P110792-SERVICE-chandlery stock",15/2/2021 00:00:00,"244605",50.75,"AQ0033","AQUAFAX LIMITED",1/2/2021 00:00:00,28/2/2021 00:00:00,"P11-2021"
,"STANSTEAD RECHARGEABLE WORKS","SUPPLIES AND SERVICES","TRADING AC - EXTERNAL PURCHASE","4875","P110799-SERVICE-GULPER SERVICE KIT",15/2/2021 00:00:00,"244624",27.52,"MI0200","MIDLAND CHANDLERS LIMITED",1/2/2021 00:00:00,28/2/2021 00:00:00,"P11-2021"
,"STANSTEAD RECHARGEABLE WORKS","SUPPLIES AND SERVICES","TRADING AC - EXTERNAL PURCHASE","4875","P110798-SERVICE-chandlery stock #652108",15/2/2021 00:00:00,"244625",417.88,"MI0200","MIDLAND CHANDLERS LIMITED",1/2/2021 00:00:00,28/2/2021 00:00:00,"P11-2021"
,"STANSTEAD RECHARGEABLE WORKS","SUPPLIES AND SERVICES","TRADING AC - EXTERNAL PURCHASE","4875","MIDLAND CHANDLERS LIMITED",15/2/2021 00:00:00,"244625",-417.88,"MI0200","MIDLAND CHANDLERS LIMITED",1/2/2021 00:00:00,28/2/2021 00:00:00,"P11-2021"
,"STANSTEAD RECHARGEABLE WORKS","SUPPLIES AND SERVICES","TRADING AC - EXTERNAL PURCHASE","4875","MIDLAND CHANDLERS LIMITED",15/2/2021 00:00:00,"244625",395.08,"MI0200","MIDLAND CHANDLERS LIMITED",1/2/2021 00:00:00,28/2/2021 00:00:00,"P11-2021"
,"STANSTEAD RECHARGEABLE WORKS","SUPPLIES AND SERVICES","TRADING AC - EXTERNAL PURCHASE","4875","MIDLAND CHANDLERS LIMITED",15/2/2021 00:00:00,"244625",22.8,"MI0200","MIDLAND CHANDLERS LIMITED",1/2/2021 00:00:00,28/2/2021 00:00:00,"P11-2021"
,"STANSTEAD RECHARGEABLE WORKS","SUPPLIES AND SERVICES","TRADING AC - EXTERNAL PURCHASE","4875","P110543-SERVICE-additional gas",15/2/2021 00:00:00,"244645",126.22,"CA0006","CALOR GAS LIMITED",1/2/2021 00:00:00,28/2/2021 00:00:00,"P11-2021"
,"STANSTEAD RECHARGEABLE WORKS","SUPPLIES AND SERVICES","TRADING AC - EXTERNAL PURCHASE","4875","P110543-SERVICE-calor gas",15/2/2021 00:00:00,"244645",472.79,"CA0006","CALOR GAS LIMITED",1/2/2021 00:00:00,28/2/2021 00:00:00,"P11-2021"
,"STANSTEAD RECHARGEABLE WORKS","SUPPLIES AND SERVICES","TRADING AC - EXTERNAL PURCHASE","4875","P110367-SERVICE-Batteries",22/2/2021 00:00:00,"244653",-67.07,"EC0394","MANBAT LTD T/AS",1/2/2021 00:00:00,28/2/2021 00:00:00,"P11-2021"
,"STANSTEAD RECHARGEABLE WORKS","SUPPLIES AND SERVICES","TRADING AC - EXTERNAL PURCHASE","4875","P110367-SERVICE-Batteries",22/2/2021 00:00:00,"244654",-201.21,"EC0394","MANBAT LTD T/AS",1/2/2021 00:00:00,28/2/2021 00:00:00,"P11-2021"
,"STANSTEAD RECHARGEABLE WORKS","SUPPLIES AND SERVICES","TRADING AC - EXTERNAL PURCHASE","4875","P110488-SERVICE-chandlery stock #645052",22/2/2021 00:00:00,"244825",5.4,"MI0200","MIDLAND CHANDLERS LIMITED",1/2/2021 00:00:00,28/2/2021 00:00:00,"P11-2021"
,"STANSTEAD RECHARGEABLE WORKS","SUPPLIES AND SERVICES","TRADING AC - EXTERNAL PURCHASE","4875","P110855-SERVICE-chandlery stock",24/2/2021 00:00:00,"244826",269.04,"MI0200","MIDLAND CHANDLERS LIMITED",1/2/2021 00:00:00,28/2/2021 00:00:00,"P11-2021"
,"STANSTEAD RECHARGEABLE WORKS","SUPPLIES AND SERVICES","TRADING AC - EXTERNAL PURCHASE","4875","P110861-SERVICE-chandlery stock",24/2/2021 00:00:00,"244827",154.16,"AQ0033","AQUAFAX LIMITED",1/2/2021 00:00:00,28/2/2021 00:00:00,"P11-2021"
,"STANSTEAD RECHARGEABLE WORKS","SUPPLIES AND SERVICES","TRADING AC - EXTERNAL PURCHASE","4875","P110767-SERVICE-chandlery stock #651374",22/2/2021 00:00:00,"244839",4.47,"MI0200","MIDLAND CHANDLERS LIMITED",1/2/2021 00:00:00,28/2/2021 00:00:00,"P11-2021"
,"STANSTEAD RECHARGEABLE WORKS","SUPPLIES AND SERVICES","TRADING AC - EXTERNAL PURCHASE","4875","P110870-SERVICE-workshop parts",24/2/2021 00:00:00,"244840",11.57,"MI0200","MIDLAND CHANDLERS LIMITED",1/2/2021 00:00:00,28/2/2021 00:00:00,"P11-2021"
,"STANSTEAD RECHARGEABLE WORKS","SUPPLIES AND SERVICES","TRADING AC - EXTERNAL PURCHASE","4875","P110855-SERVICE-chandlery stock",24/2/2021 00:00:00,"244841",10.38,"MI0200","MIDLAND CHANDLERS LIMITED",1/2/2021 00:00:00,28/2/2021 00:00:00,"P11-2021"
,"STANSTEAD RECHARGEABLE WORKS","SUPPLIES AND SERVICES","TRADING AC - EXTERNAL PURCHASE","4875","P110701-SERVICE-batteries",24/2/2021 00:00:00,"244843",556.4,"EC0394","MANBAT LTD T/AS",1/2/2021 00:00:00,28/2/2021 00:00:00,"P11-2021"
,"STANSTEAD RECHARGEABLE WORKS","SUPPLIES AND SERVICES","TRADING AC - EXTERNAL PURCHASE","4875","P110701-SERVICE-change in price",24/2/2021 00:00:00,"244843",16.64,"EC0394","MANBAT LTD T/AS",1/2/2021 00:00:00,28/2/2021 00:00:00,"P11-2021"
,"STANSTEAD RECHARGEABLE WORKS","SUPPLIES AND SERVICES","TRADING AC - EXTERNAL PURCHASE","4875","P110796-SERVICE-change in price to 52.93ppl",28/2/2021 00:00:00,"244871",9.46,"HA0400","WATSON FUELS",1/2/2021 00:00:00,28/2/2021 00:00:00,"P11-2021"
,"STANSTEAD RECHARGEABLE WORKS","SUPPLIES AND SERVICES","TRADING AC - EXTERNAL PURCHASE","4875","P110796-SERVICE-red diesel @ 52.50ppl",28/2/2021 00:00:00,"244871",1155,"HA0400","WATSON FUELS",1/2/2021 00:00:00,28/2/2021 00:00:00,"P11-2021"
,"STANSTEAD RECHARGEABLE WORKS","SUPPLIES AND SERVICES","TRADING AC - EXTERNAL PURCHASE","4875","P110900-SERVICE-chandlery stock",28/2/2021 00:00:00,"244905",496.36,"MI0200","MIDLAND CHANDLERS LIMITED",1/2/2021 00:00:00,28/2/2021 00:00:00,"P11-2021"
,"STANSTEAD RECHARGEABLE WORKS","SUPPLIES AND SERVICES","TRADING AC - EXTERNAL PURCHASE","4875","P110675-SERVICE-CALOR GAS",28/2/2021 00:00:00,"245062",457.78,"CA0006","CALOR GAS LIMITED",1/2/2021 00:00:00,28/2/2021 00:00:00,"P11-2021"
,"LEE VALLEY CARAVAN PARK","SUPPLIES AND SERVICES","TRADING AC - EXTERNAL PURCHASE","4875","P108260-SERVICE-Calor Gas",22/2/2021 00:00:00,"244844",597.51,"CA0006","CALOR GAS LIMITED",1/2/2021 00:00:00,28/2/2021 00:00:00,"P11-2021"
,"LEE VALLEY CAMPSITE","SUPPLIES AND SERVICES","BOTTLED GAS","4877","P110549-SERVICE-10 x 47kg and 8 x 19kg Gas Bottles",8/2/2021 00:00:00,"244234",631.82,"FL0147","FLOGAS BRITAIN LIMITED",1/2/2021 00:00:00,28/2/2021 00:00:00,"P11-2021"
,"LEE VALLEY CAMPSITE","SUPPLIES AND SERVICES","BOTTLED GAS","4877","P110550-SERVICE-6 x 15kg Butane Gas Bottles",8/2/2021 00:00:00,"244408",191.1,"CA0006","CALOR GAS LIMITED",1/2/2021 00:00:00,28/2/2021 00:00:00,"P11-2021"
,"LEE VALLEY CAMPSITE","SUPPLIES AND SERVICES","BOTTLED GAS","4877","P110565-SERVICE-6x 7kg",15/2/2021 00:00:00,"244414",38.98,"CA0006","CALOR GAS LIMITED",1/2/2021 00:00:00,28/2/2021 00:00:00,"P11-2021"
,"LEE VALLEY CAMPSITE","SUPPLIES AND SERVICES","BOTTLED GAS","4877","P110765-SERVICE-10x 47kg bottles",23/2/2021 00:00:00,"244682",563,"FL0147","FLOGAS BRITAIN LIMITED",1/2/2021 00:00:00,28/2/2021 00:00:00,"P11-2021"
"CEO","CHIEF EXECUTIVE","SUPPLIES AND SERVICES","UNRECONCILED COMPANY CARD EXP","4880","PAULINE ANDREWS 030221",8/2/2021 00:00:00,"244413",0.79,"NA0007","NATWEST CARD CENTRE",1/2/2021 00:00:00,28/2/2021 00:00:00,"P11-2021"
"R&B","DEMOCRATIC REPRESENTATION & MA","SUPPLIES AND SERVICES","UNRECONCILED COMPANY CARD EXP","4880","SANDRA BERTSCHIN 030221",8/2/2021 00:00:00,"244413",526,"NA0007","NATWEST CARD CENTRE",1/2/2021 00:00:00,28/2/2021 00:00:00,"P11-2021"
"R&B","FINANCE & RESOURCES MANAGEMENT","SUPPLIES AND SERVICES","UNRECONCILED COMPANY CARD EXP","4880","LOUISE READ 030221",8/2/2021 00:00:00,"244413",2407.5,"NA0007","NATWEST CARD CENTRE",1/2/2021 00:00:00,28/2/2021 00:00:00,"P11-2021"
"R&B","INFORMATION TECHNOLOGY","SUPPLIES AND SERVICES","UNRECONCILED COMPANY CARD EXP","4880","SIMON CLARK 030221",8/2/2021 00:00:00,"244413",736.87,"NA0007","NATWEST CARD CENTRE",1/2/2021 00:00:00,28/2/2021 00:00:00,"P11-2021"
"P&V","FISHERIES MANAGEMENT","SUPPLIES AND SERVICES","UNRECONCILED COMPANY CARD EXP","4880","GARY SMITH 030221",8/2/2021 00:00:00,"244413",269.93,"NA0007","NATWEST CARD CENTRE",1/2/2021 00:00:00,28/2/2021 00:00:00,"P11-2021"
,"LEE VALLEY MARINA STANSTEAD","SUPPLIES AND SERVICES","UNRECONCILED COMPANY CARD EXP","4880","STEVE BRAGGER 030221",8/2/2021 00:00:00,"244413",465.9,"NA0007","NATWEST CARD CENTRE",1/2/2021 00:00:00,28/2/2021 00:00:00,"P11-2021"
"P&V","LEE VALLEY FARM HOLYFIELDHALL","SUPPLIES AND SERVICES","UNRECONCILED COMPANY CARD EXP","4880","JASON PAINTER 030221",8/2/2021 00:00:00,"244413",883.68,"NA0007","NATWEST CARD CENTRE",1/2/2021 00:00:00,28/2/2021 00:00:00,"P11-2021"
,"LEE VALLEY FARM HAYES HILL","SUPPLIES AND SERVICES","UNRECONCILED COMPANY CARD EXP","4880","KATE CHAPLIN 030221",8/2/2021 00:00:00,"244413",443.7,"NA0007","NATWEST CARD CENTRE",1/2/2021 00:00:00,28/2/2021 00:00:00,"P11-2021"
,"LEE VALLEY FARM HAYES HILL","SUPPLIES AND SERVICES","UNRECONCILED COMPANY CARD EXP","4880","JAMES BROOMFIELD 030221",8/2/2021 00:00:00,"244413",45.98,"NA0007","NATWEST CARD CENTRE",1/2/2021 00:00:00,28/2/2021 00:00:00,"P11-2021"
,"LEE VALLEY CAMPSITE","SUPPLIES AND SERVICES","UNRECONCILED COMPANY CARD EXP","4880","COLBIE CARTER 030221",8/2/2021 00:00:00,"244413",39.99,"NA0007","NATWEST CARD CENTRE",1/2/2021 00:00:00,28/2/2021 00:00:00,"P11-2021"
,"LEE VALLEY CARAVAN PARK","SUPPLIES AND SERVICES","UNRECONCILED COMPANY CARD EXP","4880","IAN RUSELL 030221",8/2/2021 00:00:00,"244413",68,"NA0007","NATWEST CARD CENTRE",1/2/2021 00:00:00,28/2/2021 00:00:00,"P11-2021"
"P&V","MYDDELTON HOUSE GARDENS","SUPPLIES AND SERVICES","UNRECONCILED COMPANY CARD EXP","4880","RICHARD HARMES 030221",8/2/2021 00:00:00,"244413",532.47,"NA0007","NATWEST CARD CENTRE",1/2/2021 00:00:00,28/2/2021 00:00:00,"P11-2021"
"P&V","RIVER LEE COUNTRY PARK","SUPPLIES AND SERVICES","UNRECONCILED COMPANY CARD EXP","4880","SIMON PILE 030221",8/2/2021 00:00:00,"244413",301.81,"NA0007","NATWEST CARD CENTRE",1/2/2021 00:00:00,28/2/2021 00:00:00,"P11-2021"
"P&V","POLICY & PERFORMANCE (L&E)","SUPPLIES AND SERVICES","UNRECONCILED COMPANY CARD EXP","4880","ALISON SACKETT 030221",8/2/2021 00:00:00,"244413",659.29,"NA0007","NATWEST CARD CENTRE",1/2/2021 00:00:00,28/2/2021 00:00:00,"P11-2021"
,"LEE VALLEY VELOPARK","SUPPLIES AND SERVICES","UNRECONCILED COMPANY CARD EXP","4880","JEREMY NORTHROP 030221",8/2/2021 00:00:00,"244413",417.88,"NA0007","NATWEST CARD CENTRE",1/2/2021 00:00:00,28/2/2021 00:00:00,"P11-2021"
,"LEE VALLEY ATHLETICS CENTRE","SUPPLIES AND SERVICES","UNRECONCILED COMPANY CARD EXP","4880","MICK BOND 030221",8/2/2021 00:00:00,"244413",109.69,"NA0007","NATWEST CARD CENTRE",1/2/2021 00:00:00,28/2/2021 00:00:00,"P11-2021"
,"LV WHITE WATER CATERING","SUPPLIES AND SERVICES","UNRECONCILED COMPANY CARD EXP","4880","JACQUI MAMILLIAN 030221",8/2/2021 00:00:00,"244413",280,"NA0007","NATWEST CARD CENTRE",1/2/2021 00:00:00,28/2/2021 00:00:00,"P11-2021"
"CEO","COMMERCIAL ACCOMMODATION","SUPPLIES AND SERVICES","OTHER EXPENSES","4899","P107554-SERVICE-Land Registry Fees",15/2/2021 00:00:00,"244628",12,"HM0032","HM LAND REGISTRY",1/2/2021 00:00:00,28/2/2021 00:00:00,"P11-2021"
"CEO","COMMERCIAL ACCOMMODATION","SUPPLIES AND SERVICES","OTHER EXPENSES","4899","P103970-SERVICE-Land Registry Fees",28/2/2021 00:00:00,"245067",18,"HM0032","HM LAND REGISTRY",1/2/2021 00:00:00,28/2/2021 00:00:00,"P11-2021"
"P&V","LEE VALLEY FARM HOLYFIELDHALL","SUPPLIES AND SERVICES","OTHER EXPENSES","4899","P110822-SERVICE-Metering Services",22/2/2021 00:00:00,"244590",60,"WE0267","WESTERN POWER DISTRIBUTION",1/2/2021 00:00:00,28/2/2021 00:00:00,"P11-2021"
,"LEE VALLEY FARM HAYES HILL","SUPPLIES AND SERVICES","OTHER EXPENSES","4899","P110705-SERVICE-It equipment",22/2/2021 00:00:00,"244689",21.63,"CP0562","CPC LIMITED",1/2/2021 00:00:00,28/2/2021 00:00:00,"P11-2021"
,"LEE VALLEY FARM HAYES HILL","SUPPLIES AND SERVICES","OTHER EXPENSES","4899","P110707-SERVICE-IT equipment",22/2/2021 00:00:00,"244820",400.81,"CO0499","COMMS EXPRESS",1/2/2021 00:00:00,28/2/2021 00:00:00,"P11-2021"
,"LEE VALLEY FARM HAYES HILL","SUPPLIES AND SERVICES","OTHER EXPENSES","4899","P110555-SERVICE-Main IT link works",28/2/2021 00:00:00,"245015",5500,"MO0041","CAPSER",1/2/2021 00:00:00,28/2/2021 00:00:00,"P11-2021"
,"LEE VALLEY CAMPSITE","SUPPLIES AND SERVICES","OTHER EXPENSES","4899","JAMES DISBREY",17/2/2021 00:00:00,"244659",40,"DI0299","JAMES DISBREY",1/2/2021 00:00:00,28/2/2021 00:00:00,"P11-2021"
,"LEE VALLEY CAMPSITE","SUPPLIES AND SERVICES","OTHER EXPENSES","4899","JAMES DISBREY",17/2/2021 00:00:00,"244659",100,"DI0299","JAMES DISBREY",1/2/2021 00:00:00,28/2/2021 00:00:00,"P11-2021"
"P&V","RIVER LEE COUNTRY PARK","SUPPLIES AND SERVICES","OTHER EXPENSES","4899","RTN ASSA KEY DEPOSIT",22/2/2021 00:00:00,"244797",50,"GI0428","LYNNE GIBBS",1/2/2021 00:00:00,28/2/2021 00:00:00,"P11-2021"
"P&V","CAR PARK INCOME","SUPPLIES AND SERVICES","OTHER EXPENSES","4899","P107492-SERVICE-Car Park Mangament Fees Clayton Hill",10/2/2021 00:00:00,"244218",475,"PA0372","PARKINGEYE LIMITED",1/2/2021 00:00:00,28/2/2021 00:00:00,"P11-2021"
"P&V","CAR PARK INCOME","SUPPLIES AND SERVICES","OTHER EXPENSES","4899","P107493-SERVICE-Car Park Mangament Fees Cornmill Meadows",10/2/2021 00:00:00,"244220",475,"PA0372","PARKINGEYE LIMITED",1/2/2021 00:00:00,28/2/2021 00:00:00,"P11-2021"
,"LV LEISURE CENTRE GOLF COURSE","SUPPLIES AND SERVICES","OTHER EXPENSES","4899","P110728-SERVICE-golf course materials",17/2/2021 00:00:00,"244608",744.78,"LE0279","REESINK TURFCARE UK LIMITED",1/2/2021 00:00:00,28/2/2021 00:00:00,"P11-2021"
"P&V","SOUTH AREA RANGERS","S106 EXPENDITURE (REVENUE)","S106 EXPENDITURE (REVENUE)","4985","P109247-SERVICE-32x Rhamus carthartica (40/60cm only)",8/2/2021 00:00:00,"244385",30.4,"KI0089","KING AND CO (THE TREE NURSERY) LTD",1/2/2021 00:00:00,28/2/2021 00:00:00,"P11-2021"
"P&V","SOUTH AREA RANGERS","S106 EXPENDITURE (REVENUE)","S106 EXPENDITURE (REVENUE)","4985","P109247-SERVICE-32x Corylus avellana 60/90cm",8/2/2021 00:00:00,"244385",35.2,"KI0089","KING AND CO (THE TREE NURSERY) LTD",1/2/2021 00:00:00,28/2/2021 00:00:00,"P11-2021"
"P&V","SOUTH AREA RANGERS","S106 EXPENDITURE (REVENUE)","S106 EXPENDITURE (REVENUE)","4985","P109247-SERVICE-86x Crataegus monogyna 60/90cm",8/2/2021 00:00:00,"244385",77.4,"KI0089","KING AND CO (THE TREE NURSERY) LTD",1/2/2021 00:00:00,28/2/2021 00:00:00,"P11-2021"
"P&V","SOUTH AREA RANGERS","S106 EXPENDITURE (REVENUE)","S106 EXPENDITURE (REVENUE)","4985","P109247-SERVICE-86x Prunus spinosa 60/90cm",8/2/2021 00:00:00,"244385",81.7,"KI0089","KING AND CO (THE TREE NURSERY) LTD",1/2/2021 00:00:00,28/2/2021 00:00:00,"P11-2021"
"P&V","SOUTH AREA RANGERS","S106 EXPENDITURE (REVENUE)","S106 EXPENDITURE (REVENUE)","4985","P109247-SERVICE-32x Cornus sanguinea 60/90cm",8/2/2021 00:00:00,"244385",28.8,"KI0089","KING AND CO (THE TREE NURSERY) LTD",1/2/2021 00:00:00,28/2/2021 00:00:00,"P11-2021"
"P&V","SOUTH AREA RANGERS","S106 EXPENDITURE (REVENUE)","S106 EXPENDITURE (REVENUE)","4985","P109247-SERVICE-Delivery Plants - LAST WEEK IN NOVEMBER",8/2/2021 00:00:00,"244385",20,"KI0089","KING AND CO (THE TREE NURSERY) LTD",1/2/2021 00:00:00,28/2/2021 00:00:00,"P11-2021"
"P&V","S106 PROJECTS","S106 EXPENDITURE (REVENUE)","S106 EXPENDITURE (REVENUE)","4985","P109840-SERVICE-Carry out works at Turnford Grasslands",16/2/2021 00:00:00,"244644",3400,"AG0334","AG TREECARE LTD",1/2/2021 00:00:00,28/2/2021 00:00:00,"P11-2021"
"P&V","ASSET PROTECTION, MAINT, DEVEL","CAPITAL EXPENDITURE","CAPITAL EXPENDITURE","4990","P105765-SERVICE-LVAC Plaster Works",28/2/2021 00:00:00,"234665",1375,"KE0023","KENDALL & SONS LIMITED",1/2/2021 00:00:00,28/2/2021 00:00:00,"P11-2021"
"P&V","ASSET PROTECTION, MAINT, DEVEL","CAPITAL EXPENDITURE","CAPITAL EXPENDITURE","4990","P105765-SERVICE-Further related works",28/2/2021 00:00:00,"234665",998,"KE0023","KENDALL & SONS LIMITED",1/2/2021 00:00:00,28/2/2021 00:00:00,"P11-2021"
"P&V","ASSET PROTECTION, MAINT, DEVEL","CAPITAL EXPENDITURE","CAPITAL EXPENDITURE","4990","P110591-SERVICE-HTC - Ease Bolts",8/2/2021 00:00:00,"244125",400,"KE0023","KENDALL & SONS LIMITED",1/2/2021 00:00:00,28/2/2021 00:00:00,"P11-2021"
"P&V","ASSET PROTECTION, MAINT, DEVEL","CAPITAL EXPENDITURE","CAPITAL EXPENDITURE","4990","P110590-SERVICE-Abercrombie cover access holes",8/2/2021 00:00:00,"244126",250,"KE0023","KENDALL & SONS LIMITED",1/2/2021 00:00:00,28/2/2021 00:00:00,"P11-2021"
"P&V","ASSET PROTECTION, MAINT, DEVEL","CAPITAL EXPENDITURE","CAPITAL EXPENDITURE","4990","P108964-SERVICE-Additional works as per invoice 003982",16/2/2021 00:00:00,"244168",1530,"RE0094","REACT 2 IT (BUILDING & REFURBISHMENT) LTD",1/2/2021 00:00:00,28/2/2021 00:00:00,"P11-2021"
"P&V","ASSET PROTECTION, MAINT, DEVEL","CAPITAL EXPENDITURE","CAPITAL EXPENDITURE","4990","P103685-SERVICE-Agreed increase GP Feb 2020",22/2/2021 00:00:00,"244233",1451.74,"PE0379","PERFECT CIRCLE JV LTD",1/2/2021 00:00:00,28/2/2021 00:00:00,"P11-2021"
"P&V","ASSET PROTECTION, MAINT, DEVEL","CAPITAL EXPENDITURE","CAPITAL EXPENDITURE","4990","P110612-SERVICE-Re-fix Cables on side of the Bridge at Fisher",8/2/2021 00:00:00,"244389",225,"GI0137","R & P GIBBS LIMITED",1/2/2021 00:00:00,28/2/2021 00:00:00,"P11-2021"
"P&V","ASSET PROTECTION, MAINT, DEVEL","CAPITAL EXPENDITURE","CAPITAL EXPENDITURE","4990","P110111-SERVICE-Replace Deflector Plates at Hocket & Tennis C",8/2/2021 00:00:00,"244396",280,"RE0094","REACT 2 IT (BUILDING & REFURBISHMENT) LTD",1/2/2021 00:00:00,28/2/2021 00:00:00,"P11-2021"
"P&V","ASSET PROTECTION, MAINT, DEVEL","CAPITAL EXPENDITURE","CAPITAL EXPENDITURE","4990","P109766-SERVICE-Main Roof Repair - Athletic Centre",15/2/2021 00:00:00,"244441",900,"FI0249","FIELD & CO ROOFING LTD",1/2/2021 00:00:00,28/2/2021 00:00:00,"P11-2021"
"P&V","ASSET PROTECTION, MAINT, DEVEL","CAPITAL EXPENDITURE","CAPITAL EXPENDITURE","4990","P110493-SERVICE-LVAC Elec Wks Distrb Board",28/2/2021 00:00:00,"244683",2795,"BR0018","BRADSHAW ELECTRICAL LIMITED",1/2/2021 00:00:00,28/2/2021 00:00:00,"P11-2021"
"P&V","ASSET PROTECTION, MAINT, DEVEL","CAPITAL EXPENDITURE","CAPITAL EXPENDITURE","4990","P105278-SERVICE-LVIC Chiller Rental",23/2/2021 00:00:00,"244692",2105,"TR0160","TRANE UK LIMITED",1/2/2021 00:00:00,28/2/2021 00:00:00,"P11-2021"
"P&V","ASSET PROTECTION, MAINT, DEVEL","CAPITAL EXPENDITURE","CAPITAL EXPENDITURE","4990","P105765-SERVICE-LVAC Plaster Works",28/2/2021 00:00:00,"244805",-1375,"KE0023","KENDALL & SONS LIMITED",1/2/2021 00:00:00,28/2/2021 00:00:00,"P11-2021"
"P&V","ASSET PROTECTION, MAINT, DEVEL","CAPITAL EXPENDITURE","CAPITAL EXPENDITURE","4990","P110657-SERVICE-Emg Lighting Parts - LVAC",28/2/2021 00:00:00,"244834",2750,"PF0171","P4 LIMITED",1/2/2021 00:00:00,28/2/2021 00:00:00,"P11-2021"
"P&V","ASSET PROTECTION, MAINT, DEVEL","CAPITAL EXPENDITURE","CAPITAL EXPENDITURE","4990","CAPSER",28/2/2021 00:00:00,"245014",-3880,"MO0041","CAPSER",1/2/2021 00:00:00,28/2/2021 00:00:00,"P11-2021"
"P&V","ASSET PROTECTION, MAINT, DEVEL","CAPITAL EXPENDITURE","CAPITAL EXPENDITURE","4990","CAPSER",28/2/2021 00:00:00,"245014",3880,"MO0041","CAPSER",1/2/2021 00:00:00,28/2/2021 00:00:00,"P11-2021"
"P&V","ASSET PROTECTION, MAINT, DEVEL","CAPITAL EXPENDITURE","CAPITAL EXPENDITURE","4990","P110006-SERVICE-Increased Materila Costs",28/2/2021 00:00:00,"245014",160,"MO0041","CAPSER",1/2/2021 00:00:00,28/2/2021 00:00:00,"P11-2021"
"P&V","ASSET PROTECTION, MAINT, DEVEL","CAPITAL EXPENDITURE","CAPITAL EXPENDITURE","4990","P110006-SERVICE-Road Improvement at Old Forge Wharf Road",28/2/2021 00:00:00,"245014",3880,"MO0041","CAPSER",1/2/2021 00:00:00,28/2/2021 00:00:00,"P11-2021"
"P&V","ASSET PROTECTION, MAINT, DEVEL","CAPITAL EXPENDITURE","CAPITAL EXPENDITURE","4990","P105765-SERVICE-Further related works",28/2/2021 00:00:00,"245138",-998,"KE0023","KENDALL & SONS LIMITED",1/2/2021 00:00:00,28/2/2021 00:00:00,"P11-2021"
,"LEE VALLEY ICE CENTRE","CAPITAL EXPENDITURE","CAPITAL EXPENDITURE","4990","P110821-SERVICE-Project work January 2021",16/2/2021 00:00:00,"244578",10875,"WR0199","WRENBRIDGE LAND LTD",1/2/2021 00:00:00,28/2/2021 00:00:00,"P11-2021"
"R&B","FINANCE & RESOURCES MANAGEMENT","THIRD PARTY PAYMENTS","CONSULTANTS (GENERAL)","5110","P110830-SERVICE-Tax helpline 1/1/21 - 31/3/21",16/2/2021 00:00:00,"244454",800,"KP0010","KPMG TAX ADVISERS",1/2/2021 00:00:00,28/2/2021 00:00:00,"P11-2021"
"R&B","INTERNAL AUDIT/HEALTH & SAFETY","THIRD PARTY PAYMENTS","CONSULTANTS (GENERAL)","5110","P107191-SERVICE-Annual H&S Support",9/2/2021 00:00:00,"244155",7233.33,"RI0181","RD HEALTH & SAFETY LIMITED",1/2/2021 00:00:00,28/2/2021 00:00:00,"P11-2021"
"CEO","LEGAL SERVICES","THIRD PARTY PAYMENTS","CONSULTANTS (GENERAL)","5110","P110722-SERVICE-GLL Advice",15/2/2021 00:00:00,"244159",730.6,"WO0344","WOMBLE BOND DICKINSON (UK) LLP",1/2/2021 00:00:00,28/2/2021 00:00:00,"P11-2021"
"CEO","LEGAL SERVICES","THIRD PARTY PAYMENTS","CONSULTANTS (GENERAL)","5110","P108268-SERVICE-Sevices of Daud",8/2/2021 00:00:00,"244401",1375,"VE0044","VENN GROUP LTD",1/2/2021 00:00:00,28/2/2021 00:00:00,"P11-2021"
"CEO","LEGAL SERVICES","THIRD PARTY PAYMENTS","CONSULTANTS (GENERAL)","5110","P110723-SERVICE-Outsourcing",15/2/2021 00:00:00,"244444",2168,"AD0396","ADDLESHAW GODDARD LLP",1/2/2021 00:00:00,28/2/2021 00:00:00,"P11-2021"
"CEO","LEGAL SERVICES","THIRD PARTY PAYMENTS","CONSULTANTS (GENERAL)","5110","P108268-SERVICE-Sevices of Daud",15/2/2021 00:00:00,"244638",1375,"VE0044","VENN GROUP LTD",1/2/2021 00:00:00,28/2/2021 00:00:00,"P11-2021"
"CEO","LEGAL SERVICES","THIRD PARTY PAYMENTS","CONSULTANTS (GENERAL)","5110","P108268-SERVICE-Sevices of Daud",22/2/2021 00:00:00,"244833",1375,"VE0044","VENN GROUP LTD",1/2/2021 00:00:00,28/2/2021 00:00:00,"P11-2021"
"CEO","LEGAL SERVICES","THIRD PARTY PAYMENTS","CONSULTANTS (GENERAL)","5110","P108268-SERVICE-Sevices of Daud",28/2/2021 00:00:00,"245021",1375,"VE0044","VENN GROUP LTD",1/2/2021 00:00:00,28/2/2021 00:00:00,"P11-2021"
"CEO","CORPORATE MANAGEMENT","THIRD PARTY PAYMENTS","EXTERNAL AUDIT EXPENSES","5117","ERNST & YOUNG LLP",28/2/2021 00:00:00,"244908",10233,"ER0267","ERNST & YOUNG LLP",1/2/2021 00:00:00,28/2/2021 00:00:00,"P11-2021"
"R&B","BALANCE SHEET (AUTHORITY)","CREDITORS","MARINA BOAT SALES SUSPENSE","6631","MRS JANE BOTTOMLEY",8/2/2021 00:00:00,"244349",25000,"BO0605","MRS JANE BOTTOMLEY",1/2/2021 00:00:00,28/2/2021 00:00:00,"P11-2021"
"R&B","BALANCE SHEET (AUTHORITY)","CREDITORS","EMPLOYEES INCOME TAX","6701","PAYE",28/2/2021 00:00:00,"244665",73848.26,"HM0368","HMRC",1/2/2021 00:00:00,28/2/2021 00:00:00,"P11-2021"
"R&B","BALANCE SHEET (AUTHORITY)","CREDITORS","EMPLOYEES NATIONAL INSURANCE","6702","PAYE",28/2/2021 00:00:00,"244665",45902.26,"HM0368","HMRC",1/2/2021 00:00:00,28/2/2021 00:00:00,"P11-2021"
"R&B","BALANCE SHEET (AUTHORITY)","CREDITORS","EMPLOYERS NATIONAL INSURANCE","6704","PAYE",28/2/2021 00:00:00,"244665",60261.57,"HM0368","HMRC",1/2/2021 00:00:00,28/2/2021 00:00:00,"P11-2021"
"R&B","BALANCE SHEET (AUTHORITY)","CREDITORS","EMPLOYEES PENSION LGPS","6706","EMPLOYER CONTRIBUTIONS",28/2/2021 00:00:00,"244666",40076,"LO0334","LONDON PENSION FUND OPERATIONAL ACCOUNT",1/2/2021 00:00:00,28/2/2021 00:00:00,"P11-2021"
"R&B","BALANCE SHEET (AUTHORITY)","CREDITORS","EMPLOYEES PENSION LGPS","6706","AVC CONTRIBUTIONS",28/2/2021 00:00:00,"244667",225,"LO0455","LOCAL GOVERNMENT AVC DEPARTMENT",1/2/2021 00:00:00,28/2/2021 00:00:00,"P11-2021"
"R&B","BALANCE SHEET (AUTHORITY)","CREDITORS","EMPLOYERS PENSION LGPS","6707","EMPLOYER CONTRIBUTIONS",28/2/2021 00:00:00,"244666",90969.25,"LO0334","LONDON PENSION FUND OPERATIONAL ACCOUNT",1/2/2021 00:00:00,28/2/2021 00:00:00,"P11-2021"
"R&B","BALANCE SHEET (AUTHORITY)","CREDITORS","EMPLOYEES STUDENT LOANS","6709","PAYE",28/2/2021 00:00:00,"244665",2330,"HM0368","HMRC",1/2/2021 00:00:00,28/2/2021 00:00:00,"P11-2021"
"R&B","BALANCE SHEET (AUTHORITY)","CREDITORS","EMPLOYEES UNION SUBSCRIPTIONS","6711","MEMBERSHIP FEES",28/2/2021 00:00:00,"244668",87.35,"UN0002","UNISON Greater London Region",1/2/2021 00:00:00,28/2/2021 00:00:00,"P11-2021"
"R&B","BALANCE SHEET (AUTHORITY)","CREDITORS","EMPLOYEES SMP/SSP","6712","PAYE",28/2/2021 00:00:00,"244665",-1112.84,"HM0368","HMRC",1/2/2021 00:00:00,28/2/2021 00:00:00,"P11-2021"
"R&B","BALANCE SHEET (AUTHORITY)","CREDITORS","CONSTRUCTION INDUSTRY SCHEME","6721","R G JOYCE",3/2/2021 00:00:00,"244298",-190,"JO0019","R G JOYCE",1/2/2021 00:00:00,28/2/2021 00:00:00,"P11-2021"
"R&B","BALANCE SHEET (AUTHORITY)","CREDITORS","CONSTRUCTION INDUSTRY SCHEME","6721","KENDALL & SONS LIMITED",3/2/2021 00:00:00,"244302",-369,"KE0023","KENDALL & SONS LIMITED",1/2/2021 00:00:00,28/2/2021 00:00:00,"P11-2021"
"R&B","BALANCE SHEET (AUTHORITY)","CREDITORS","CONSTRUCTION INDUSTRY SCHEME","6721","R G JOYCE",10/2/2021 00:00:00,"244524",-442,"JO0019","R G JOYCE",1/2/2021 00:00:00,28/2/2021 00:00:00,"P11-2021"
"R&B","BALANCE SHEET (AUTHORITY)","CREDITORS","CONSTRUCTION INDUSTRY SCHEME","6721","KENDALL & SONS LIMITED",10/2/2021 00:00:00,"244527",-19.6,"KE0023","KENDALL & SONS LIMITED",1/2/2021 00:00:00,28/2/2021 00:00:00,"P11-2021"
"R&B","BALANCE SHEET (AUTHORITY)","CREDITORS","CONSTRUCTION INDUSTRY SCHEME","6721","CASPER 06/01/21-05/02/21",15/2/2021 00:00:00,"244585",50,"IN0016","INLAND REVENUE ONLY 948/L1005",1/2/2021 00:00:00,28/2/2021 00:00:00,"P11-2021"
"R&B","BALANCE SHEET (AUTHORITY)","CREDITORS","CONSTRUCTION INDUSTRY SCHEME","6721","KENDALL 06/01/21-05/02/21",15/2/2021 00:00:00,"244585",388.6,"IN0016","INLAND REVENUE ONLY 948/L1005",1/2/2021 00:00:00,28/2/2021 00:00:00,"P11-2021"
"R&B","BALANCE SHEET (AUTHORITY)","CREDITORS","CONSTRUCTION INDUSTRY SCHEME","6721","RG JOYCE 06/01/21-05/02/21",15/2/2021 00:00:00,"244585",280,"IN0016","INLAND REVENUE ONLY 948/L1005",1/2/2021 00:00:00,28/2/2021 00:00:00,"P11-2021"
"R&B","BALANCE SHEET (AUTHORITY)","CREDITORS","CONSTRUCTION INDUSTRY SCHEME","6721","KENDALL & SONS LIMITED",17/2/2021 00:00:00,"244761",-34,"KE0023","KENDALL & SONS LIMITED",1/2/2021 00:00:00,28/2/2021 00:00:00,"P11-2021"
"R&B","BALANCE SHEET (AUTHORITY)","CREDITORS","CONSTRUCTION INDUSTRY SCHEME","6721","KENDALL & SONS LIMITED",24/2/2021 00:00:00,"244980",-250.2,"KE0023","KENDALL & SONS LIMITED",1/2/2021 00:00:00,28/2/2021 00:00:00,"P11-2021"
"R&B","BALANCE SHEET (AUTHORITY)","CREDITORS","CONSTRUCTION INDUSTRY SCHEME","6721","CAPSER",24/2/2021 00:00:00,"244990",-1071,"MO0041","CAPSER",1/2/2021 00:00:00,28/2/2021 00:00:00,"P11-2021"
"R&B","BALANCE SHEET (AUTHORITY)","CL SUSPENSE","INSURANCE SUSPENSE","6861","ALLIANZ CORNHILL ENGINEERING",9/2/2021 00:00:00,"244455",-34714.3,"AL0076","ALLIANZ CORNHILL ENGINEERING",1/2/2021 00:00:00,28/2/2021 00:00:00,"P11-2021"
"R&B","REVENUE SUSPENSE (AUTHORITY)","GENERAL SUSPENSE","GENERAL SUSPENSE","6890","DAISY COMMUNICATIONS LTD",16/2/2021 00:00:00,"244353",268.4,"ID0002","DAISY COMMUNICATIONS LTD",1/2/2021 00:00:00,28/2/2021 00:00:00,"P11-2021"
"R&B","REVENUE SUSPENSE (AUTHORITY)","GENERAL SUSPENSE","GENERAL SUSPENSE","6890","DAISY COMMUNICATIONS LTD",16/2/2021 00:00:00,"244354",2744.65,"ID0002","DAISY COMMUNICATIONS LTD",1/2/2021 00:00:00,28/2/2021 00:00:00,"P11-2021"
,"LEE VALLEY CAMPSITE","INCOME","TOURING FEES","9376","D DOWERS",8/2/2021 00:00:00,"244231",60,"DO0298","D DOWERS",1/2/2021 00:00:00,28/2/2021 00:00:00,"P11-2021"
"P&V","GUNPOWDER PARK","INCOME","CAR PARKING INCOME","9730","CHUBB FIRE & SECURITY",8/2/2021 00:00:00,"244407",-445.87,"CH0088","CHUBB FIRE & SECURITY",1/2/2021 00:00:00,28/2/2021 00:00:00,"P11-2021"
"P&V","CAR PARK INCOME","INCOME","CAR PARKING INCOME","9730","P110743-SERVICE-Cash Collection Charges - Feb 2021 - GPP",15/2/2021 00:00:00,"244183",60,"PA0372","PARKINGEYE LIMITED",1/2/2021 00:00:00,28/2/2021 00:00:00,"P11-2021"
"P&V","CAR PARK INCOME","INCOME","CAR PARKING INCOME","9730","P110741-SERVICE-P&D Revenue Jan - FG (5%)",15/2/2021 00:00:00,"244217",127.52,"PA0372","PARKINGEYE LIMITED",1/2/2021 00:00:00,28/2/2021 00:00:00,"P11-2021"
"P&V","CAR PARK INCOME","INCOME","CAR PARKING INCOME","9730","P110741-SERVICE-P&D Revenue Jan - WAG (5%)",15/2/2021 00:00:00,"244217",36.58,"PA0372","PARKINGEYE LIMITED",1/2/2021 00:00:00,28/2/2021 00:00:00,"P11-2021"
"P&V","CAR PARK INCOME","INCOME","CAR PARKING INCOME","9730","P110741-SERVICE-P&D Revenue Jan - CMM (20%)",15/2/2021 00:00:00,"244217",69.61,"PA0372","PARKINGEYE LIMITED",1/2/2021 00:00:00,28/2/2021 00:00:00,"P11-2021"
"P&V","CAR PARK INCOME","INCOME","CAR PARKING INCOME","9730","P110741-SERVICE-P&D Revenue Jan - Clayton (20%)",15/2/2021 00:00:00,"244217",88.16,"PA0372","PARKINGEYE LIMITED",1/2/2021 00:00:00,28/2/2021 00:00:00,"P11-2021"
"P&V","CAR PARK INCOME","INCOME","CAR PARKING INCOME","9730","P110741-SERVICE-P&D Revenue Jan - Hooks M (20%)",15/2/2021 00:00:00,"244217",391.07,"PA0372","PARKINGEYE LIMITED",1/2/2021 00:00:00,28/2/2021 00:00:00,"P11-2021"
"P&V","CAR PARK INCOME","INCOME","CAR PARKING INCOME","9730","P110741-SERVICE-P&D Revenue Jan - GPP (5%)",15/2/2021 00:00:00,"244217",159.18,"PA0372","PARKINGEYE LIMITED",1/2/2021 00:00:00,28/2/2021 00:00:00,"P11-2021"
"P&V","CAR PARK INCOME","INCOME","CAR PARKING INCOME","9730","P110741-SERVICE-Paid Parking Tickets Jan - WAG",15/2/2021 00:00:00,"244219",0.64,"PA0372","PARKINGEYE LIMITED",1/2/2021 00:00:00,28/2/2021 00:00:00,"P11-2021"
"P&V","CAR PARK INCOME","INCOME","CAR PARKING INCOME","9730","P110741-SERVICE-Paid Parking Tickets Jan - GPP",15/2/2021 00:00:00,"244219",5.86,"PA0372","PARKINGEYE LIMITED",1/2/2021 00:00:00,28/2/2021 00:00:00,"P11-2021"
"P&V","CAR PARK INCOME","INCOME","CAR PARKING INCOME","9730","P110741-SERVICE-Paid Parking Tickets Jan - FG",15/2/2021 00:00:00,"244219",2.71,"PA0372","PARKINGEYE LIMITED",1/2/2021 00:00:00,28/2/2021 00:00:00,"P11-2021"
"P&V","CAR PARK INCOME","INCOME","CAR PARKING INCOME","9730","PARKINGEYE LIMITED",8/2/2021 00:00:00,"244348",5,"PA0372","PARKINGEYE LIMITED",1/2/2021 00:00:00,28/2/2021 00:00:00,"P11-2021"
"P&V","CAR PARK INCOME","INCOME","CAR PARKING INCOME","9730","PARKINGEYE LIMITED",8/2/2021 00:00:00,"244350",-42.51,"PA0372","PARKINGEYE LIMITED",1/2/2021 00:00:00,28/2/2021 00:00:00,"P11-2021"
"P&V","CAR PARK INCOME","INCOME","CAR PARKING INCOME","9730","PARKINGEYE LIMITED",8/2/2021 00:00:00,"244377",178.09,"PA0372","PARKINGEYE LIMITED",1/2/2021 00:00:00,28/2/2021 00:00:00,"P11-2021"
"P&V","CAR PARK INCOME","INCOME","CAR PARKING INCOME","9730","PARKINGEYE LIMITED",8/2/2021 00:00:00,"244377",-1934.19,"PA0372","PARKINGEYE LIMITED",1/2/2021 00:00:00,28/2/2021 00:00:00,"P11-2021"
"P&V","CAR PARK INCOME","INCOME","CAR PARKING INCOME","9730","PARKINGEYE LIMITED",8/2/2021 00:00:00,"244378",-599.58,"PA0372","PARKINGEYE LIMITED",1/2/2021 00:00:00,28/2/2021 00:00:00,"P11-2021"
"P&V","CAR PARK INCOME","INCOME","CAR PARKING INCOME","9730","PARKINGEYE LIMITED",8/2/2021 00:00:00,"244378",54.56,"PA0372","PARKINGEYE LIMITED",1/2/2021 00:00:00,28/2/2021 00:00:00,"P11-2021"
"P&V","CAR PARK INCOME","INCOME","CAR PARKING INCOME","9730","PARKINGEYE LIMITED",8/2/2021 00:00:00,"244379",159.5,"PA0372","PARKINGEYE LIMITED",1/2/2021 00:00:00,28/2/2021 00:00:00,"P11-2021"
"P&V","CAR PARK INCOME","INCOME","CAR PARKING INCOME","9730","PARKINGEYE LIMITED",8/2/2021 00:00:00,"244379",-1955.33,"PA0372","PARKINGEYE LIMITED",1/2/2021 00:00:00,28/2/2021 00:00:00,"P11-2021"
"P&V","CAR PARK INCOME","INCOME","CAR PARKING INCOME","9730","PARKINGEYE LIMITED",8/2/2021 00:00:00,"244380",-348.06,"PA0372","PARKINGEYE LIMITED",1/2/2021 00:00:00,28/2/2021 00:00:00,"P11-2021"
"P&V","CAR PARK INCOME","INCOME","CAR PARKING INCOME","9730","PARKINGEYE LIMITED",8/2/2021 00:00:00,"244380",29.48,"PA0372","PARKINGEYE LIMITED",1/2/2021 00:00:00,28/2/2021 00:00:00,"P11-2021"
"P&V","CAR PARK INCOME","INCOME","CAR PARKING INCOME","9730","PARKINGEYE LIMITED",8/2/2021 00:00:00,"244381",41.47,"PA0372","PARKINGEYE LIMITED",1/2/2021 00:00:00,28/2/2021 00:00:00,"P11-2021"
"P&V","CAR PARK INCOME","INCOME","CAR PARKING INCOME","9730","PARKINGEYE LIMITED",8/2/2021 00:00:00,"244381",-440.8,"PA0372","PARKINGEYE LIMITED",1/2/2021 00:00:00,28/2/2021 00:00:00,"P11-2021"
"P&V","CAR PARK INCOME","INCOME","CAR PARKING INCOME","9730","PARKINGEYE LIMITED",8/2/2021 00:00:00,"244382",145.86,"PA0372","PARKINGEYE LIMITED",1/2/2021 00:00:00,28/2/2021 00:00:00,"P11-2021"
"P&V","CAR PARK INCOME","INCOME","CAR PARKING INCOME","9730","PARKINGEYE LIMITED",8/2/2021 00:00:00,"244382",-1881.28,"PA0372","PARKINGEYE LIMITED",1/2/2021 00:00:00,28/2/2021 00:00:00,"P11-2021"
"P&V","CAR PARK INCOME","INCOME","CAR PARKING INCOME","9730","PARKINGEYE LIMITED",15/2/2021 00:00:00,"244465",-60,"PA0372","PARKINGEYE LIMITED",1/2/2021 00:00:00,28/2/2021 00:00:00,"P11-2021"
,"LEE VALLEY VELOPARK","INCOME","CAR PARKING INCOME","9730","PARKINGEYE LIMITED",8/2/2021 00:00:00,"244188",-197.51,"PA0372","PARKINGEYE LIMITED",1/2/2021 00:00:00,28/2/2021 00:00:00,"P11-2021"
,"LEE VALLEY VELOPARK","INCOME","CAR PARKING INCOME","9730","PARKINGEYE LIMITED",8/2/2021 00:00:00,"244375",107.91,"PA0372","PARKINGEYE LIMITED",1/2/2021 00:00:00,28/2/2021 00:00:00,"P11-2021"
,"LEE VALLEY VELOPARK","INCOME","CAR PARKING INCOME","9730","PARKINGEYE LIMITED",8/2/2021 00:00:00,"244375",-6408.27,"PA0372","PARKINGEYE LIMITED",1/2/2021 00:00:00,28/2/2021 00:00:00,"P11-2021"
,"LV HOCKEY AND TENNIS CENTRE","INCOME","CAR PARKING INCOME","9730","PARKINGEYE LIMITED",8/2/2021 00:00:00,"244187",-229.7,"PA0372","PARKINGEYE LIMITED",1/2/2021 00:00:00,28/2/2021 00:00:00,"P11-2021"
,"LV HOCKEY AND TENNIS CENTRE","INCOME","CAR PARKING INCOME","9730","PARKINGEYE LIMITED",8/2/2021 00:00:00,"244376",-12.48,"PA0372","PARKINGEYE LIMITED",1/2/2021 00:00:00,28/2/2021 00:00:00,"P11-2021"
,"LV HOCKEY AND TENNIS CENTRE","INCOME","CAR PARKING INCOME","9730","PARKINGEYE LIMITED",8/2/2021 00:00:00,"244376",0.55,"PA0372","PARKINGEYE LIMITED",1/2/2021 00:00:00,28/2/2021 00:00:00,"P11-2021"
